Body Name,Body,Date,Department,Beneficiary,Summary of Purpose (SeRCOP),Amount,Merchant Code,Transaction Number
Sandwell Metropolitan Borough Council,http://www.sandwell.gov.uk/info/200202/performance_and_spending/3233/government_procurement_cards,03-Jan-22,Total Business Strategy & Change,Google Cloud EMEA Limi,Assistant Chief Executive (Excl SIU),165.82,DIGITAL GOODS SOFTWARE APPLICATIONS,2021-22Q4_PC1
Sandwell Metropolitan Borough Council,http://www.sandwell.gov.uk/info/200202/performance_and_spending/3233/government_procurement_cards,04-Jan-2022,Total Borough Economy,PODBEAN.COM,Total Adult Social Care,29.81,COMPUTER NETWORK/INFORMATION SERVICES,2021-22Q4_PC1
Sandwell Metropolitan Borough Council,http://www.sandwell.gov.uk/info/200202/performance_and_spending/3233/government_procurement_cards,04-Jan-2022,Total Business Strategy & Change,AMZ Handanhy,Assistant Chief Executive (Excl SIU),-45.9,MISCELLANEOUS AND SPECIALTY RETAIL STORES,2021-22Q4_PC2
Sandwell Metropolitan Borough Council,http://www.sandwell.gov.uk/info/200202/performance_and_spending/3233/government_procurement_cards,05-Jan-2022,FINANCE (Inc SIU),SMARTY CO UK,Assistant Chief Executive (Excl SIU),10,TELECOM INCL PREPAID/RECURRING PHONE SVCS,2021-22Q4_PC3
Sandwell Metropolitan Borough Council,http://www.sandwell.gov.uk/info/200202/performance_and_spending/3233/government_procurement_cards,05-Jan-2022,Childrens Services,MEDISUPPLIES LTD,Childrens Services,152.82,MISCELLANEOUS AND SPECIALTY RETAIL STORES,2021-22Q4_PC4
Sandwell Metropolitan Borough Council,http://www.sandwell.gov.uk/info/200202/performance_and_spending/3233/government_procurement_cards,05-Jan-2022,Regeneration & Growth,AMZNMktplace,Regeneration And The Economy,16.98,MISCELLANEOUS AND SPECIALTY RETAIL STORES,2021-22Q4_PC5
Sandwell Metropolitan Borough Council,http://www.sandwell.gov.uk/info/200202/performance_and_spending/3233/government_procurement_cards,05-Jan-2022,Housing & Assets Total,Amazon Prime 8K24G4NI5,Corporate Management,7.99,DIRECT MARKETING-CONTINUITY/SUBSCRIPTION MERCHANTS,2021-22Q4_PC6
Sandwell Metropolitan Borough Council,http://www.sandwell.gov.uk/info/200202/performance_and_spending/3233/government_procurement_cards,05-Jan-2022,Childrens Services,ASDA GROCERIES ONLINE,Childrens Services,108.68,"GROCERY STORES, SUPERMARKETS",2021-22Q4_PC7
Sandwell Metropolitan Borough Council,http://www.sandwell.gov.uk/info/200202/performance_and_spending/3233/government_procurement_cards,05-Jan-2022,Total Borough Economy,PAYPAL  EVENTSINDUS,Total Adult Social Care,30,"ORGANIZATIONS, MEMBERSHIP-NOT ELSEWHERE CLASSIFIED",2021-22Q4_PC8
Sandwell Metropolitan Borough Council,http://www.sandwell.gov.uk/info/200202/performance_and_spending/3233/government_procurement_cards,05-Jan-2022,Total Business Strategy & Change,AMZ Handanhy,Assistant Chief Executive (Excl SIU),-45.9,MISCELLANEOUS AND SPECIALTY RETAIL STORES,2021-22Q4_PC9
Sandwell Metropolitan Borough Council,http://www.sandwell.gov.uk/info/200202/performance_and_spending/3233/government_procurement_cards,05-Jan-2022,Total Business Strategy & Change,AMZ Pukka Pad UK,Assistant Chief Executive (Excl SIU),-36.02,MISCELLANEOUS AND SPECIALTY RETAIL STORES,2021-22Q4_PC10
Sandwell Metropolitan Borough Council,http://www.sandwell.gov.uk/info/200202/performance_and_spending/3233/government_procurement_cards,06-Jan-2022,Total Housing Revenue Account,ARGOS LTD,Total Housing Revenue Account,29.99,DISCOUNT STORES,2021-22Q4_PC11
Sandwell Metropolitan Borough Council,http://www.sandwell.gov.uk/info/200202/performance_and_spending/3233/government_procurement_cards,06-Jan-2022,Childrens Services,Amazon.co.uk GS6H24E85,Childrens Services,65.29,DIRECT MARKETING-OTHER DIRECT MARKETERS/NOT ELSEW.,2021-22Q4_PC12
Sandwell Metropolitan Borough Council,http://www.sandwell.gov.uk/info/200202/performance_and_spending/3233/government_procurement_cards,06-Jan-2022,Housing & Assets Total,HOTEL IBIS,Corporate Management,747,HOTEL IBIS,2021-22Q4_PC13
Sandwell Metropolitan Borough Council,http://www.sandwell.gov.uk/info/200202/performance_and_spending/3233/government_procurement_cards,06-Jan-2022,Regeneration & Growth,MARSDEN FIRE SAFETY LT,Regeneration And The Economy,106.32,COMPUTER SOFTWARE STORES,2021-22Q4_PC14
Sandwell Metropolitan Borough Council,http://www.sandwell.gov.uk/info/200202/performance_and_spending/3233/government_procurement_cards,06-Jan-2022,Childrens Services,SP   JAYCOTTS SEWING,Childrens Services,56.8,"FABRIC, NEEDLEWORK, PIECE GOODS, AND SEWING STORES",2021-22Q4_PC15
Sandwell Metropolitan Borough Council,http://www.sandwell.gov.uk/info/200202/performance_and_spending/3233/government_procurement_cards,06-Jan-2022,Childrens Services,FIRST RESPONSE FIRST A,Childrens Services,144,SCHOOLS & EDUCATIONAL SVC-NOT ELSEWHERE CLASSIFIED,2021-22Q4_PC16
Sandwell Metropolitan Borough Council,http://www.sandwell.gov.uk/info/200202/performance_and_spending/3233/government_procurement_cards,06-Jan-2022,Childrens Services,FIRST RESPONSE FIRST A,Childrens Services,192,SCHOOLS & EDUCATIONAL SVC-NOT ELSEWHERE CLASSIFIED,2021-22Q4_PC17
Sandwell Metropolitan Borough Council,http://www.sandwell.gov.uk/info/200202/performance_and_spending/3233/government_procurement_cards,06-Jan-2022,Regeneration & Growth,AMZNMKTPLACE AMAZON.CO,Regeneration And The Economy,17.98,MISCELLANEOUS AND SPECIALTY RETAIL STORES,2021-22Q4_PC18
Sandwell Metropolitan Borough Council,http://www.sandwell.gov.uk/info/200202/performance_and_spending/3233/government_procurement_cards,06-Jan-2022,Total Borough Economy,B & Q 1276,Total Adult Social Care,6.78,HOME SUPPLY WAREHOUSE STORES,2021-22Q4_PC19
Sandwell Metropolitan Borough Council,http://www.sandwell.gov.uk/info/200202/performance_and_spending/3233/government_procurement_cards,06-Jan-2022,Total ASCHWB,Amazon.co.uk X450I68B5,Total Adult Social Care,18,DIRECT MARKETING-OTHER DIRECT MARKETERS/NOT ELSEW.,2021-22Q4_PC20
Sandwell Metropolitan Borough Council,http://www.sandwell.gov.uk/info/200202/performance_and_spending/3233/government_procurement_cards,06-Jan-2022,Total ASCHWB,AMZNMktplace,Total Adult Social Care,78.95,MISCELLANEOUS AND SPECIALTY RETAIL STORES,2021-22Q4_PC21
Sandwell Metropolitan Borough Council,http://www.sandwell.gov.uk/info/200202/performance_and_spending/3233/government_procurement_cards,06-Jan-2022,Total ASCHWB,WWW.JUSTGLOVES.CO.UK,Total Adult Social Care,257.1,MISCELLANEOUS AND SPECIALTY RETAIL STORES,2021-22Q4_PC22
Sandwell Metropolitan Borough Council,http://www.sandwell.gov.uk/info/200202/performance_and_spending/3233/government_procurement_cards,06-Jan-2022,Total ASCHWB,HALFORDS ON LINE,Total Adult Social Care,3.49,"AUTOMOTIVE PARTS, ACCESSORIES STORES",2021-22Q4_PC23
Sandwell Metropolitan Borough Council,http://www.sandwell.gov.uk/info/200202/performance_and_spending/3233/government_procurement_cards,06-Jan-2022,Housing & Assets Total,POST OFFICE COUNTER,Corporate Management,15.84,POSTAL SERVICES-GOVERNMENT ONLY,2021-22Q4_PC24
Sandwell Metropolitan Borough Council,http://www.sandwell.gov.uk/info/200202/performance_and_spending/3233/government_procurement_cards,06-Jan-2022,Housing & Assets Total,B&M 049 - ASTLE PARK,Corporate Management,30.89,MISCELLANEOUS GENERAL MERCHANDISE,2021-22Q4_PC25
Sandwell Metropolitan Borough Council,http://www.sandwell.gov.uk/info/200202/performance_and_spending/3233/government_procurement_cards,06-Jan-2022,Total Borough Economy,B&Q LTD,Total Adult Social Care,163.75,"BUILDING MATERIALS, LUMBER STORES",2021-22Q4_PC26
Sandwell Metropolitan Borough Council,http://www.sandwell.gov.uk/info/200202/performance_and_spending/3233/government_procurement_cards,06-Jan-2022,Total Borough Economy,B&Q LTD,Total Adult Social Care,51.25,"BUILDING MATERIALS, LUMBER STORES",2021-22Q4_PC27
Sandwell Metropolitan Borough Council,http://www.sandwell.gov.uk/info/200202/performance_and_spending/3233/government_procurement_cards,06-Jan-2022,Total Borough Economy,SAINSBURYS SUPERMA,Total Adult Social Care,26.58,"FUEL DISPENSER, AUTOMATED",2021-22Q4_PC28
Sandwell Metropolitan Borough Council,http://www.sandwell.gov.uk/info/200202/performance_and_spending/3233/government_procurement_cards,06-Jan-2022,Regeneration & Growth,RICS COM GBP CYBS,Regeneration And The Economy,282,"ORGANIZATIONS, MEMBERSHIP-NOT ELSEWHERE CLASSIFIED",2021-22Q4_PC29
Sandwell Metropolitan Borough Council,http://www.sandwell.gov.uk/info/200202/performance_and_spending/3233/government_procurement_cards,06-Jan-2022,Regeneration & Growth,Amazon.co.uk JD0WZ9L85,Regeneration And The Economy,14.98,DIRECT MARKETING-OTHER DIRECT MARKETERS/NOT ELSEW.,2021-22Q4_PC30
Sandwell Metropolitan Borough Council,http://www.sandwell.gov.uk/info/200202/performance_and_spending/3233/government_procurement_cards,06-Jan-2022,Total Borough Economy,AMZNMktplace,Total Adult Social Care,119.99,MISCELLANEOUS AND SPECIALTY RETAIL STORES,2021-22Q4_PC31
Sandwell Metropolitan Borough Council,http://www.sandwell.gov.uk/info/200202/performance_and_spending/3233/government_procurement_cards,06-Jan-2022,Individual School Budgets With Inclusion,AMZNMktplace,Individual School Budgets With Inclusion,89.9,MISCELLANEOUS AND SPECIALTY RETAIL STORES,2021-22Q4_PC32
Sandwell Metropolitan Borough Council,http://www.sandwell.gov.uk/info/200202/performance_and_spending/3233/government_procurement_cards,06-Jan-2022,Total Borough Economy,AMZNMKTPLACE AMAZON.CO,Total Adult Social Care,24,MISCELLANEOUS AND SPECIALTY RETAIL STORES,2021-22Q4_PC33
Sandwell Metropolitan Borough Council,http://www.sandwell.gov.uk/info/200202/performance_and_spending/3233/government_procurement_cards,07-Jan-2022,Total Housing Revenue Account,SCREWFIX DIRECT,Total Housing Revenue Account,34.69,"BUILDING MATERIALS, LUMBER STORES",2021-22Q4_PC34
Sandwell Metropolitan Borough Council,http://www.sandwell.gov.uk/info/200202/performance_and_spending/3233/government_procurement_cards,07-Jan-2022,Total Housing Revenue Account,HOLLY TRUE PRODUCTS,Total Housing Revenue Account,1344,BUSINESS SERVICES-NOT ELSEWHERE CLASSIFIED,2021-22Q4_PC35
Sandwell Metropolitan Borough Council,http://www.sandwell.gov.uk/info/200202/performance_and_spending/3233/government_procurement_cards,07-Jan-2022,Childrens Services,Amazon.co.uk PR00W93W5,Childrens Services,12.99,DIRECT MARKETING-OTHER DIRECT MARKETERS/NOT ELSEW.,2021-22Q4_PC36
Sandwell Metropolitan Borough Council,http://www.sandwell.gov.uk/info/200202/performance_and_spending/3233/government_procurement_cards,07-Jan-2022,Childrens Services,TOOLSTATION UK,Childrens Services,64.98,HARDWARE STORES,2021-22Q4_PC37
Sandwell Metropolitan Borough Council,http://www.sandwell.gov.uk/info/200202/performance_and_spending/3233/government_procurement_cards,07-Jan-2022,Director of Law & Governance,AMZNMktplace,Assistant Chief Executive (Excl SIU),49.99,MISCELLANEOUS AND SPECIALTY RETAIL STORES,2021-22Q4_PC38
Sandwell Metropolitan Borough Council,http://www.sandwell.gov.uk/info/200202/performance_and_spending/3233/government_procurement_cards,07-Jan-2022,Total Borough Economy,MAJESTIC WINE,Total Adult Social Care,73.82,"PACKAGE STORES, BEER, WINE, LIQUOR",2021-22Q4_PC39
Sandwell Metropolitan Borough Council,http://www.sandwell.gov.uk/info/200202/performance_and_spending/3233/government_procurement_cards,07-Jan-2022,Total Borough Economy,GLOBAL WINES (BHAM) LT,Total Adult Social Care,22.88,"PACKAGE STORES, BEER, WINE, LIQUOR",2021-22Q4_PC40
Sandwell Metropolitan Borough Council,http://www.sandwell.gov.uk/info/200202/performance_and_spending/3233/government_procurement_cards,07-Jan-2022,Total Borough Economy,GLOBAL FOODS (BHAM) LT,Total Adult Social Care,9.7,"PACKAGE STORES, BEER, WINE, LIQUOR",2021-22Q4_PC41
Sandwell Metropolitan Borough Council,http://www.sandwell.gov.uk/info/200202/performance_and_spending/3233/government_procurement_cards,07-Jan-2022,Total Borough Economy,GOMPELS HEALTHCARE,Total Adult Social Care,79.78,WHOLESALE CLUBS,2021-22Q4_PC42
Sandwell Metropolitan Borough Council,http://www.sandwell.gov.uk/info/200202/performance_and_spending/3233/government_procurement_cards,07-Jan-2022,Childrens Services,AMZNMktplace,Childrens Services,21.98,MISCELLANEOUS AND SPECIALTY RETAIL STORES,2021-22Q4_PC43
Sandwell Metropolitan Borough Council,http://www.sandwell.gov.uk/info/200202/performance_and_spending/3233/government_procurement_cards,07-Jan-2022,Childrens Services,AMZNMKTPLACE AMAZON.CO,Childrens Services,21.98,MISCELLANEOUS AND SPECIALTY RETAIL STORES,2021-22Q4_PC44
Sandwell Metropolitan Borough Council,http://www.sandwell.gov.uk/info/200202/performance_and_spending/3233/government_procurement_cards,07-Jan-2022,Childrens Services,AMZNMKTPLACE AMAZON.CO,Childrens Services,53.94,MISCELLANEOUS AND SPECIALTY RETAIL STORES,2021-22Q4_PC45
Sandwell Metropolitan Borough Council,http://www.sandwell.gov.uk/info/200202/performance_and_spending/3233/government_procurement_cards,07-Jan-2022,Childrens Services,WWW.THEWORKS.CO.UK,Childrens Services,70,DISCOUNT STORES,2021-22Q4_PC46
Sandwell Metropolitan Borough Council,http://www.sandwell.gov.uk/info/200202/performance_and_spending/3233/government_procurement_cards,07-Jan-2022,Total ASCHWB,AMZNMktplace,Total Adult Social Care,68.47,MISCELLANEOUS AND SPECIALTY RETAIL STORES,2021-22Q4_PC47
Sandwell Metropolitan Borough Council,http://www.sandwell.gov.uk/info/200202/performance_and_spending/3233/government_procurement_cards,07-Jan-2022,Total Borough Economy,B&Q LTD,Total Adult Social Care,-76.25,"BUILDING MATERIALS, LUMBER STORES",2021-22Q4_PC48
Sandwell Metropolitan Borough Council,http://www.sandwell.gov.uk/info/200202/performance_and_spending/3233/government_procurement_cards,07-Jan-2022,Total Borough Economy,B&Q LTD,Total Adult Social Care,-23.75,"BUILDING MATERIALS, LUMBER STORES",2021-22Q4_PC49
Sandwell Metropolitan Borough Council,http://www.sandwell.gov.uk/info/200202/performance_and_spending/3233/government_procurement_cards,07-Jan-2022,Total ASCHWB,Amazon.co.uk W09LJ4YP5,Total Adult Social Care,21.99,DIRECT MARKETING-OTHER DIRECT MARKETERS/NOT ELSEW.,2021-22Q4_PC50
Sandwell Metropolitan Borough Council,http://www.sandwell.gov.uk/info/200202/performance_and_spending/3233/government_procurement_cards,07-Jan-2022,Total ASCHWB,AMZNMktplace,Total Adult Social Care,247.92,MISCELLANEOUS AND SPECIALTY RETAIL STORES,2021-22Q4_PC51
Sandwell Metropolitan Borough Council,http://www.sandwell.gov.uk/info/200202/performance_and_spending/3233/government_procurement_cards,07-Jan-2022,Childrens Services,ASDA,Childrens Services,38.01,"GROCERY STORES, SUPERMARKETS",2021-22Q4_PC52
Sandwell Metropolitan Borough Council,http://www.sandwell.gov.uk/info/200202/performance_and_spending/3233/government_procurement_cards,07-Jan-2022,Total Business Strategy & Change,AMZNMktplace,Neighbourhoods,16.98,MISCELLANEOUS AND SPECIALTY RETAIL STORES,2021-22Q4_PC53
Sandwell Metropolitan Borough Council,http://www.sandwell.gov.uk/info/200202/performance_and_spending/3233/government_procurement_cards,07-Jan-2022,Total Business Strategy & Change,WWW.PANELWAREHOUSE.COM,Neighbourhoods,240.9,BUSINESS SERVICES-NOT ELSEWHERE CLASSIFIED,2021-22Q4_PC54
Sandwell Metropolitan Borough Council,http://www.sandwell.gov.uk/info/200202/performance_and_spending/3233/government_procurement_cards,07-Jan-2022,FINANCE (Inc SIU),AMZNMktplace,Total Adult Social Care,228.92,MISCELLANEOUS AND SPECIALTY RETAIL STORES,2021-22Q4_PC55
Sandwell Metropolitan Borough Council,http://www.sandwell.gov.uk/info/200202/performance_and_spending/3233/government_procurement_cards,07-Jan-2022,FINANCE (Inc SIU),AMZNMktplace,Total Adult Social Care,100.96,MISCELLANEOUS AND SPECIALTY RETAIL STORES,2021-22Q4_PC56
Sandwell Metropolitan Borough Council,http://www.sandwell.gov.uk/info/200202/performance_and_spending/3233/government_procurement_cards,07-Jan-2022,Total ASCHWB,AMZNMKTPLACE AMAZON.CO,Total Adult Social Care,89.95,MISCELLANEOUS AND SPECIALTY RETAIL STORES,2021-22Q4_PC57
Sandwell Metropolitan Borough Council,http://www.sandwell.gov.uk/info/200202/performance_and_spending/3233/government_procurement_cards,07-Jan-2022,Total Housing Revenue Account,AMZNMktplace,Total Housing Revenue Account,44.79,MISCELLANEOUS AND SPECIALTY RETAIL STORES,2021-22Q4_PC58
Sandwell Metropolitan Borough Council,http://www.sandwell.gov.uk/info/200202/performance_and_spending/3233/government_procurement_cards,07-Jan-2022,Individual School Budgets With Inclusion,Amazon.co.uk K06PD1LQ5,Individual School Budgets With Inclusion,21.91,DIRECT MARKETING-OTHER DIRECT MARKETERS/NOT ELSEW.,2021-22Q4_PC59
Sandwell Metropolitan Borough Council,http://www.sandwell.gov.uk/info/200202/performance_and_spending/3233/government_procurement_cards,07-Jan-2022,Total ASCHWB,Flextronics,Total Adult Social Care,48,COMPUTER MAIN./REPAIR/SERVICES NOT ELSEWHERE CLASS,2021-22Q4_PC60
Sandwell Metropolitan Borough Council,http://www.sandwell.gov.uk/info/200202/performance_and_spending/3233/government_procurement_cards,07-Jan-2022,Housing & Assets Total,Hotel at Booking.com,Corporate Management,113.05,"LODGING-HOTELS,MOTELS,RESORTS-NOT CLASSIFIED",2021-22Q4_PC61
Sandwell Metropolitan Borough Council,http://www.sandwell.gov.uk/info/200202/performance_and_spending/3233/government_procurement_cards,07-Jan-2022,Total Business Strategy & Change,AMZNMKTPLACE AMAZON.CO,Assistant Chief Executive (Excl SIU),150.2,MISCELLANEOUS AND SPECIALTY RETAIL STORES,2021-22Q4_PC62
Sandwell Metropolitan Borough Council,http://www.sandwell.gov.uk/info/200202/performance_and_spending/3233/government_procurement_cards,10-Jan-2022,Total Borough Economy,AMZNMktplace,Total Adult Social Care,2455.55,MISCELLANEOUS AND SPECIALTY RETAIL STORES,2021-22Q4_PC63
Sandwell Metropolitan Borough Council,http://www.sandwell.gov.uk/info/200202/performance_and_spending/3233/government_procurement_cards,10-Jan-2022,FINANCE (Inc SIU),Amazon Prime 6D4HP0VW5,Assistant Chief Executive (Excl SIU),7.99,DIRECT MARKETING-CONTINUITY/SUBSCRIPTION MERCHANTS,2021-22Q4_PC64
Sandwell Metropolitan Borough Council,http://www.sandwell.gov.uk/info/200202/performance_and_spending/3233/government_procurement_cards,10-Jan-2022,Childrens Services,SP SERVICES UK LTD,Childrens Services,195.43,"HEALTH PRACTITIONERS, MEDICAL SRVCS-NOT ELSEWHERE",2021-22Q4_PC65
Sandwell Metropolitan Borough Council,http://www.sandwell.gov.uk/info/200202/performance_and_spending/3233/government_procurement_cards,10-Jan-2022,Director of Law & Governance,WWW.OFFICETEAMCONNECT.,Assistant Chief Executive (Excl SIU),18.52,STATIONERY/OFFICE SUPPLIES/PRINTING & WRITING PAP.,2021-22Q4_PC66
Sandwell Metropolitan Borough Council,http://www.sandwell.gov.uk/info/200202/performance_and_spending/3233/government_procurement_cards,10-Jan-2022,Director of Law & Governance,WWW.OFFICETEAMCONNECT.,Assistant Chief Executive (Excl SIU),218.4,STATIONERY/OFFICE SUPPLIES/PRINTING & WRITING PAP.,2021-22Q4_PC67
Sandwell Metropolitan Borough Council,http://www.sandwell.gov.uk/info/200202/performance_and_spending/3233/government_procurement_cards,10-Jan-2022,Total Borough Economy,SAINSBURYS S MKTS,Total Adult Social Care,86.89,"GROCERY STORES, SUPERMARKETS",2021-22Q4_PC68
Sandwell Metropolitan Borough Council,http://www.sandwell.gov.uk/info/200202/performance_and_spending/3233/government_procurement_cards,10-Jan-2022,Total Borough Economy,SAINSBURYS S/MKTS,Total Adult Social Care,3.45,"GROCERY STORES, SUPERMARKETS",2021-22Q4_PC69
Sandwell Metropolitan Borough Council,http://www.sandwell.gov.uk/info/200202/performance_and_spending/3233/government_procurement_cards,10-Jan-2022,Childrens Services,AMZNMktplace,Childrens Services,99.84,MISCELLANEOUS AND SPECIALTY RETAIL STORES,2021-22Q4_PC70
Sandwell Metropolitan Borough Council,http://www.sandwell.gov.uk/info/200202/performance_and_spending/3233/government_procurement_cards,10-Jan-2022,Total ASCHWB,EBAY COMMERCE UK LTD,Total Adult Social Care,-130,DEPARTMENT STORES,2021-22Q4_PC71
Sandwell Metropolitan Borough Council,http://www.sandwell.gov.uk/info/200202/performance_and_spending/3233/government_procurement_cards,10-Jan-2022,Total Borough Economy,AMZNMKTPLACE AMAZON.CO,Total Adult Social Care,32.99,MISCELLANEOUS AND SPECIALTY RETAIL STORES,2021-22Q4_PC72
Sandwell Metropolitan Borough Council,http://www.sandwell.gov.uk/info/200202/performance_and_spending/3233/government_procurement_cards,10-Jan-2022,Total Borough Economy,ANC Ancestry.co.uk,Total Adult Social Care,59.99,DIRECT MARKETING-CONTINUITY/SUBSCRIPTION MERCHANTS,2021-22Q4_PC73
Sandwell Metropolitan Borough Council,http://www.sandwell.gov.uk/info/200202/performance_and_spending/3233/government_procurement_cards,10-Jan-2022,Total Borough Economy,Amazon.co.uk DS3RQ2DV5,Total Adult Social Care,3.64,DIRECT MARKETING-OTHER DIRECT MARKETERS/NOT ELSEW.,2021-22Q4_PC74
Sandwell Metropolitan Borough Council,http://www.sandwell.gov.uk/info/200202/performance_and_spending/3233/government_procurement_cards,10-Jan-2022,Total Borough Economy,SCREWFIX DIRECT,Total Adult Social Care,73.07,"BUILDING MATERIALS, LUMBER STORES",2021-22Q4_PC75
Sandwell Metropolitan Borough Council,http://www.sandwell.gov.uk/info/200202/performance_and_spending/3233/government_procurement_cards,10-Jan-2022,Regeneration & Growth,Amazon.co.uk L45G33DD5,Regeneration And The Economy,139,DIRECT MARKETING-OTHER DIRECT MARKETERS/NOT ELSEW.,2021-22Q4_PC76
Sandwell Metropolitan Borough Council,http://www.sandwell.gov.uk/info/200202/performance_and_spending/3233/government_procurement_cards,10-Jan-2022,Regeneration & Growth,SMS CONNECTIONS,#N/A,384.58,"FUEL DEALERS-COAL, FUEL OIL, LIQ PETROLEUM, WOOD",2021-22Q4_PC77
Sandwell Metropolitan Borough Council,http://www.sandwell.gov.uk/info/200202/performance_and_spending/3233/government_procurement_cards,10-Jan-2022,Total ASCHWB,ENGELBERT STRAUSS LTD,Total Adult Social Care,110.88,"BUILDING MATERIALS, LUMBER STORES",2021-22Q4_PC78
Sandwell Metropolitan Borough Council,http://www.sandwell.gov.uk/info/200202/performance_and_spending/3233/government_procurement_cards,10-Jan-2022,Total ASCHWB,ENGELBERT STRAUSS LTD,Total Adult Social Care,178.8,"BUILDING MATERIALS, LUMBER STORES",2021-22Q4_PC79
Sandwell Metropolitan Borough Council,http://www.sandwell.gov.uk/info/200202/performance_and_spending/3233/government_procurement_cards,10-Jan-2022,Total ASCHWB,AMZNMktplace,Total Adult Social Care,207.54,MISCELLANEOUS AND SPECIALTY RETAIL STORES,2021-22Q4_PC80
Sandwell Metropolitan Borough Council,http://www.sandwell.gov.uk/info/200202/performance_and_spending/3233/government_procurement_cards,10-Jan-2022,Total ASCHWB,AMZNMktplace,Total Adult Social Care,50.9,MISCELLANEOUS AND SPECIALTY RETAIL STORES,2021-22Q4_PC81
Sandwell Metropolitan Borough Council,http://www.sandwell.gov.uk/info/200202/performance_and_spending/3233/government_procurement_cards,10-Jan-2022,Total ASCHWB,WWW.OFFICETEAMCONNECT.,Total Adult Social Care,159.6,STATIONERY/OFFICE SUPPLIES/PRINTING & WRITING PAP.,2021-22Q4_PC82
Sandwell Metropolitan Borough Council,http://www.sandwell.gov.uk/info/200202/performance_and_spending/3233/government_procurement_cards,10-Jan-2022,Childrens Services,B&M RETAIL LTD,Childrens Services,6.16,MISCELLANEOUS GENERAL MERCHANDISE,2021-22Q4_PC83
Sandwell Metropolitan Borough Council,http://www.sandwell.gov.uk/info/200202/performance_and_spending/3233/government_procurement_cards,10-Jan-2022,Childrens Services,TESCO PAY AT PUMP 4237,Childrens Services,7.35,"FUEL DISPENSER, AUTOMATED",2021-22Q4_PC84
Sandwell Metropolitan Borough Council,http://www.sandwell.gov.uk/info/200202/performance_and_spending/3233/government_procurement_cards,10-Jan-2022,FINANCE (Inc SIU),Amazon.co.uk YQ27250H5,Total Adult Social Care,45.93,DIRECT MARKETING-OTHER DIRECT MARKETERS/NOT ELSEW.,2021-22Q4_PC85
Sandwell Metropolitan Borough Council,http://www.sandwell.gov.uk/info/200202/performance_and_spending/3233/government_procurement_cards,10-Jan-2022,FINANCE (Inc SIU),WWW.OFFICETEAMCONNECT.,Total Adult Social Care,8.83,STATIONERY/OFFICE SUPPLIES/PRINTING & WRITING PAP.,2021-22Q4_PC86
Sandwell Metropolitan Borough Council,http://www.sandwell.gov.uk/info/200202/performance_and_spending/3233/government_procurement_cards,10-Jan-2022,FINANCE (Inc SIU),AMZNMktplace,Total Adult Social Care,191.94,MISCELLANEOUS AND SPECIALTY RETAIL STORES,2021-22Q4_PC87
Sandwell Metropolitan Borough Council,http://www.sandwell.gov.uk/info/200202/performance_and_spending/3233/government_procurement_cards,10-Jan-2022,Total Housing Revenue Account,ARGOS LTD,Total Housing Revenue Account,105,DISCOUNT STORES,2021-22Q4_PC88
Sandwell Metropolitan Borough Council,http://www.sandwell.gov.uk/info/200202/performance_and_spending/3233/government_procurement_cards,10-Jan-2022,Total Borough Economy,Amazon.co.uk S40MQ2F25,Total Adult Social Care,152.59,DIRECT MARKETING-OTHER DIRECT MARKETERS/NOT ELSEW.,2021-22Q4_PC89
Sandwell Metropolitan Borough Council,http://www.sandwell.gov.uk/info/200202/performance_and_spending/3233/government_procurement_cards,10-Jan-2022,Total Housing Revenue Account,Dunelm,Total Housing Revenue Account,42.95,"EQUIP, FURNITURE, HOME FURNSHNGS STRS (EXCPT APPL)",2021-22Q4_PC90
Sandwell Metropolitan Borough Council,http://www.sandwell.gov.uk/info/200202/performance_and_spending/3233/government_procurement_cards,10-Jan-2022,Total Housing Revenue Account,AMZNMktplace,Total Housing Revenue Account,204.98,MISCELLANEOUS AND SPECIALTY RETAIL STORES,2021-22Q4_PC91
Sandwell Metropolitan Borough Council,http://www.sandwell.gov.uk/info/200202/performance_and_spending/3233/government_procurement_cards,10-Jan-2022,Total Housing Revenue Account,AMZNMktplace,Total Housing Revenue Account,23.99,MISCELLANEOUS AND SPECIALTY RETAIL STORES,2021-22Q4_PC92
Sandwell Metropolitan Borough Council,http://www.sandwell.gov.uk/info/200202/performance_and_spending/3233/government_procurement_cards,10-Jan-2022,Total Business Strategy & Change,AMZNMKTPLACE AMAZON.CO,Assistant Chief Executive (Excl SIU),249,MISCELLANEOUS AND SPECIALTY RETAIL STORES,2021-22Q4_PC93
Sandwell Metropolitan Borough Council,http://www.sandwell.gov.uk/info/200202/performance_and_spending/3233/government_procurement_cards,10-Jan-2022,Childrens Services,SAINSBURYS S/MKTS,Childrens Services,41.85,"GROCERY STORES, SUPERMARKETS",2021-22Q4_PC94
Sandwell Metropolitan Borough Council,http://www.sandwell.gov.uk/info/200202/performance_and_spending/3233/government_procurement_cards,10-Jan-2022,Total ASCHWB,ARGOS LTD,Total Adult Social Care,34,DISCOUNT STORES,2021-22Q4_PC95
Sandwell Metropolitan Borough Council,http://www.sandwell.gov.uk/info/200202/performance_and_spending/3233/government_procurement_cards,10-Jan-2022,Housing & Assets Total,Amazon Prime XS56G2WQ5,Corporate Management,7.99,DIRECT MARKETING-CONTINUITY/SUBSCRIPTION MERCHANTS,2021-22Q4_PC96
Sandwell Metropolitan Borough Council,http://www.sandwell.gov.uk/info/200202/performance_and_spending/3233/government_procurement_cards,10-Jan-2022,Director of Law & Governance,CARTRIDGEPEOPLE.COM,Assistant Chief Executive (Excl SIU),138.9,STATIONERY/OFFICE SUPPLIES/PRINTING & WRITING PAP.,2021-22Q4_PC97
Sandwell Metropolitan Borough Council,http://www.sandwell.gov.uk/info/200202/performance_and_spending/3233/government_procurement_cards,11-Jan-2022,Total Housing Revenue Account,TRAVIS PERKINS,Total Housing Revenue Account,49.5,"BUILDING MATERIALS, LUMBER STORES",2021-22Q4_PC98
Sandwell Metropolitan Borough Council,http://www.sandwell.gov.uk/info/200202/performance_and_spending/3233/government_procurement_cards,11-Jan-2022,Total Borough Economy,AMZNMKTPLACE AMAZON.CO,Total Adult Social Care,44.61,MISCELLANEOUS AND SPECIALTY RETAIL STORES,2021-22Q4_PC99
Sandwell Metropolitan Borough Council,http://www.sandwell.gov.uk/info/200202/performance_and_spending/3233/government_procurement_cards,11-Jan-2022,Childrens Services,AMZNMktplace,Childrens Services,37.99,MISCELLANEOUS AND SPECIALTY RETAIL STORES,2021-22Q4_PC100
Sandwell Metropolitan Borough Council,http://www.sandwell.gov.uk/info/200202/performance_and_spending/3233/government_procurement_cards,11-Jan-2022,Childrens Services,AMZNMktplace,Childrens Services,52.97,MISCELLANEOUS AND SPECIALTY RETAIL STORES,2021-22Q4_PC101
Sandwell Metropolitan Borough Council,http://www.sandwell.gov.uk/info/200202/performance_and_spending/3233/government_procurement_cards,11-Jan-2022,Childrens Services,LITERACYTRUST.ORG.UK,Childrens Services,50,"ORGANIZATIONS, CHARITABLE AND SOCIAL SERVICES",2021-22Q4_PC102
Sandwell Metropolitan Borough Council,http://www.sandwell.gov.uk/info/200202/performance_and_spending/3233/government_procurement_cards,11-Jan-2022,Childrens Services,AMZNMktplace,Childrens Services,10.97,MISCELLANEOUS AND SPECIALTY RETAIL STORES,2021-22Q4_PC103
Sandwell Metropolitan Borough Council,http://www.sandwell.gov.uk/info/200202/performance_and_spending/3233/government_procurement_cards,11-Jan-2022,Childrens Services,AMZNMktplace,Childrens Services,10.97,MISCELLANEOUS AND SPECIALTY RETAIL STORES,2021-22Q4_PC104
Sandwell Metropolitan Borough Council,http://www.sandwell.gov.uk/info/200202/performance_and_spending/3233/government_procurement_cards,11-Jan-2022,Childrens Services,AMZNMktplace,Childrens Services,11.48,MISCELLANEOUS AND SPECIALTY RETAIL STORES,2021-22Q4_PC105
Sandwell Metropolitan Borough Council,http://www.sandwell.gov.uk/info/200202/performance_and_spending/3233/government_procurement_cards,11-Jan-2022,Childrens Services,AMZNMktplace,Childrens Services,12.48,MISCELLANEOUS AND SPECIALTY RETAIL STORES,2021-22Q4_PC106
Sandwell Metropolitan Borough Council,http://www.sandwell.gov.uk/info/200202/performance_and_spending/3233/government_procurement_cards,11-Jan-2022,Childrens Services,AMZNMKTPLACE AMAZON.CO,Childrens Services,9.97,MISCELLANEOUS AND SPECIALTY RETAIL STORES,2021-22Q4_PC107
Sandwell Metropolitan Borough Council,http://www.sandwell.gov.uk/info/200202/performance_and_spending/3233/government_procurement_cards,11-Jan-2022,Childrens Services,AMZNMktplace,Childrens Services,39.99,MISCELLANEOUS AND SPECIALTY RETAIL STORES,2021-22Q4_PC108
Sandwell Metropolitan Borough Council,http://www.sandwell.gov.uk/info/200202/performance_and_spending/3233/government_procurement_cards,11-Jan-2022,Regeneration & Growth,Flextronics,Regeneration And The Economy,349.61,COMPUTER MAIN./REPAIR/SERVICES NOT ELSEWHERE CLASS,2021-22Q4_PC109
Sandwell Metropolitan Borough Council,http://www.sandwell.gov.uk/info/200202/performance_and_spending/3233/government_procurement_cards,11-Jan-2022,Total ASCHWB,AMZNMktplace,Total Adult Social Care,61.44,MISCELLANEOUS AND SPECIALTY RETAIL STORES,2021-22Q4_PC110
Sandwell Metropolitan Borough Council,http://www.sandwell.gov.uk/info/200202/performance_and_spending/3233/government_procurement_cards,11-Jan-2022,Total Borough Economy,BSI STANDARDS LTD,Total Adult Social Care,293.96,MISCELLANEOUS PUBLISHING AND PRINTING,2021-22Q4_PC111
Sandwell Metropolitan Borough Council,http://www.sandwell.gov.uk/info/200202/performance_and_spending/3233/government_procurement_cards,11-Jan-2022,Total Borough Economy,BSI STANDARDS LTD,Total Adult Social Care,284.96,MISCELLANEOUS PUBLISHING AND PRINTING,2021-22Q4_PC112
Sandwell Metropolitan Borough Council,http://www.sandwell.gov.uk/info/200202/performance_and_spending/3233/government_procurement_cards,11-Jan-2022,FINANCE (Inc SIU),AMZNMKTPLACE AMAZON.CO,Total Adult Social Care,57.78,MISCELLANEOUS AND SPECIALTY RETAIL STORES,2021-22Q4_PC113
Sandwell Metropolitan Borough Council,http://www.sandwell.gov.uk/info/200202/performance_and_spending/3233/government_procurement_cards,11-Jan-2022,Total Housing Revenue Account,AMZNMKTPLACE AMAZON.CO,Total Housing Revenue Account,14.99,MISCELLANEOUS AND SPECIALTY RETAIL STORES,2021-22Q4_PC114
Sandwell Metropolitan Borough Council,http://www.sandwell.gov.uk/info/200202/performance_and_spending/3233/government_procurement_cards,11-Jan-2022,Total Housing Revenue Account,CURRYS ONLINE,Total Housing Revenue Account,37.68,ELECTRONIC SALES,2021-22Q4_PC115
Sandwell Metropolitan Borough Council,http://www.sandwell.gov.uk/info/200202/performance_and_spending/3233/government_procurement_cards,11-Jan-2022,Total Housing Revenue Account,CURRYS ONLINE,Total Housing Revenue Account,37.68,ELECTRONIC SALES,2021-22Q4_PC116
Sandwell Metropolitan Borough Council,http://www.sandwell.gov.uk/info/200202/performance_and_spending/3233/government_procurement_cards,11-Jan-2022,Total Business Strategy & Change,AMZNMktplace,Assistant Chief Executive (Excl SIU),22.98,MISCELLANEOUS AND SPECIALTY RETAIL STORES,2021-22Q4_PC117
Sandwell Metropolitan Borough Council,http://www.sandwell.gov.uk/info/200202/performance_and_spending/3233/government_procurement_cards,11-Jan-2022,Housing & Assets Total,WWW.SANDWELL.GOV.UK,Corporate Management,35,GOVERNMENT SERVICES-NOT ELSEWHERE CLASSIFIED,2021-22Q4_PC118
Sandwell Metropolitan Borough Council,http://www.sandwell.gov.uk/info/200202/performance_and_spending/3233/government_procurement_cards,11-Jan-2022,Housing & Assets Total,Amazon Prime,Corporate Management,-7.99,DIRECT MARKETING-CONTINUITY/SUBSCRIPTION MERCHANTS,2021-22Q4_PC119
Sandwell Metropolitan Borough Council,http://www.sandwell.gov.uk/info/200202/performance_and_spending/3233/government_procurement_cards,11-Jan-2022,Total Housing Revenue Account,AMZNMktplace,Total Housing Revenue Account,23.98,MISCELLANEOUS AND SPECIALTY RETAIL STORES,2021-22Q4_PC120
Sandwell Metropolitan Borough Council,http://www.sandwell.gov.uk/info/200202/performance_and_spending/3233/government_procurement_cards,12-Jan-2022,Regeneration & Growth,SCREWFIX DIRECT,Regeneration And The Economy,49.99,"BUILDING MATERIALS, LUMBER STORES",2021-22Q4_PC121
Sandwell Metropolitan Borough Council,http://www.sandwell.gov.uk/info/200202/performance_and_spending/3233/government_procurement_cards,12-Jan-2022,Total Housing Revenue Account,TRAVIS PERKINS,Total Housing Revenue Account,49.2,"BUILDING MATERIALS, LUMBER STORES",2021-22Q4_PC122
Sandwell Metropolitan Borough Council,http://www.sandwell.gov.uk/info/200202/performance_and_spending/3233/government_procurement_cards,12-Jan-2022,Total Borough Economy,Amazon.co.uk U21056RX5,Total Adult Social Care,19.29,DIRECT MARKETING-OTHER DIRECT MARKETERS/NOT ELSEW.,2021-22Q4_PC123
Sandwell Metropolitan Borough Council,http://www.sandwell.gov.uk/info/200202/performance_and_spending/3233/government_procurement_cards,12-Jan-2022,Director of Law & Governance,AMZNMKTPLACE AMAZON.CO,Assistant Chief Executive (Excl SIU),134.7,MISCELLANEOUS AND SPECIALTY RETAIL STORES,2021-22Q4_PC124
Sandwell Metropolitan Borough Council,http://www.sandwell.gov.uk/info/200202/performance_and_spending/3233/government_procurement_cards,12-Jan-2022,Total ASCHWB,AMZNMKTPLACE AMAZON.CO,Total Adult Social Care,59.26,MISCELLANEOUS AND SPECIALTY RETAIL STORES,2021-22Q4_PC125
Sandwell Metropolitan Borough Council,http://www.sandwell.gov.uk/info/200202/performance_and_spending/3233/government_procurement_cards,12-Jan-2022,Regeneration & Growth,BW LEGAL,Regeneration And The Economy,19.25,PROFESSIONAL SERVICES-NOT ELSEWHERE CLASSIFIED,2021-22Q4_PC126
Sandwell Metropolitan Borough Council,http://www.sandwell.gov.uk/info/200202/performance_and_spending/3233/government_procurement_cards,12-Jan-2022,Regeneration & Growth,HSD ONLINE,Regeneration And The Economy,103.36,GENERAL CONTRACTORS/RESIDENTIAL BUILDINGS,2021-22Q4_PC127
Sandwell Metropolitan Borough Council,http://www.sandwell.gov.uk/info/200202/performance_and_spending/3233/government_procurement_cards,12-Jan-2022,Childrens Services,TIMPSON LTD,Childrens Services,32,MISCELLANEOUS AND SPECIALTY RETAIL STORES,2021-22Q4_PC128
Sandwell Metropolitan Borough Council,http://www.sandwell.gov.uk/info/200202/performance_and_spending/3233/government_procurement_cards,12-Jan-2022,Childrens Services,Amazon.co.uk KR4MM3655,Childrens Services,109,DIRECT MARKETING-OTHER DIRECT MARKETERS/NOT ELSEW.,2021-22Q4_PC129
Sandwell Metropolitan Borough Council,http://www.sandwell.gov.uk/info/200202/performance_and_spending/3233/government_procurement_cards,12-Jan-2022,Childrens Services,GWYNEDD DISPOSABLES CY,Childrens Services,201.91,"SANITATION, POLISHING & SPECIALITY CLEANING PREP",2021-22Q4_PC130
Sandwell Metropolitan Borough Council,http://www.sandwell.gov.uk/info/200202/performance_and_spending/3233/government_procurement_cards,12-Jan-2022,Childrens Services,DREAMS LTD,Childrens Services,567,"EQUIP, FURNITURE, HOME FURNSHNGS STRS (EXCPT APPL)",2021-22Q4_PC131
Sandwell Metropolitan Borough Council,http://www.sandwell.gov.uk/info/200202/performance_and_spending/3233/government_procurement_cards,12-Jan-2022,Regeneration & Growth,ARGOS LTD,Regeneration And The Economy,27.94,DISCOUNT STORES,2021-22Q4_PC132
Sandwell Metropolitan Borough Council,http://www.sandwell.gov.uk/info/200202/performance_and_spending/3233/government_procurement_cards,12-Jan-2022,Total Borough Economy,SCREWFIX DIRECT,Total Adult Social Care,55.49,"BUILDING MATERIALS, LUMBER STORES",2021-22Q4_PC133
Sandwell Metropolitan Borough Council,http://www.sandwell.gov.uk/info/200202/performance_and_spending/3233/government_procurement_cards,12-Jan-2022,Total ASCHWB,AMZNMktplace,Total Adult Social Care,17.79,MISCELLANEOUS AND SPECIALTY RETAIL STORES,2021-22Q4_PC134
Sandwell Metropolitan Borough Council,http://www.sandwell.gov.uk/info/200202/performance_and_spending/3233/government_procurement_cards,12-Jan-2022,Childrens Services,GOMPELS HEALTHCARE,Childrens Services,184.44,WHOLESALE CLUBS,2021-22Q4_PC135
Sandwell Metropolitan Borough Council,http://www.sandwell.gov.uk/info/200202/performance_and_spending/3233/government_procurement_cards,12-Jan-2022,Total Business Strategy & Change,AMZNMktplace,Neighbourhoods,21.19,MISCELLANEOUS AND SPECIALTY RETAIL STORES,2021-22Q4_PC136
Sandwell Metropolitan Borough Council,http://www.sandwell.gov.uk/info/200202/performance_and_spending/3233/government_procurement_cards,12-Jan-2022,Housing & Assets Total,PREMIER INN,Corporate Management,47,PREMIER INN,2021-22Q4_PC137
Sandwell Metropolitan Borough Council,http://www.sandwell.gov.uk/info/200202/performance_and_spending/3233/government_procurement_cards,12-Jan-2022,Total ASCHWB,Flextronics,Total Adult Social Care,355.73,COMPUTER MAIN./REPAIR/SERVICES NOT ELSEWHERE CLASS,2021-22Q4_PC138
Sandwell Metropolitan Borough Council,http://www.sandwell.gov.uk/info/200202/performance_and_spending/3233/government_procurement_cards,12-Jan-2022,Housing & Assets Total,AMZNMKTPLACE AMAZON.CO,Corporate Management,169.99,MISCELLANEOUS AND SPECIALTY RETAIL STORES,2021-22Q4_PC139
Sandwell Metropolitan Borough Council,http://www.sandwell.gov.uk/info/200202/performance_and_spending/3233/government_procurement_cards,13-Jan-2022,Total Housing Revenue Account,SECURITY HARDWARE LTD,Total Housing Revenue Account,40.76,"BUILDING MATERIALS, LUMBER STORES",2021-22Q4_PC140
Sandwell Metropolitan Borough Council,http://www.sandwell.gov.uk/info/200202/performance_and_spending/3233/government_procurement_cards,13-Jan-2022,Total Housing Revenue Account,B&Q LTD,Total Housing Revenue Account,87.5,"BUILDING MATERIALS, LUMBER STORES",2021-22Q4_PC141
Sandwell Metropolitan Borough Council,http://www.sandwell.gov.uk/info/200202/performance_and_spending/3233/government_procurement_cards,13-Jan-2022,Childrens Services,AMZNMKTPLACE AMAZON.CO,Childrens Services,59.96,MISCELLANEOUS AND SPECIALTY RETAIL STORES,2021-22Q4_PC142
Sandwell Metropolitan Borough Council,http://www.sandwell.gov.uk/info/200202/performance_and_spending/3233/government_procurement_cards,13-Jan-2022,Childrens Services,AMZNMKTPLACE AMAZON.CO,Childrens Services,14.87,MISCELLANEOUS AND SPECIALTY RETAIL STORES,2021-22Q4_PC143
Sandwell Metropolitan Borough Council,http://www.sandwell.gov.uk/info/200202/performance_and_spending/3233/government_procurement_cards,13-Jan-2022,Childrens Services,AMZNMktplace,Childrens Services,20.14,MISCELLANEOUS AND SPECIALTY RETAIL STORES,2021-22Q4_PC144
Sandwell Metropolitan Borough Council,http://www.sandwell.gov.uk/info/200202/performance_and_spending/3233/government_procurement_cards,13-Jan-2022,Childrens Services,AMZNMKTPLACE AMAZON.CO,Childrens Services,9.97,MISCELLANEOUS AND SPECIALTY RETAIL STORES,2021-22Q4_PC145
Sandwell Metropolitan Borough Council,http://www.sandwell.gov.uk/info/200202/performance_and_spending/3233/government_procurement_cards,13-Jan-2022,Corporate Management,Amazon.co.uk WK5EB9X25,Corporate Management,17.67,DIRECT MARKETING-OTHER DIRECT MARKETERS/NOT ELSEW.,2021-22Q4_PC146
Sandwell Metropolitan Borough Council,http://www.sandwell.gov.uk/info/200202/performance_and_spending/3233/government_procurement_cards,13-Jan-2022,Total Public Health,Amazon.co.uk AW4DJ98G5,Public Health,15.88,DIRECT MARKETING-OTHER DIRECT MARKETERS/NOT ELSEW.,2021-22Q4_PC147
Sandwell Metropolitan Borough Council,http://www.sandwell.gov.uk/info/200202/performance_and_spending/3233/government_procurement_cards,13-Jan-2022,Regeneration & Growth,Amazon.co.uk DO9L055G5,Regeneration And The Economy,99.99,DIRECT MARKETING-OTHER DIRECT MARKETERS/NOT ELSEW.,2021-22Q4_PC148
Sandwell Metropolitan Borough Council,http://www.sandwell.gov.uk/info/200202/performance_and_spending/3233/government_procurement_cards,13-Jan-2022,Childrens Services,AMZNMktplace,Childrens Services,10.99,MISCELLANEOUS AND SPECIALTY RETAIL STORES,2021-22Q4_PC149
Sandwell Metropolitan Borough Council,http://www.sandwell.gov.uk/info/200202/performance_and_spending/3233/government_procurement_cards,13-Jan-2022,Childrens Services,AMZNMktplace,Childrens Services,5.79,MISCELLANEOUS AND SPECIALTY RETAIL STORES,2021-22Q4_PC150
Sandwell Metropolitan Borough Council,http://www.sandwell.gov.uk/info/200202/performance_and_spending/3233/government_procurement_cards,13-Jan-2022,Childrens Services,AMZNMktplace,Childrens Services,6.99,MISCELLANEOUS AND SPECIALTY RETAIL STORES,2021-22Q4_PC151
Sandwell Metropolitan Borough Council,http://www.sandwell.gov.uk/info/200202/performance_and_spending/3233/government_procurement_cards,13-Jan-2022,Total Borough Economy,AMZNMktplace,Total Adult Social Care,7.99,MISCELLANEOUS AND SPECIALTY RETAIL STORES,2021-22Q4_PC152
Sandwell Metropolitan Borough Council,http://www.sandwell.gov.uk/info/200202/performance_and_spending/3233/government_procurement_cards,13-Jan-2022,Total Borough Economy,WWW.BISHOPG.AC.UK,Total Adult Social Care,350,"COLLEGES, UNIV, PRO SCHOOLS, JUNIOR COLLEGES",2021-22Q4_PC153
Sandwell Metropolitan Borough Council,http://www.sandwell.gov.uk/info/200202/performance_and_spending/3233/government_procurement_cards,13-Jan-2022,Total Borough Economy,WWW.BISHOPG.AC.UK,Total Adult Social Care,350,"COLLEGES, UNIV, PRO SCHOOLS, JUNIOR COLLEGES",2021-22Q4_PC154
Sandwell Metropolitan Borough Council,http://www.sandwell.gov.uk/info/200202/performance_and_spending/3233/government_procurement_cards,13-Jan-2022,Total Borough Economy,CLOTC,Total Adult Social Care,600,"ORGANIZATIONS, CHARITABLE AND SOCIAL SERVICES",2021-22Q4_PC155
Sandwell Metropolitan Borough Council,http://www.sandwell.gov.uk/info/200202/performance_and_spending/3233/government_procurement_cards,13-Jan-2022,Childrens Services,POST OFFICE COUNTER,Childrens Services,85,POSTAL SERVICES-GOVERNMENT ONLY,2021-22Q4_PC156
Sandwell Metropolitan Borough Council,http://www.sandwell.gov.uk/info/200202/performance_and_spending/3233/government_procurement_cards,13-Jan-2022,Housing & Assets Total,ASDA STORES,Corporate Management,21.52,"GROCERY STORES, SUPERMARKETS",2021-22Q4_PC157
Sandwell Metropolitan Borough Council,http://www.sandwell.gov.uk/info/200202/performance_and_spending/3233/government_procurement_cards,13-Jan-2022,Total Borough Economy,PAYPAL  ALDENANALYT,Total Adult Social Care,22.28,COMPUTER SOFTWARE STORES,2021-22Q4_PC158
Sandwell Metropolitan Borough Council,http://www.sandwell.gov.uk/info/200202/performance_and_spending/3233/government_procurement_cards,13-Jan-2022,Total Borough Economy,WWW.OFFICETEAMCONNECT.,Total Adult Social Care,92.65,STATIONERY/OFFICE SUPPLIES/PRINTING & WRITING PAP.,2021-22Q4_PC159
Sandwell Metropolitan Borough Council,http://www.sandwell.gov.uk/info/200202/performance_and_spending/3233/government_procurement_cards,13-Jan-2022,Regeneration & Growth,CLAIRE,Regeneration And The Economy,105,"ORGANIZATIONS, CHARITABLE AND SOCIAL SERVICES",2021-22Q4_PC160
Sandwell Metropolitan Borough Council,http://www.sandwell.gov.uk/info/200202/performance_and_spending/3233/government_procurement_cards,13-Jan-2022,Total Borough Economy,WWW.OFFICETEAMCONNECT.,Total Adult Social Care,102.43,STATIONERY/OFFICE SUPPLIES/PRINTING & WRITING PAP.,2021-22Q4_PC161
Sandwell Metropolitan Borough Council,http://www.sandwell.gov.uk/info/200202/performance_and_spending/3233/government_procurement_cards,13-Jan-2022,Total ASCHWB,WWW.PETSATHOME.COM,Total Adult Social Care,45.95,PET SHOPS - PET FOODS AND SUPPLIES,2021-22Q4_PC162
Sandwell Metropolitan Borough Council,http://www.sandwell.gov.uk/info/200202/performance_and_spending/3233/government_procurement_cards,13-Jan-2022,Total ASCHWB,AMZNMktplace,Total Adult Social Care,79,MISCELLANEOUS AND SPECIALTY RETAIL STORES,2021-22Q4_PC163
Sandwell Metropolitan Borough Council,http://www.sandwell.gov.uk/info/200202/performance_and_spending/3233/government_procurement_cards,13-Jan-2022,Total Public Health,MENTIMETER,Public Health,91.02,"COMPUTERS, COMPUTER PERIPHERAL EQUIPMENT, SOFTWARE",2021-22Q4_PC164
Sandwell Metropolitan Borough Council,http://www.sandwell.gov.uk/info/200202/performance_and_spending/3233/government_procurement_cards,13-Jan-2022,Total Housing Revenue Account,BIRMINGHAM TELECOMMUNI,Total Housing Revenue Account,56.33,TELECOMMUNICATION EQUIPMENT INCL TELEPHONE SALES,2021-22Q4_PC165
Sandwell Metropolitan Borough Council,http://www.sandwell.gov.uk/info/200202/performance_and_spending/3233/government_procurement_cards,13-Jan-2022,Total Business Strategy & Change,AMZNMKTPLACE AMAZON.CO,Assistant Chief Executive (Excl SIU),249,MISCELLANEOUS AND SPECIALTY RETAIL STORES,2021-22Q4_PC166
Sandwell Metropolitan Borough Council,http://www.sandwell.gov.uk/info/200202/performance_and_spending/3233/government_procurement_cards,13-Jan-2022,Childrens Services,POST OFFICE COUNTER,Childrens Services,10.2,POSTAL SERVICES-GOVERNMENT ONLY,2021-22Q4_PC167
Sandwell Metropolitan Borough Council,http://www.sandwell.gov.uk/info/200202/performance_and_spending/3233/government_procurement_cards,13-Jan-2022,Housing & Assets Total,POUNDSTRETCHER 328,Corporate Management,17.98,VARIETY STORES,2021-22Q4_PC168
Sandwell Metropolitan Borough Council,http://www.sandwell.gov.uk/info/200202/performance_and_spending/3233/government_procurement_cards,13-Jan-2022,Individual School Budgets With Inclusion,AMZNMktplace,Individual School Budgets With Inclusion,87.5,MISCELLANEOUS AND SPECIALTY RETAIL STORES,2021-22Q4_PC169
Sandwell Metropolitan Borough Council,http://www.sandwell.gov.uk/info/200202/performance_and_spending/3233/government_procurement_cards,13-Jan-2022,Total Housing Revenue Account,ADEXA.CO.UK,Total Housing Revenue Account,151.19,"COMMERCIAL EQUIPMENT, NOT ELSEWHERE CLASSIFIED",2021-22Q4_PC170
Sandwell Metropolitan Borough Council,http://www.sandwell.gov.uk/info/200202/performance_and_spending/3233/government_procurement_cards,13-Jan-2022,Director of Law & Governance,SAINSBURYS S/MKTS,Assistant Chief Executive (Excl SIU),3.4,"GROCERY STORES, SUPERMARKETS",2021-22Q4_PC171
Sandwell Metropolitan Borough Council,http://www.sandwell.gov.uk/info/200202/performance_and_spending/3233/government_procurement_cards,14-Jan-2022,Total Housing Revenue Account,NORDAN UK LTD,Total Housing Revenue Account,64.92,"BUILDING MATERIALS, LUMBER STORES",2021-22Q4_PC172
Sandwell Metropolitan Borough Council,http://www.sandwell.gov.uk/info/200202/performance_and_spending/3233/government_procurement_cards,14-Jan-2022,Total Housing Revenue Account,TRAVIS PERKINS,Total Housing Revenue Account,99.12,"BUILDING MATERIALS, LUMBER STORES",2021-22Q4_PC173
Sandwell Metropolitan Borough Council,http://www.sandwell.gov.uk/info/200202/performance_and_spending/3233/government_procurement_cards,14-Jan-2022,Total Borough Economy,Amazon.co.uk YO13318B5,Total Adult Social Care,33.36,DIRECT MARKETING-OTHER DIRECT MARKETERS/NOT ELSEW.,2021-22Q4_PC174
Sandwell Metropolitan Borough Council,http://www.sandwell.gov.uk/info/200202/performance_and_spending/3233/government_procurement_cards,14-Jan-2022,Total Borough Economy,AMZNMKTPLACE AMAZON.CO,Total Adult Social Care,3.57,MISCELLANEOUS AND SPECIALTY RETAIL STORES,2021-22Q4_PC175
Sandwell Metropolitan Borough Council,http://www.sandwell.gov.uk/info/200202/performance_and_spending/3233/government_procurement_cards,14-Jan-2022,Regeneration & Growth,AMZNMKTPLACE AMAZON.CO,Regeneration And The Economy,31.95,MISCELLANEOUS AND SPECIALTY RETAIL STORES,2021-22Q4_PC176
Sandwell Metropolitan Borough Council,http://www.sandwell.gov.uk/info/200202/performance_and_spending/3233/government_procurement_cards,14-Jan-2022,Housing & Assets Total,STORAGE KING WALSALL,Corporate Management,386.4,"PUBLIC WAREHOUSING-FARM, REFRIG GOODS, HHG STORAGE",2021-22Q4_PC177
Sandwell Metropolitan Borough Council,http://www.sandwell.gov.uk/info/200202/performance_and_spending/3233/government_procurement_cards,14-Jan-2022,Corporate Management,AMZNMktplace,Corporate Management,8.98,MISCELLANEOUS AND SPECIALTY RETAIL STORES,2021-22Q4_PC178
Sandwell Metropolitan Borough Council,http://www.sandwell.gov.uk/info/200202/performance_and_spending/3233/government_procurement_cards,14-Jan-2022,Total Public Health,AMZNMktplace,Public Health,13.49,MISCELLANEOUS AND SPECIALTY RETAIL STORES,2021-22Q4_PC179
Sandwell Metropolitan Borough Council,http://www.sandwell.gov.uk/info/200202/performance_and_spending/3233/government_procurement_cards,14-Jan-2022,Childrens Services,MYHERMES.CO.UK,Childrens Services,37.16,"FREIGHT CARRIER,TRUCKING-LCL/LNG DIST, MVG/STORAGE",2021-22Q4_PC180
Sandwell Metropolitan Borough Council,http://www.sandwell.gov.uk/info/200202/performance_and_spending/3233/government_procurement_cards,14-Jan-2022,Childrens Services,AMZNMktplace,Childrens Services,25.99,MISCELLANEOUS AND SPECIALTY RETAIL STORES,2021-22Q4_PC181
Sandwell Metropolitan Borough Council,http://www.sandwell.gov.uk/info/200202/performance_and_spending/3233/government_procurement_cards,14-Jan-2022,Total Borough Economy,AMZNMKTPLACE AMAZON.CO,Total Adult Social Care,13.99,MISCELLANEOUS AND SPECIALTY RETAIL STORES,2021-22Q4_PC182
Sandwell Metropolitan Borough Council,http://www.sandwell.gov.uk/info/200202/performance_and_spending/3233/government_procurement_cards,14-Jan-2022,Total Borough Economy,WWW.TTS-GROUPS.CO.UK,Total Adult Social Care,239.99,"OFFICE, SCHOOL SUPPLY, AND STATIONERY STORES",2021-22Q4_PC183
Sandwell Metropolitan Borough Council,http://www.sandwell.gov.uk/info/200202/performance_and_spending/3233/government_procurement_cards,14-Jan-2022,Total Borough Economy,WWW.TTS-GROUPS.CO.UK,Total Adult Social Care,239.99,"OFFICE, SCHOOL SUPPLY, AND STATIONERY STORES",2021-22Q4_PC184
Sandwell Metropolitan Borough Council,http://www.sandwell.gov.uk/info/200202/performance_and_spending/3233/government_procurement_cards,14-Jan-2022,Childrens Services,WWW.OFFICETEAMCONNECT.,Childrens Services,243.62,STATIONERY/OFFICE SUPPLIES/PRINTING & WRITING PAP.,2021-22Q4_PC185
Sandwell Metropolitan Borough Council,http://www.sandwell.gov.uk/info/200202/performance_and_spending/3233/government_procurement_cards,14-Jan-2022,Housing & Assets Total,AMZNMKTPLACE AMAZON.CO,Total Adult Social Care,33.62,MISCELLANEOUS AND SPECIALTY RETAIL STORES,2021-22Q4_PC186
Sandwell Metropolitan Borough Council,http://www.sandwell.gov.uk/info/200202/performance_and_spending/3233/government_procurement_cards,14-Jan-2022,Total Borough Economy,AMZNMktplace,Total Adult Social Care,10.99,MISCELLANEOUS AND SPECIALTY RETAIL STORES,2021-22Q4_PC187
Sandwell Metropolitan Borough Council,http://www.sandwell.gov.uk/info/200202/performance_and_spending/3233/government_procurement_cards,14-Jan-2022,Childrens Services,AMZNMktplace,Childrens Services,59.18,MISCELLANEOUS AND SPECIALTY RETAIL STORES,2021-22Q4_PC188
Sandwell Metropolitan Borough Council,http://www.sandwell.gov.uk/info/200202/performance_and_spending/3233/government_procurement_cards,14-Jan-2022,Total ASCHWB,AMZNMktplace,Total Adult Social Care,27.8,MISCELLANEOUS AND SPECIALTY RETAIL STORES,2021-22Q4_PC189
Sandwell Metropolitan Borough Council,http://www.sandwell.gov.uk/info/200202/performance_and_spending/3233/government_procurement_cards,14-Jan-2022,Total Borough Economy,iZ  LAEOG,Total Adult Social Care,100,"ORGANIZATIONS, MEMBERSHIP-NOT ELSEWHERE CLASSIFIED",2021-22Q4_PC190
Sandwell Metropolitan Borough Council,http://www.sandwell.gov.uk/info/200202/performance_and_spending/3233/government_procurement_cards,14-Jan-2022,Total Housing Revenue Account,CURRYS ONLINE,Total Housing Revenue Account,37.68,ELECTRONIC SALES,2021-22Q4_PC191
Sandwell Metropolitan Borough Council,http://www.sandwell.gov.uk/info/200202/performance_and_spending/3233/government_procurement_cards,14-Jan-2022,Total Housing Revenue Account,AMZNMktplace,Total Housing Revenue Account,21.24,MISCELLANEOUS AND SPECIALTY RETAIL STORES,2021-22Q4_PC192
Sandwell Metropolitan Borough Council,http://www.sandwell.gov.uk/info/200202/performance_and_spending/3233/government_procurement_cards,14-Jan-2022,Childrens Services,SAINSBURYS S/MKTS,Childrens Services,46,"GROCERY STORES, SUPERMARKETS",2021-22Q4_PC193
Sandwell Metropolitan Borough Council,http://www.sandwell.gov.uk/info/200202/performance_and_spending/3233/government_procurement_cards,14-Jan-2022,Housing & Assets Total,POUNDLAND LTD 1729,Corporate Management,12,DISCOUNT STORES,2021-22Q4_PC194
Sandwell Metropolitan Borough Council,http://www.sandwell.gov.uk/info/200202/performance_and_spending/3233/government_procurement_cards,14-Jan-2022,Total Borough Economy,AMZNMktplace,Total Adult Social Care,78.97,MISCELLANEOUS AND SPECIALTY RETAIL STORES,2021-22Q4_PC195
Sandwell Metropolitan Borough Council,http://www.sandwell.gov.uk/info/200202/performance_and_spending/3233/government_procurement_cards,17-Jan-2022,Total Housing Revenue Account,CARVERS,Total Housing Revenue Account,196.27,"BUILDING MATERIALS, LUMBER STORES",2021-22Q4_PC196
Sandwell Metropolitan Borough Council,http://www.sandwell.gov.uk/info/200202/performance_and_spending/3233/government_procurement_cards,17-Jan-2022,Total Borough Economy,WWW.THEWORKS.CO.UK,Total Adult Social Care,482,DISCOUNT STORES,2021-22Q4_PC197
Sandwell Metropolitan Borough Council,http://www.sandwell.gov.uk/info/200202/performance_and_spending/3233/government_procurement_cards,17-Jan-2022,Total Borough Economy,WWW.THEWORKS.CO.UK,Total Adult Social Care,-2,DISCOUNT STORES,2021-22Q4_PC198
Sandwell Metropolitan Borough Council,http://www.sandwell.gov.uk/info/200202/performance_and_spending/3233/government_procurement_cards,17-Jan-2022,Childrens Services,Amazon.co.uk 968BR8765,Childrens Services,8.98,DIRECT MARKETING-OTHER DIRECT MARKETERS/NOT ELSEW.,2021-22Q4_PC199
Sandwell Metropolitan Borough Council,http://www.sandwell.gov.uk/info/200202/performance_and_spending/3233/government_procurement_cards,17-Jan-2022,Childrens Services,TESCO STORES 2770,Childrens Services,12,"GROCERY STORES, SUPERMARKETS",2021-22Q4_PC200
Sandwell Metropolitan Borough Council,http://www.sandwell.gov.uk/info/200202/performance_and_spending/3233/government_procurement_cards,17-Jan-2022,Childrens Services,AMZNMKTPLACE AMAZON.CO,Childrens Services,29.11,MISCELLANEOUS AND SPECIALTY RETAIL STORES,2021-22Q4_PC201
Sandwell Metropolitan Borough Council,http://www.sandwell.gov.uk/info/200202/performance_and_spending/3233/government_procurement_cards,17-Jan-2022,Childrens Services,INTERFLORA BRITISH UNI,Childrens Services,47,FLORISTS,2021-22Q4_PC202
Sandwell Metropolitan Borough Council,http://www.sandwell.gov.uk/info/200202/performance_and_spending/3233/government_procurement_cards,17-Jan-2022,Childrens Services,Amazon.co.uk H88LC05F5,Childrens Services,11.66,DIRECT MARKETING-OTHER DIRECT MARKETERS/NOT ELSEW.,2021-22Q4_PC203
Sandwell Metropolitan Borough Council,http://www.sandwell.gov.uk/info/200202/performance_and_spending/3233/government_procurement_cards,17-Jan-2022,Regeneration & Growth,AMZNMKTPLACE AMAZON.CO,Regeneration And The Economy,94.46,MISCELLANEOUS AND SPECIALTY RETAIL STORES,2021-22Q4_PC204
Sandwell Metropolitan Borough Council,http://www.sandwell.gov.uk/info/200202/performance_and_spending/3233/government_procurement_cards,17-Jan-2022,Childrens Services,POST OFFICE COUNTER,Childrens Services,3.15,POSTAL SERVICES-GOVERNMENT ONLY,2021-22Q4_PC205
Sandwell Metropolitan Borough Council,http://www.sandwell.gov.uk/info/200202/performance_and_spending/3233/government_procurement_cards,17-Jan-2022,Childrens Services,WWW.TOWSURE.COM,Childrens Services,38.23,"AUTOMOTIVE PARTS, ACCESSORIES STORES",2021-22Q4_PC206
Sandwell Metropolitan Borough Council,http://www.sandwell.gov.uk/info/200202/performance_and_spending/3233/government_procurement_cards,17-Jan-2022,Childrens Services,WWW.THEWORKS.CO.UK,Childrens Services,91.8,DISCOUNT STORES,2021-22Q4_PC207
Sandwell Metropolitan Borough Council,http://www.sandwell.gov.uk/info/200202/performance_and_spending/3233/government_procurement_cards,17-Jan-2022,Childrens Services,ALDI 103 772,Childrens Services,6.7,"GROCERY STORES, SUPERMARKETS",2021-22Q4_PC208
Sandwell Metropolitan Borough Council,http://www.sandwell.gov.uk/info/200202/performance_and_spending/3233/government_procurement_cards,17-Jan-2022,Childrens Services,ALDI 103 772,Childrens Services,3.4,"GROCERY STORES, SUPERMARKETS",2021-22Q4_PC209
Sandwell Metropolitan Borough Council,http://www.sandwell.gov.uk/info/200202/performance_and_spending/3233/government_procurement_cards,17-Jan-2022,Total Borough Economy,WETRANSFER,Total Adult Social Care,10.34,"COMP PROGRAMING,DATA PRCSNG,INTGRTD SYS DSGN SRVS",2021-22Q4_PC210
Sandwell Metropolitan Borough Council,http://www.sandwell.gov.uk/info/200202/performance_and_spending/3233/government_procurement_cards,17-Jan-2022,Total ASCHWB,Amazon Prime 6S9D974R5,Total Adult Social Care,7.99,DIRECT MARKETING-CONTINUITY/SUBSCRIPTION MERCHANTS,2021-22Q4_PC211
Sandwell Metropolitan Borough Council,http://www.sandwell.gov.uk/info/200202/performance_and_spending/3233/government_procurement_cards,17-Jan-2022,Housing & Assets Total,AMZNMKTPLACE AMAZON.CO,Corporate Management,232.88,MISCELLANEOUS AND SPECIALTY RETAIL STORES,2021-22Q4_PC212
Sandwell Metropolitan Borough Council,http://www.sandwell.gov.uk/info/200202/performance_and_spending/3233/government_procurement_cards,17-Jan-2022,Director of Law & Governance,Amazon Prime Z394Q8SA5,Assistant Chief Executive (Excl SIU),7.99,DIRECT MARKETING-CONTINUITY/SUBSCRIPTION MERCHANTS,2021-22Q4_PC213
Sandwell Metropolitan Borough Council,http://www.sandwell.gov.uk/info/200202/performance_and_spending/3233/government_procurement_cards,17-Jan-2022,Total Borough Economy,SCREWFIX DIRECT,Total Adult Social Care,67.8,"BUILDING MATERIALS, LUMBER STORES",2021-22Q4_PC214
Sandwell Metropolitan Borough Council,http://www.sandwell.gov.uk/info/200202/performance_and_spending/3233/government_procurement_cards,17-Jan-2022,Housing & Assets Total,AMZNMKTPLACE AMAZON.CO,Corporate Management,108.17,MISCELLANEOUS AND SPECIALTY RETAIL STORES,2021-22Q4_PC215
Sandwell Metropolitan Borough Council,http://www.sandwell.gov.uk/info/200202/performance_and_spending/3233/government_procurement_cards,17-Jan-2022,Total Borough Economy,WWW.OFFICETEAMCONNECT.,Total Adult Social Care,167.86,STATIONERY/OFFICE SUPPLIES/PRINTING & WRITING PAP.,2021-22Q4_PC216
Sandwell Metropolitan Borough Council,http://www.sandwell.gov.uk/info/200202/performance_and_spending/3233/government_procurement_cards,17-Jan-2022,Regeneration & Growth,AMZNMKTPLACE AMAZON.CO,Regeneration And The Economy,59.99,MISCELLANEOUS AND SPECIALTY RETAIL STORES,2021-22Q4_PC217
Sandwell Metropolitan Borough Council,http://www.sandwell.gov.uk/info/200202/performance_and_spending/3233/government_procurement_cards,17-Jan-2022,Regeneration & Growth,AMZNMKTPLACE AMAZON.CO,Regeneration And The Economy,59.99,MISCELLANEOUS AND SPECIALTY RETAIL STORES,2021-22Q4_PC218
Sandwell Metropolitan Borough Council,http://www.sandwell.gov.uk/info/200202/performance_and_spending/3233/government_procurement_cards,17-Jan-2022,Total ASCHWB,WWW.OFFICETEAMCONNECT.,Total Adult Social Care,9.36,STATIONERY/OFFICE SUPPLIES/PRINTING & WRITING PAP.,2021-22Q4_PC219
Sandwell Metropolitan Borough Council,http://www.sandwell.gov.uk/info/200202/performance_and_spending/3233/government_procurement_cards,17-Jan-2022,Childrens Services,BLUEPRINT DESIGNS,Childrens Services,48,MEN'S AND BOY'S CLOTHING AND ACCESSORIES STORES,2021-22Q4_PC220
Sandwell Metropolitan Borough Council,http://www.sandwell.gov.uk/info/200202/performance_and_spending/3233/government_procurement_cards,17-Jan-2022,Childrens Services,STAFFORDSHIRE FRUITS,Childrens Services,16,MISCELLANEOUS AND SPECIALTY RETAIL STORES,2021-22Q4_PC221
Sandwell Metropolitan Borough Council,http://www.sandwell.gov.uk/info/200202/performance_and_spending/3233/government_procurement_cards,17-Jan-2022,Childrens Services,Spotify P194E04491,Childrens Services,9.99,DIGITAL GOODS AUDIOVISUAL MEDIA,2021-22Q4_PC222
Sandwell Metropolitan Borough Council,http://www.sandwell.gov.uk/info/200202/performance_and_spending/3233/government_procurement_cards,17-Jan-2022,FINANCE (Inc SIU),Amazon.co.uk 718SD93T5,Total Adult Social Care,31.16,DIRECT MARKETING-OTHER DIRECT MARKETERS/NOT ELSEW.,2021-22Q4_PC223
Sandwell Metropolitan Borough Council,http://www.sandwell.gov.uk/info/200202/performance_and_spending/3233/government_procurement_cards,17-Jan-2022,FINANCE (Inc SIU),WWW.OFFICETEAMCONNECT.,Total Adult Social Care,40.41,STATIONERY/OFFICE SUPPLIES/PRINTING & WRITING PAP.,2021-22Q4_PC224
Sandwell Metropolitan Borough Council,http://www.sandwell.gov.uk/info/200202/performance_and_spending/3233/government_procurement_cards,17-Jan-2022,Total Housing Revenue Account,AMZNMKTPLACE AMAZON.CO,Total Housing Revenue Account,10.97,MISCELLANEOUS AND SPECIALTY RETAIL STORES,2021-22Q4_PC225
Sandwell Metropolitan Borough Council,http://www.sandwell.gov.uk/info/200202/performance_and_spending/3233/government_procurement_cards,17-Jan-2022,Total Business Strategy & Change,Amazon.co.uk R869E4M55,Assistant Chief Executive (Excl SIU),199.99,DIRECT MARKETING-OTHER DIRECT MARKETERS/NOT ELSEW.,2021-22Q4_PC226
Sandwell Metropolitan Borough Council,http://www.sandwell.gov.uk/info/200202/performance_and_spending/3233/government_procurement_cards,17-Jan-2022,Total ASCHWB,ARGOS LTD,Total Adult Social Care,34,DISCOUNT STORES,2021-22Q4_PC227
Sandwell Metropolitan Borough Council,http://www.sandwell.gov.uk/info/200202/performance_and_spending/3233/government_procurement_cards,17-Jan-2022,Total Borough Economy,AMZNMktplace,Total Adult Social Care,27.6,MISCELLANEOUS AND SPECIALTY RETAIL STORES,2021-22Q4_PC228
Sandwell Metropolitan Borough Council,http://www.sandwell.gov.uk/info/200202/performance_and_spending/3233/government_procurement_cards,18-Jan-2022,Total Housing Revenue Account,NORDAN UK LTD,Total Housing Revenue Account,77.76,"BUILDING MATERIALS, LUMBER STORES",2021-22Q4_PC229
Sandwell Metropolitan Borough Council,http://www.sandwell.gov.uk/info/200202/performance_and_spending/3233/government_procurement_cards,18-Jan-2022,Total Housing Revenue Account,AMZNMktplace,Total Housing Revenue Account,17.98,MISCELLANEOUS AND SPECIALTY RETAIL STORES,2021-22Q4_PC230
Sandwell Metropolitan Borough Council,http://www.sandwell.gov.uk/info/200202/performance_and_spending/3233/government_procurement_cards,18-Jan-2022,Total Borough Economy,Amazon.co.uk V65WD2NV5,Total Adult Social Care,9.99,DIRECT MARKETING-OTHER DIRECT MARKETERS/NOT ELSEW.,2021-22Q4_PC231
Sandwell Metropolitan Borough Council,http://www.sandwell.gov.uk/info/200202/performance_and_spending/3233/government_procurement_cards,18-Jan-2022,Total Borough Economy,Amazon.co.uk 0X2GO5HG5,Total Adult Social Care,19.17,DIRECT MARKETING-OTHER DIRECT MARKETERS/NOT ELSEW.,2021-22Q4_PC232
Sandwell Metropolitan Borough Council,http://www.sandwell.gov.uk/info/200202/performance_and_spending/3233/government_procurement_cards,18-Jan-2022,Director of Law & Governance,AMZNMktplace,Assistant Chief Executive (Excl SIU),132.89,MISCELLANEOUS AND SPECIALTY RETAIL STORES,2021-22Q4_PC233
Sandwell Metropolitan Borough Council,http://www.sandwell.gov.uk/info/200202/performance_and_spending/3233/government_procurement_cards,18-Jan-2022,Childrens Services,TIMICO LIMITED,Childrens Services,7.38,TELECOM INCL PREPAID/RECURRING PHONE SVCS,2021-22Q4_PC234
Sandwell Metropolitan Borough Council,http://www.sandwell.gov.uk/info/200202/performance_and_spending/3233/government_procurement_cards,18-Jan-2022,Regeneration & Growth,JONES MULTISERVICE CEN,Regeneration And The Economy,40,"HAT CLEANING SHOPS, SHOE REPAIR SHOPS, SHOE SHINE",2021-22Q4_PC235
Sandwell Metropolitan Borough Council,http://www.sandwell.gov.uk/info/200202/performance_and_spending/3233/government_procurement_cards,18-Jan-2022,Total Borough Economy,AMZNMktplace,Total Adult Social Care,12.88,MISCELLANEOUS AND SPECIALTY RETAIL STORES,2021-22Q4_PC236
Sandwell Metropolitan Borough Council,http://www.sandwell.gov.uk/info/200202/performance_and_spending/3233/government_procurement_cards,18-Jan-2022,Total Borough Economy,AMZNMktplace,Total Adult Social Care,215.13,MISCELLANEOUS AND SPECIALTY RETAIL STORES,2021-22Q4_PC237
Sandwell Metropolitan Borough Council,http://www.sandwell.gov.uk/info/200202/performance_and_spending/3233/government_procurement_cards,18-Jan-2022,Total Borough Economy,Amazon.co.uk 1A6JH2QJ5,Total Adult Social Care,19.94,DIRECT MARKETING-OTHER DIRECT MARKETERS/NOT ELSEW.,2021-22Q4_PC238
Sandwell Metropolitan Borough Council,http://www.sandwell.gov.uk/info/200202/performance_and_spending/3233/government_procurement_cards,18-Jan-2022,Total Borough Economy,Amazon.co.uk O09880E85,Total Adult Social Care,10.63,DIRECT MARKETING-OTHER DIRECT MARKETERS/NOT ELSEW.,2021-22Q4_PC239
Sandwell Metropolitan Borough Council,http://www.sandwell.gov.uk/info/200202/performance_and_spending/3233/government_procurement_cards,18-Jan-2022,Total ASCHWB,AMZNMktplace,Total Adult Social Care,107.98,MISCELLANEOUS AND SPECIALTY RETAIL STORES,2021-22Q4_PC240
Sandwell Metropolitan Borough Council,http://www.sandwell.gov.uk/info/200202/performance_and_spending/3233/government_procurement_cards,18-Jan-2022,Childrens Services,ASDA GROCERIES ONLINE,Childrens Services,187.23,"GROCERY STORES, SUPERMARKETS",2021-22Q4_PC241
Sandwell Metropolitan Borough Council,http://www.sandwell.gov.uk/info/200202/performance_and_spending/3233/government_procurement_cards,18-Jan-2022,Childrens Services,ASDA GROCERIES ONLINE,Childrens Services,-1.24,"GROCERY STORES, SUPERMARKETS",2021-22Q4_PC242
Sandwell Metropolitan Borough Council,http://www.sandwell.gov.uk/info/200202/performance_and_spending/3233/government_procurement_cards,18-Jan-2022,Total Housing Revenue Account,AMZNMktplace,Total Housing Revenue Account,204.98,MISCELLANEOUS AND SPECIALTY RETAIL STORES,2021-22Q4_PC243
Sandwell Metropolitan Borough Council,http://www.sandwell.gov.uk/info/200202/performance_and_spending/3233/government_procurement_cards,18-Jan-2022,Total ASCHWB,DIRECT HEALTHCARE SERV,Total Adult Social Care,544.78,MISCELLANEOUS AND SPECIALTY RETAIL STORES,2021-22Q4_PC244
Sandwell Metropolitan Borough Council,http://www.sandwell.gov.uk/info/200202/performance_and_spending/3233/government_procurement_cards,19-Jan-2022,Regeneration & Growth,AMZNMKTPLACE AMAZON.CO,Regeneration And The Economy,7.85,MISCELLANEOUS AND SPECIALTY RETAIL STORES,2021-22Q4_PC245
Sandwell Metropolitan Borough Council,http://www.sandwell.gov.uk/info/200202/performance_and_spending/3233/government_procurement_cards,19-Jan-2022,Total Business Strategy & Change,AMZNMktplace,Assistant Chief Executive (Excl SIU),284,MISCELLANEOUS AND SPECIALTY RETAIL STORES,2021-22Q4_PC246
Sandwell Metropolitan Borough Council,http://www.sandwell.gov.uk/info/200202/performance_and_spending/3233/government_procurement_cards,19-Jan-2022,Childrens Services,WWW.OFFICETEAMCONNECT.,Childrens Services,125,STATIONERY/OFFICE SUPPLIES/PRINTING & WRITING PAP.,2021-22Q4_PC247
Sandwell Metropolitan Borough Council,http://www.sandwell.gov.uk/info/200202/performance_and_spending/3233/government_procurement_cards,19-Jan-2022,Childrens Services,AMZ Amazon.co.uk,Childrens Services,-8.98,DIRECT MARKETING-OTHER DIRECT MARKETERS/NOT ELSEW.,2021-22Q4_PC248
Sandwell Metropolitan Borough Council,http://www.sandwell.gov.uk/info/200202/performance_and_spending/3233/government_procurement_cards,19-Jan-2022,Childrens Services,TIMPSON LTD,Childrens Services,16,MISCELLANEOUS AND SPECIALTY RETAIL STORES,2021-22Q4_PC249
Sandwell Metropolitan Borough Council,http://www.sandwell.gov.uk/info/200202/performance_and_spending/3233/government_procurement_cards,19-Jan-2022,Childrens Services,PAYPAL  LINDENSIGNS,Childrens Services,10.79,BUSINESS SERVICES-NOT ELSEWHERE CLASSIFIED,2021-22Q4_PC250
Sandwell Metropolitan Borough Council,http://www.sandwell.gov.uk/info/200202/performance_and_spending/3233/government_procurement_cards,19-Jan-2022,FINANCE (Inc SIU),WWW.CITYOFLONDON.GOV.U,Assistant Chief Executive (Excl SIU),80,GOVERNMENT SERVICES-NOT ELSEWHERE CLASSIFIED,2021-22Q4_PC251
Sandwell Metropolitan Borough Council,http://www.sandwell.gov.uk/info/200202/performance_and_spending/3233/government_procurement_cards,19-Jan-2022,Total Borough Economy,INDUSTRIAL POW UNIT LT,Total Adult Social Care,51.84,MOTOR VEHICLE SUPPLIES AND NEW PARTS,2021-22Q4_PC252
Sandwell Metropolitan Borough Council,http://www.sandwell.gov.uk/info/200202/performance_and_spending/3233/government_procurement_cards,19-Jan-2022,Childrens Services,INTHEEYESOFAPIXIE,Childrens Services,120,DIGITAL GOODS MULTI CATEGORY,2021-22Q4_PC253
Sandwell Metropolitan Borough Council,http://www.sandwell.gov.uk/info/200202/performance_and_spending/3233/government_procurement_cards,19-Jan-2022,Total Borough Economy,WWW.BEMYBEAR.COM,Total Adult Social Care,243.75,"GAME, TOY, AND HOBBY SHOPS",2021-22Q4_PC254
Sandwell Metropolitan Borough Council,http://www.sandwell.gov.uk/info/200202/performance_and_spending/3233/government_procurement_cards,19-Jan-2022,Total Borough Economy,AMZNMKTPLACE AMAZON.CO,Total Adult Social Care,5.98,MISCELLANEOUS AND SPECIALTY RETAIL STORES,2021-22Q4_PC255
Sandwell Metropolitan Borough Council,http://www.sandwell.gov.uk/info/200202/performance_and_spending/3233/government_procurement_cards,19-Jan-2022,Total ASCHWB,AMZNMktplace,Total Adult Social Care,217.1,MISCELLANEOUS AND SPECIALTY RETAIL STORES,2021-22Q4_PC256
Sandwell Metropolitan Borough Council,http://www.sandwell.gov.uk/info/200202/performance_and_spending/3233/government_procurement_cards,19-Jan-2022,Housing & Assets Total,WWW.OFFICETEAMCONNECT.,Corporate Management,33.3,STATIONERY/OFFICE SUPPLIES/PRINTING & WRITING PAP.,2021-22Q4_PC257
Sandwell Metropolitan Borough Council,http://www.sandwell.gov.uk/info/200202/performance_and_spending/3233/government_procurement_cards,19-Jan-2022,Total ASCHWB,SP   SD FIRE ALARMS,Total Adult Social Care,68.33,COMPUTER SOFTWARE STORES,2021-22Q4_PC258
Sandwell Metropolitan Borough Council,http://www.sandwell.gov.uk/info/200202/performance_and_spending/3233/government_procurement_cards,19-Jan-2022,Total Borough Economy,Amazon.co.uk 295TB8KN5,Total Adult Social Care,12.77,DIRECT MARKETING-OTHER DIRECT MARKETERS/NOT ELSEW.,2021-22Q4_PC259
Sandwell Metropolitan Borough Council,http://www.sandwell.gov.uk/info/200202/performance_and_spending/3233/government_procurement_cards,19-Jan-2022,Childrens Services,THE SPAR,Childrens Services,3.78,DAIRY PRODUCTS STORES,2021-22Q4_PC260
Sandwell Metropolitan Borough Council,http://www.sandwell.gov.uk/info/200202/performance_and_spending/3233/government_procurement_cards,19-Jan-2022,Childrens Services,NEW LOOK 1868,Childrens Services,82.96,WOMEN'S READY TO WEAR STORES,2021-22Q4_PC261
Sandwell Metropolitan Borough Council,http://www.sandwell.gov.uk/info/200202/performance_and_spending/3233/government_procurement_cards,19-Jan-2022,Childrens Services,CC UNIFORMS LTD,Childrens Services,157,MEN'S/WOMEN'S/CHILDREN'S UNIFORMS/COMMERCIAL CLOTH,2021-22Q4_PC262
Sandwell Metropolitan Borough Council,http://www.sandwell.gov.uk/info/200202/performance_and_spending/3233/government_procurement_cards,19-Jan-2022,Total Borough Economy,AMZNMktplace,Total Adult Social Care,87.49,MISCELLANEOUS AND SPECIALTY RETAIL STORES,2021-22Q4_PC263
Sandwell Metropolitan Borough Council,http://www.sandwell.gov.uk/info/200202/performance_and_spending/3233/government_procurement_cards,19-Jan-2022,Regeneration & Growth,AMZNMktplace,Regeneration And The Economy,55.26,MISCELLANEOUS AND SPECIALTY RETAIL STORES,2021-22Q4_PC264
Sandwell Metropolitan Borough Council,http://www.sandwell.gov.uk/info/200202/performance_and_spending/3233/government_procurement_cards,20-Jan-2022,Total Housing Revenue Account,SCREWFIX DIRECT,Total Housing Revenue Account,24.5,"BUILDING MATERIALS, LUMBER STORES",2021-22Q4_PC265
Sandwell Metropolitan Borough Council,http://www.sandwell.gov.uk/info/200202/performance_and_spending/3233/government_procurement_cards,20-Jan-2022,Total Housing Revenue Account,WWW.OFFICETEAMCONNECT.,Total Housing Revenue Account,126.21,STATIONERY/OFFICE SUPPLIES/PRINTING & WRITING PAP.,2021-22Q4_PC266
Sandwell Metropolitan Borough Council,http://www.sandwell.gov.uk/info/200202/performance_and_spending/3233/government_procurement_cards,20-Jan-2022,Total Housing Revenue Account,TRAVIS PERKINS,Total Housing Revenue Account,46.15,"BUILDING MATERIALS, LUMBER STORES",2021-22Q4_PC267
Sandwell Metropolitan Borough Council,http://www.sandwell.gov.uk/info/200202/performance_and_spending/3233/government_procurement_cards,20-Jan-2022,Total Borough Economy,SYFAP,Total Adult Social Care,8.4,MISCELLANEOUS GENERAL MERCHANDISE,2021-22Q4_PC268
Sandwell Metropolitan Borough Council,http://www.sandwell.gov.uk/info/200202/performance_and_spending/3233/government_procurement_cards,20-Jan-2022,Total Business Strategy & Change,AMZNMktplace,Assistant Chief Executive (Excl SIU),26.99,MISCELLANEOUS AND SPECIALTY RETAIL STORES,2021-22Q4_PC269
Sandwell Metropolitan Borough Council,http://www.sandwell.gov.uk/info/200202/performance_and_spending/3233/government_procurement_cards,20-Jan-2022,Total ASCHWB,Amazon.co.uk YU3JZ86L5,Total Adult Social Care,54.35,DIRECT MARKETING-OTHER DIRECT MARKETERS/NOT ELSEW.,2021-22Q4_PC270
Sandwell Metropolitan Borough Council,http://www.sandwell.gov.uk/info/200202/performance_and_spending/3233/government_procurement_cards,20-Jan-2022,Regeneration & Growth,TIMPSON LTD,Regeneration And The Economy,8,MISCELLANEOUS AND SPECIALTY RETAIL STORES,2021-22Q4_PC271
Sandwell Metropolitan Borough Council,http://www.sandwell.gov.uk/info/200202/performance_and_spending/3233/government_procurement_cards,20-Jan-2022,Childrens Services,AMAZON PRIME 989SH0395,Childrens Services,96,DIRECT MARKETING-CONTINUITY/SUBSCRIPTION MERCHANTS,2021-22Q4_PC272
Sandwell Metropolitan Borough Council,http://www.sandwell.gov.uk/info/200202/performance_and_spending/3233/government_procurement_cards,20-Jan-2022,Childrens Services,AMZNMktplace,Childrens Services,47,MISCELLANEOUS AND SPECIALTY RETAIL STORES,2021-22Q4_PC273
Sandwell Metropolitan Borough Council,http://www.sandwell.gov.uk/info/200202/performance_and_spending/3233/government_procurement_cards,20-Jan-2022,Childrens Services,AMZNMktplace,Childrens Services,10.95,MISCELLANEOUS AND SPECIALTY RETAIL STORES,2021-22Q4_PC274
Sandwell Metropolitan Borough Council,http://www.sandwell.gov.uk/info/200202/performance_and_spending/3233/government_procurement_cards,20-Jan-2022,Childrens Services,AMZNMktplace,Childrens Services,23.99,MISCELLANEOUS AND SPECIALTY RETAIL STORES,2021-22Q4_PC275
Sandwell Metropolitan Borough Council,http://www.sandwell.gov.uk/info/200202/performance_and_spending/3233/government_procurement_cards,20-Jan-2022,Childrens Services,TESCO STORES 2770,Childrens Services,2.6,"GROCERY STORES, SUPERMARKETS",2021-22Q4_PC276
Sandwell Metropolitan Borough Council,http://www.sandwell.gov.uk/info/200202/performance_and_spending/3233/government_procurement_cards,20-Jan-2022,Childrens Services,AMZNMktplace,Childrens Services,37.69,MISCELLANEOUS AND SPECIALTY RETAIL STORES,2021-22Q4_PC277
Sandwell Metropolitan Borough Council,http://www.sandwell.gov.uk/info/200202/performance_and_spending/3233/government_procurement_cards,20-Jan-2022,Childrens Services,MYHERMES.CO.UK,Childrens Services,2.66,"FREIGHT CARRIER,TRUCKING-LCL/LNG DIST, MVG/STORAGE",2021-22Q4_PC278
Sandwell Metropolitan Borough Council,http://www.sandwell.gov.uk/info/200202/performance_and_spending/3233/government_procurement_cards,20-Jan-2022,Total Borough Economy,WWW.OFFICETEAMCONNECT.,Total Adult Social Care,70.7,STATIONERY/OFFICE SUPPLIES/PRINTING & WRITING PAP.,2021-22Q4_PC279
Sandwell Metropolitan Borough Council,http://www.sandwell.gov.uk/info/200202/performance_and_spending/3233/government_procurement_cards,20-Jan-2022,Total ASCHWB,AMZNMKTPLACE AMAZON.CO,Total Adult Social Care,17.98,MISCELLANEOUS AND SPECIALTY RETAIL STORES,2021-22Q4_PC280
Sandwell Metropolitan Borough Council,http://www.sandwell.gov.uk/info/200202/performance_and_spending/3233/government_procurement_cards,20-Jan-2022,Total ASCHWB,AMZNMKTPLACE AMAZON.CO,Total Adult Social Care,56.31,MISCELLANEOUS AND SPECIALTY RETAIL STORES,2021-22Q4_PC281
Sandwell Metropolitan Borough Council,http://www.sandwell.gov.uk/info/200202/performance_and_spending/3233/government_procurement_cards,20-Jan-2022,Total ASCHWB,AMZNMktplace,Total Adult Social Care,22.88,MISCELLANEOUS AND SPECIALTY RETAIL STORES,2021-22Q4_PC282
Sandwell Metropolitan Borough Council,http://www.sandwell.gov.uk/info/200202/performance_and_spending/3233/government_procurement_cards,20-Jan-2022,Childrens Services,Amazon.co.uk ZV3C41AU5,Childrens Services,39.53,DIRECT MARKETING-OTHER DIRECT MARKETERS/NOT ELSEW.,2021-22Q4_PC283
Sandwell Metropolitan Borough Council,http://www.sandwell.gov.uk/info/200202/performance_and_spending/3233/government_procurement_cards,20-Jan-2022,Childrens Services,ASDA GROCERIES ONLINE,Childrens Services,129.63,"GROCERY STORES, SUPERMARKETS",2021-22Q4_PC284
Sandwell Metropolitan Borough Council,http://www.sandwell.gov.uk/info/200202/performance_and_spending/3233/government_procurement_cards,20-Jan-2022,Childrens Services,ASDA GROCERIES ONLINE,Childrens Services,-9.05,"GROCERY STORES, SUPERMARKETS",2021-22Q4_PC285
Sandwell Metropolitan Borough Council,http://www.sandwell.gov.uk/info/200202/performance_and_spending/3233/government_procurement_cards,20-Jan-2022,Childrens Services,HANDY DRY CLEANERS,Childrens Services,136,"CLEANING, GARMENT, AND LAUNDRY SERVICES",2021-22Q4_PC286
Sandwell Metropolitan Borough Council,http://www.sandwell.gov.uk/info/200202/performance_and_spending/3233/government_procurement_cards,20-Jan-2022,Childrens Services,AMZNMktplace,Childrens Services,17.65,MISCELLANEOUS AND SPECIALTY RETAIL STORES,2021-22Q4_PC287
Sandwell Metropolitan Borough Council,http://www.sandwell.gov.uk/info/200202/performance_and_spending/3233/government_procurement_cards,20-Jan-2022,Total Housing Revenue Account,POST OFFICE COUNTER,Total Housing Revenue Account,45,POSTAL SERVICES-GOVERNMENT ONLY,2021-22Q4_PC288
Sandwell Metropolitan Borough Council,http://www.sandwell.gov.uk/info/200202/performance_and_spending/3233/government_procurement_cards,20-Jan-2022,Total Housing Revenue Account,POST OFFICE COUNTER,Total Housing Revenue Account,40,POSTAL SERVICES-GOVERNMENT ONLY,2021-22Q4_PC289
Sandwell Metropolitan Borough Council,http://www.sandwell.gov.uk/info/200202/performance_and_spending/3233/government_procurement_cards,20-Jan-2022,Director of Law & Governance,AMZNMKTPLACE AMAZON.CO,Assistant Chief Executive (Excl SIU),7.28,MISCELLANEOUS AND SPECIALTY RETAIL STORES,2021-22Q4_PC290
Sandwell Metropolitan Borough Council,http://www.sandwell.gov.uk/info/200202/performance_and_spending/3233/government_procurement_cards,20-Jan-2022,Housing & Assets Total,Amazon Prime Q37940E15,Corporate Management,7.99,DIRECT MARKETING-CONTINUITY/SUBSCRIPTION MERCHANTS,2021-22Q4_PC291
Sandwell Metropolitan Borough Council,http://www.sandwell.gov.uk/info/200202/performance_and_spending/3233/government_procurement_cards,20-Jan-2022,Total Borough Economy,STAPLES,Total Adult Social Care,65.35,STATIONERY/OFFICE SUPPLIES/PRINTING & WRITING PAP.,2021-22Q4_PC292
Sandwell Metropolitan Borough Council,http://www.sandwell.gov.uk/info/200202/performance_and_spending/3233/government_procurement_cards,20-Jan-2022,Total Borough Economy,STAPLES,Total Adult Social Care,105.38,STATIONERY/OFFICE SUPPLIES/PRINTING & WRITING PAP.,2021-22Q4_PC293
Sandwell Metropolitan Borough Council,http://www.sandwell.gov.uk/info/200202/performance_and_spending/3233/government_procurement_cards,20-Jan-2022,Total Borough Economy,AMZNMktplace,Total Adult Social Care,19.99,MISCELLANEOUS AND SPECIALTY RETAIL STORES,2021-22Q4_PC294
Sandwell Metropolitan Borough Council,http://www.sandwell.gov.uk/info/200202/performance_and_spending/3233/government_procurement_cards,20-Jan-2022,Childrens Services,PRIMARK 684,Childrens Services,119.4,FAMILY CLOTHING STORES,2021-22Q4_PC295
Sandwell Metropolitan Borough Council,http://www.sandwell.gov.uk/info/200202/performance_and_spending/3233/government_procurement_cards,20-Jan-2022,Childrens Services,NEW SQUARE SHOPPING CE,Childrens Services,1.6,AUTOMOBILE PARKING LOTS AND GARAGES,2021-22Q4_PC296
Sandwell Metropolitan Borough Council,http://www.sandwell.gov.uk/info/200202/performance_and_spending/3233/government_procurement_cards,20-Jan-2022,Childrens Services,NEW SQUARE SHOPPING CE,Childrens Services,1.6,AUTOMOBILE PARKING LOTS AND GARAGES,2021-22Q4_PC297
Sandwell Metropolitan Borough Council,http://www.sandwell.gov.uk/info/200202/performance_and_spending/3233/government_procurement_cards,20-Jan-2022,Total ASCHWB,thetrainline.com,Total Adult Social Care,31.49,PASSENGER RAILWAYS,2021-22Q4_PC298
Sandwell Metropolitan Borough Council,http://www.sandwell.gov.uk/info/200202/performance_and_spending/3233/government_procurement_cards,20-Jan-2022,Total ASCHWB,thetrainline.com,Total Adult Social Care,20.79,PASSENGER RAILWAYS,2021-22Q4_PC299
Sandwell Metropolitan Borough Council,http://www.sandwell.gov.uk/info/200202/performance_and_spending/3233/government_procurement_cards,20-Jan-2022,Individual School Budgets With Inclusion,APPLE.COM/BILL,Individual School Budgets With Inclusion,2.49,DIGITAL GOODS AUDIOVISUAL MEDIA,2021-22Q4_PC300
Sandwell Metropolitan Borough Council,http://www.sandwell.gov.uk/info/200202/performance_and_spending/3233/government_procurement_cards,20-Jan-2022,Total Borough Economy,AMZNMktplace,Total Adult Social Care,148.94,MISCELLANEOUS AND SPECIALTY RETAIL STORES,2021-22Q4_PC301
Sandwell Metropolitan Borough Council,http://www.sandwell.gov.uk/info/200202/performance_and_spending/3233/government_procurement_cards,20-Jan-2022,Director of Law & Governance,SAINSBURYS S/MKTS,Assistant Chief Executive (Excl SIU),6,"GROCERY STORES, SUPERMARKETS",2021-22Q4_PC302
Sandwell Metropolitan Borough Council,http://www.sandwell.gov.uk/info/200202/performance_and_spending/3233/government_procurement_cards,20-Jan-2022,Regeneration & Growth,JAX FIRST AID,Regeneration And The Economy,7.79,COMPUTER SOFTWARE STORES,2021-22Q4_PC303
Sandwell Metropolitan Borough Council,http://www.sandwell.gov.uk/info/200202/performance_and_spending/3233/government_procurement_cards,20-Jan-2022,Regeneration & Growth,Amazon.co.uk 7X2DK8LD5,Regeneration And The Economy,67.38,DIRECT MARKETING-OTHER DIRECT MARKETERS/NOT ELSEW.,2021-22Q4_PC304
Sandwell Metropolitan Borough Council,http://www.sandwell.gov.uk/info/200202/performance_and_spending/3233/government_procurement_cards,21-Jan-2022,Total Housing Revenue Account,WICKES HANDSWORTH,Total Housing Revenue Account,166,HOME SUPPLY WAREHOUSE STORES,2021-22Q4_PC305
Sandwell Metropolitan Borough Council,http://www.sandwell.gov.uk/info/200202/performance_and_spending/3233/government_procurement_cards,21-Jan-2022,Total Borough Economy,Amazon.co.uk O80180QA5,Total Adult Social Care,25.97,DIRECT MARKETING-OTHER DIRECT MARKETERS/NOT ELSEW.,2021-22Q4_PC306
Sandwell Metropolitan Borough Council,http://www.sandwell.gov.uk/info/200202/performance_and_spending/3233/government_procurement_cards,21-Jan-2022,Total Borough Economy,WWW.THEWORKS.CO.UK,Total Adult Social Care,22.99,DISCOUNT STORES,2021-22Q4_PC307
Sandwell Metropolitan Borough Council,http://www.sandwell.gov.uk/info/200202/performance_and_spending/3233/government_procurement_cards,21-Jan-2022,Childrens Services,AMZNMktplace,Childrens Services,17.68,MISCELLANEOUS AND SPECIALTY RETAIL STORES,2021-22Q4_PC308
Sandwell Metropolitan Borough Council,http://www.sandwell.gov.uk/info/200202/performance_and_spending/3233/government_procurement_cards,21-Jan-2022,Childrens Services,TESCO STORES 4512,Childrens Services,2.6,"GROCERY STORES, SUPERMARKETS",2021-22Q4_PC309
Sandwell Metropolitan Borough Council,http://www.sandwell.gov.uk/info/200202/performance_and_spending/3233/government_procurement_cards,21-Jan-2022,Total Borough Economy,GOMPELS HEALTHCARE,Total Adult Social Care,164.51,WHOLESALE CLUBS,2021-22Q4_PC310
Sandwell Metropolitan Borough Council,http://www.sandwell.gov.uk/info/200202/performance_and_spending/3233/government_procurement_cards,21-Jan-2022,Childrens Services,AMZNMKTPLACE AMAZON.CO,Childrens Services,77.14,MISCELLANEOUS AND SPECIALTY RETAIL STORES,2021-22Q4_PC311
Sandwell Metropolitan Borough Council,http://www.sandwell.gov.uk/info/200202/performance_and_spending/3233/government_procurement_cards,21-Jan-2022,Housing & Assets Total,WWW.VICARAGELODGE.COM,Corporate Management,450,"LODGING-HOTELS,MOTELS,RESORTS-NOT CLASSIFIED",2021-22Q4_PC312
Sandwell Metropolitan Borough Council,http://www.sandwell.gov.uk/info/200202/performance_and_spending/3233/government_procurement_cards,21-Jan-2022,Housing & Assets Total,WWW.VICARAGELODGE.COM,Corporate Management,450,"LODGING-HOTELS,MOTELS,RESORTS-NOT CLASSIFIED",2021-22Q4_PC313
Sandwell Metropolitan Borough Council,http://www.sandwell.gov.uk/info/200202/performance_and_spending/3233/government_procurement_cards,21-Jan-2022,Housing & Assets Total,WWW.VICARAGELODGE.COM,Corporate Management,150,"LODGING-HOTELS,MOTELS,RESORTS-NOT CLASSIFIED",2021-22Q4_PC314
Sandwell Metropolitan Borough Council,http://www.sandwell.gov.uk/info/200202/performance_and_spending/3233/government_procurement_cards,21-Jan-2022,Housing & Assets Total,WWW.VICARAGELODGE.COM,Corporate Management,450,"LODGING-HOTELS,MOTELS,RESORTS-NOT CLASSIFIED",2021-22Q4_PC315
Sandwell Metropolitan Borough Council,http://www.sandwell.gov.uk/info/200202/performance_and_spending/3233/government_procurement_cards,21-Jan-2022,Housing & Assets Total,WWW.VICARAGELODGE.COM,Corporate Management,450,"LODGING-HOTELS,MOTELS,RESORTS-NOT CLASSIFIED",2021-22Q4_PC316
Sandwell Metropolitan Borough Council,http://www.sandwell.gov.uk/info/200202/performance_and_spending/3233/government_procurement_cards,21-Jan-2022,Housing & Assets Total,WWW.VICARAGELODGE.COM,Corporate Management,560,"LODGING-HOTELS,MOTELS,RESORTS-NOT CLASSIFIED",2021-22Q4_PC317
Sandwell Metropolitan Borough Council,http://www.sandwell.gov.uk/info/200202/performance_and_spending/3233/government_procurement_cards,21-Jan-2022,Housing & Assets Total,WWW.VICARAGELODGE.COM,Corporate Management,150,"LODGING-HOTELS,MOTELS,RESORTS-NOT CLASSIFIED",2021-22Q4_PC318
Sandwell Metropolitan Borough Council,http://www.sandwell.gov.uk/info/200202/performance_and_spending/3233/government_procurement_cards,21-Jan-2022,Childrens Services,POST OFFICE COUNTER,Childrens Services,6.4,POSTAL SERVICES-GOVERNMENT ONLY,2021-22Q4_PC319
Sandwell Metropolitan Borough Council,http://www.sandwell.gov.uk/info/200202/performance_and_spending/3233/government_procurement_cards,21-Jan-2022,Total Borough Economy,BIG VALUE BANNERS LIMI,Total Adult Social Care,214.4,"COMMERCIAL ART, GRAPHICS, PHOTOGRAPHY",2021-22Q4_PC320
Sandwell Metropolitan Borough Council,http://www.sandwell.gov.uk/info/200202/performance_and_spending/3233/government_procurement_cards,21-Jan-2022,Total Borough Economy,BIG VALUE BANNERS LIMI,Total Adult Social Care,210,"COMMERCIAL ART, GRAPHICS, PHOTOGRAPHY",2021-22Q4_PC321
Sandwell Metropolitan Borough Council,http://www.sandwell.gov.uk/info/200202/performance_and_spending/3233/government_procurement_cards,21-Jan-2022,Total ASCHWB,Activewear Brands,Total Adult Social Care,18.94,MEN'S/WOMEN'S/CHILDREN'S UNIFORMS/COMMERCIAL CLOTH,2021-22Q4_PC322
Sandwell Metropolitan Borough Council,http://www.sandwell.gov.uk/info/200202/performance_and_spending/3233/government_procurement_cards,21-Jan-2022,Housing & Assets Total,B&M 262 - WILLENHALL,Corporate Management,12,MISCELLANEOUS GENERAL MERCHANDISE,2021-22Q4_PC323
Sandwell Metropolitan Borough Council,http://www.sandwell.gov.uk/info/200202/performance_and_spending/3233/government_procurement_cards,21-Jan-2022,Total Borough Economy,PAYPAL  COPPER ELF,Total Adult Social Care,209.87,PROFESSIONAL SERVICES-NOT ELSEWHERE CLASSIFIED,2021-22Q4_PC324
Sandwell Metropolitan Borough Council,http://www.sandwell.gov.uk/info/200202/performance_and_spending/3233/government_procurement_cards,21-Jan-2022,Childrens Services,EB  INTERACTIVE WEBINA,Childrens Services,25,BUSINESS SERVICES-NOT ELSEWHERE CLASSIFIED,2021-22Q4_PC325
Sandwell Metropolitan Borough Council,http://www.sandwell.gov.uk/info/200202/performance_and_spending/3233/government_procurement_cards,21-Jan-2022,FINANCE (Inc SIU),WWW.OFFICETEAMCONNECT.,Total Adult Social Care,13.08,STATIONERY/OFFICE SUPPLIES/PRINTING & WRITING PAP.,2021-22Q4_PC326
Sandwell Metropolitan Borough Council,http://www.sandwell.gov.uk/info/200202/performance_and_spending/3233/government_procurement_cards,21-Jan-2022,Total Borough Economy,HOMEBASE LTD 085,Total Adult Social Care,14,HOME SUPPLY WAREHOUSE STORES,2021-22Q4_PC327
Sandwell Metropolitan Borough Council,http://www.sandwell.gov.uk/info/200202/performance_and_spending/3233/government_procurement_cards,21-Jan-2022,Childrens Services,ASDA GEORGE COM LEEDS,Childrens Services,111.5,"GROCERY STORES, SUPERMARKETS",2021-22Q4_PC328
Sandwell Metropolitan Borough Council,http://www.sandwell.gov.uk/info/200202/performance_and_spending/3233/government_procurement_cards,21-Jan-2022,Total ASCHWB,AMZNMktplace,Total Adult Social Care,49.99,MISCELLANEOUS AND SPECIALTY RETAIL STORES,2021-22Q4_PC329
Sandwell Metropolitan Borough Council,http://www.sandwell.gov.uk/info/200202/performance_and_spending/3233/government_procurement_cards,21-Jan-2022,Total ASCHWB,PREMIER INN,Total Adult Social Care,63.5,PREMIER INN,2021-22Q4_PC330
Sandwell Metropolitan Borough Council,http://www.sandwell.gov.uk/info/200202/performance_and_spending/3233/government_procurement_cards,21-Jan-2022,Total Borough Economy,Amazon.co.uk IL13P7AU5,Total Adult Social Care,210.94,DIRECT MARKETING-OTHER DIRECT MARKETERS/NOT ELSEW.,2021-22Q4_PC331
Sandwell Metropolitan Borough Council,http://www.sandwell.gov.uk/info/200202/performance_and_spending/3233/government_procurement_cards,21-Jan-2022,Director of Law & Governance,WWW.OFFICETEAMCONNECT.,Assistant Chief Executive (Excl SIU),80.64,STATIONERY/OFFICE SUPPLIES/PRINTING & WRITING PAP.,2021-22Q4_PC332
Sandwell Metropolitan Borough Council,http://www.sandwell.gov.uk/info/200202/performance_and_spending/3233/government_procurement_cards,03-Feb-2022,Regeneration & Growth,TRAVIS PERKINS,Regeneration And The Economy,90.28,"BUILDING MATERIALS, LUMBER STORES",2021-22Q4_PC333
Sandwell Metropolitan Borough Council,http://www.sandwell.gov.uk/info/200202/performance_and_spending/3233/government_procurement_cards,03-Feb-2022,Regeneration & Growth,CARVERS,Regeneration And The Economy,263.93,"BUILDING MATERIALS, LUMBER STORES",2021-22Q4_PC334
Sandwell Metropolitan Borough Council,http://www.sandwell.gov.uk/info/200202/performance_and_spending/3233/government_procurement_cards,03-Feb-2022,Regeneration & Growth,CARVERS,Regeneration And The Economy,188.94,"BUILDING MATERIALS, LUMBER STORES",2021-22Q4_PC335
Sandwell Metropolitan Borough Council,http://www.sandwell.gov.uk/info/200202/performance_and_spending/3233/government_procurement_cards,03-Feb-2022,Regeneration & Growth,CARVERS,Regeneration And The Economy,188.94,"BUILDING MATERIALS, LUMBER STORES",2021-22Q4_PC336
Sandwell Metropolitan Borough Council,http://www.sandwell.gov.uk/info/200202/performance_and_spending/3233/government_procurement_cards,03-Feb-2022,Housing & Assets Total,STORAGE KING WALSALL,Corporate Management,186,"PUBLIC WAREHOUSING-FARM, REFRIG GOODS, HHG STORAGE",2021-22Q4_PC337
Sandwell Metropolitan Borough Council,http://www.sandwell.gov.uk/info/200202/performance_and_spending/3233/government_procurement_cards,03-Feb-2022,Total Housing Revenue Account,THE CELTIC MANOR,Total Housing Revenue Account,420,"LODGING-HOTELS,MOTELS,RESORTS-NOT CLASSIFIED",2021-22Q4_PC338
Sandwell Metropolitan Borough Council,http://www.sandwell.gov.uk/info/200202/performance_and_spending/3233/government_procurement_cards,03-Feb-2022,Total ASCHWB,WWW.OFFICETEAMCONNECT.,Total Adult Social Care,26.04,STATIONERY/OFFICE SUPPLIES/PRINTING & WRITING PAP.,2021-22Q4_PC339
Sandwell Metropolitan Borough Council,http://www.sandwell.gov.uk/info/200202/performance_and_spending/3233/government_procurement_cards,03-Feb-2022,Total ASCHWB,AMZNMktplace,Total Adult Social Care,125.99,MISCELLANEOUS AND SPECIALTY RETAIL STORES,2021-22Q4_PC340
Sandwell Metropolitan Borough Council,http://www.sandwell.gov.uk/info/200202/performance_and_spending/3233/government_procurement_cards,03-Feb-2022,Total ASCHWB,AMZNMktplace,Total Adult Social Care,125.99,MISCELLANEOUS AND SPECIALTY RETAIL STORES,2021-22Q4_PC341
Sandwell Metropolitan Borough Council,http://www.sandwell.gov.uk/info/200202/performance_and_spending/3233/government_procurement_cards,03-Feb-2022,Total ASCHWB,AMZNMktplace,Total Adult Social Care,125.99,MISCELLANEOUS AND SPECIALTY RETAIL STORES,2021-22Q4_PC342
Sandwell Metropolitan Borough Council,http://www.sandwell.gov.uk/info/200202/performance_and_spending/3233/government_procurement_cards,03-Feb-2022,Total ASCHWB,AMZNMktplace,Total Adult Social Care,125.99,MISCELLANEOUS AND SPECIALTY RETAIL STORES,2021-22Q4_PC343
Sandwell Metropolitan Borough Council,http://www.sandwell.gov.uk/info/200202/performance_and_spending/3233/government_procurement_cards,03-Feb-2022,Corporate Management,AMZNMKTPLACE AMAZON.CO,Corporate Management,54.98,MISCELLANEOUS AND SPECIALTY RETAIL STORES,2021-22Q4_PC344
Sandwell Metropolitan Borough Council,http://www.sandwell.gov.uk/info/200202/performance_and_spending/3233/government_procurement_cards,03-Feb-2022,FINANCE (Inc SIU),AMZNMKTPLACE AMAZON.CO,Assistant Chief Executive (Excl SIU),7.37,MISCELLANEOUS AND SPECIALTY RETAIL STORES,2021-22Q4_PC345
Sandwell Metropolitan Borough Council,http://www.sandwell.gov.uk/info/200202/performance_and_spending/3233/government_procurement_cards,03-Feb-2022,FINANCE (Inc SIU),AMZNMKTPLACE AMAZON.CO,Assistant Chief Executive (Excl SIU),107.97,MISCELLANEOUS AND SPECIALTY RETAIL STORES,2021-22Q4_PC346
Sandwell Metropolitan Borough Council,http://www.sandwell.gov.uk/info/200202/performance_and_spending/3233/government_procurement_cards,03-Feb-2022,Childrens Services,MYHERMES.CO.UK,Childrens Services,4.4,"FREIGHT CARRIER,TRUCKING-LCL/LNG DIST, MVG/STORAGE",2021-22Q4_PC347
Sandwell Metropolitan Borough Council,http://www.sandwell.gov.uk/info/200202/performance_and_spending/3233/government_procurement_cards,03-Feb-2022,Housing & Assets Total,AMZNMktplace,Corporate Management,107.94,MISCELLANEOUS AND SPECIALTY RETAIL STORES,2021-22Q4_PC348
Sandwell Metropolitan Borough Council,http://www.sandwell.gov.uk/info/200202/performance_and_spending/3233/government_procurement_cards,03-Feb-2022,Housing & Assets Total,AMZNMktplace,Corporate Management,99.99,MISCELLANEOUS AND SPECIALTY RETAIL STORES,2021-22Q4_PC349
Sandwell Metropolitan Borough Council,http://www.sandwell.gov.uk/info/200202/performance_and_spending/3233/government_procurement_cards,03-Feb-2022,Total Borough Economy,PAYPAL  IKEALIMITED,Total Adult Social Care,30,"EQUIP, FURNITURE, HOME FURNSHNGS STRS (EXCPT APPL)",2021-22Q4_PC350
Sandwell Metropolitan Borough Council,http://www.sandwell.gov.uk/info/200202/performance_and_spending/3233/government_procurement_cards,03-Feb-2022,Total ASCHWB,Amazon.co.uk S074Q1YL5,Total Adult Social Care,75.99,DIRECT MARKETING-OTHER DIRECT MARKETERS/NOT ELSEW.,2021-22Q4_PC351
Sandwell Metropolitan Borough Council,http://www.sandwell.gov.uk/info/200202/performance_and_spending/3233/government_procurement_cards,03-Feb-2022,Total ASCHWB,ROYAL MAIL,Total Adult Social Care,216,POSTAL SERVICES-GOVERNMENT ONLY,2021-22Q4_PC352
Sandwell Metropolitan Borough Council,http://www.sandwell.gov.uk/info/200202/performance_and_spending/3233/government_procurement_cards,03-Feb-2022,Total ASCHWB,ROYAL MAIL,Total Adult Social Care,216,POSTAL SERVICES-GOVERNMENT ONLY,2021-22Q4_PC353
Sandwell Metropolitan Borough Council,http://www.sandwell.gov.uk/info/200202/performance_and_spending/3233/government_procurement_cards,03-Feb-2022,Total ASCHWB,AMZNMKTPLACE AMAZON.CO,Total Adult Social Care,20.98,MISCELLANEOUS AND SPECIALTY RETAIL STORES,2021-22Q4_PC354
Sandwell Metropolitan Borough Council,http://www.sandwell.gov.uk/info/200202/performance_and_spending/3233/government_procurement_cards,03-Feb-2022,Total ASCHWB,AMZNMKTPLACE AMAZON.CO,Total Adult Social Care,3.48,MISCELLANEOUS AND SPECIALTY RETAIL STORES,2021-22Q4_PC355
Sandwell Metropolitan Borough Council,http://www.sandwell.gov.uk/info/200202/performance_and_spending/3233/government_procurement_cards,03-Feb-2022,Total Public Health,THEEVENTSCALPLUGINS,Public Health,91.12,"COMPUTERS, COMPUTER PERIPHERAL EQUIPMENT, SOFTWARE",2021-22Q4_PC356
Sandwell Metropolitan Borough Council,http://www.sandwell.gov.uk/info/200202/performance_and_spending/3233/government_procurement_cards,03-Feb-2022,Total Public Health,QR-CODE-GENERATOR.COM,Public Health,61.91,COMPUTER SOFTWARE STORES,2021-22Q4_PC357
Sandwell Metropolitan Borough Council,http://www.sandwell.gov.uk/info/200202/performance_and_spending/3233/government_procurement_cards,03-Feb-2022,Director of Law & Governance,CHARTERED INSTITUTE OF,Assistant Chief Executive (Excl SIU),367,"SCHOOLS, BUSINESS AND SECRETARIAL",2021-22Q4_PC358
Sandwell Metropolitan Borough Council,http://www.sandwell.gov.uk/info/200202/performance_and_spending/3233/government_procurement_cards,03-Feb-2022,Director of Law & Governance,CHARTERED INSTITUTE OF,Assistant Chief Executive (Excl SIU),367,"SCHOOLS, BUSINESS AND SECRETARIAL",2021-22Q4_PC359
Sandwell Metropolitan Borough Council,http://www.sandwell.gov.uk/info/200202/performance_and_spending/3233/government_procurement_cards,03-Feb-2022,Housing & Assets Total,AO RETAIL LIMITED,Corporate Management,266,HOUSEHOLD APPLIANCE STORES,2021-22Q4_PC360
Sandwell Metropolitan Borough Council,http://www.sandwell.gov.uk/info/200202/performance_and_spending/3233/government_procurement_cards,03-Feb-2022,Total Borough Economy,PAYPAL  LIGHTS4FUN,Total Adult Social Care,189.98,MISCELLANEOUS HOUSE FURNISHING SPECIALTY SHOPS,2021-22Q4_PC361
Sandwell Metropolitan Borough Council,http://www.sandwell.gov.uk/info/200202/performance_and_spending/3233/government_procurement_cards,03-Feb-2022,Total Borough Economy,PAYPAL  LIGHTS4FUN,Total Adult Social Care,235.96,MISCELLANEOUS HOUSE FURNISHING SPECIALTY SHOPS,2021-22Q4_PC362
Sandwell Metropolitan Borough Council,http://www.sandwell.gov.uk/info/200202/performance_and_spending/3233/government_procurement_cards,03-Feb-2022,Total Housing Revenue Account,Amazon.co.uk ZO4YJ7L85,Total Housing Revenue Account,74.97,DIRECT MARKETING-OTHER DIRECT MARKETERS/NOT ELSEW.,2021-22Q4_PC363
Sandwell Metropolitan Borough Council,http://www.sandwell.gov.uk/info/200202/performance_and_spending/3233/government_procurement_cards,03-Feb-2022,Individual School Budgets With Inclusion,AMZNMktplace,Individual School Budgets With Inclusion,59.97,MISCELLANEOUS AND SPECIALTY RETAIL STORES,2021-22Q4_PC364
Sandwell Metropolitan Borough Council,http://www.sandwell.gov.uk/info/200202/performance_and_spending/3233/government_procurement_cards,03-Feb-2022,Childrens Services,SAINSBURYS S/MKTS,Childrens Services,34.1,"GROCERY STORES, SUPERMARKETS",2021-22Q4_PC365
Sandwell Metropolitan Borough Council,http://www.sandwell.gov.uk/info/200202/performance_and_spending/3233/government_procurement_cards,03-Feb-2022,Childrens Services,ASDA GEORGE COM LEEDS,Childrens Services,110.95,"GROCERY STORES, SUPERMARKETS",2021-22Q4_PC366
Sandwell Metropolitan Borough Council,http://www.sandwell.gov.uk/info/200202/performance_and_spending/3233/government_procurement_cards,03-Feb-2022,Housing & Assets Total,PRIMARK 476,Corporate Management,182,FAMILY CLOTHING STORES,2021-22Q4_PC367
Sandwell Metropolitan Borough Council,http://www.sandwell.gov.uk/info/200202/performance_and_spending/3233/government_procurement_cards,03-Feb-2022,Total Borough Economy,WWW.OFFICETEAMCONNECT.,Total Adult Social Care,45.42,STATIONERY/OFFICE SUPPLIES/PRINTING & WRITING PAP.,2021-22Q4_PC368
Sandwell Metropolitan Borough Council,http://www.sandwell.gov.uk/info/200202/performance_and_spending/3233/government_procurement_cards,03-Feb-2022,Total Borough Economy,Amazon.co.uk 5O8RZ5T15,Total Adult Social Care,27.6,DIRECT MARKETING-OTHER DIRECT MARKETERS/NOT ELSEW.,2021-22Q4_PC369
Sandwell Metropolitan Borough Council,http://www.sandwell.gov.uk/info/200202/performance_and_spending/3233/government_procurement_cards,03-Feb-2022,Total Borough Economy,AMZNMktplace,Total Adult Social Care,62.88,MISCELLANEOUS AND SPECIALTY RETAIL STORES,2021-22Q4_PC370
Sandwell Metropolitan Borough Council,http://www.sandwell.gov.uk/info/200202/performance_and_spending/3233/government_procurement_cards,24-Jan-2022,Total Housing Revenue Account,CARVERS,Total Housing Revenue Account,173.4,"BUILDING MATERIALS, LUMBER STORES",2021-22Q4_PC371
Sandwell Metropolitan Borough Council,http://www.sandwell.gov.uk/info/200202/performance_and_spending/3233/government_procurement_cards,24-Jan-2022,Total Housing Revenue Account,CARVERS,Total Housing Revenue Account,223.87,"BUILDING MATERIALS, LUMBER STORES",2021-22Q4_PC372
Sandwell Metropolitan Borough Council,http://www.sandwell.gov.uk/info/200202/performance_and_spending/3233/government_procurement_cards,24-Jan-2022,Total Borough Economy,ALDI 9 772,Total Adult Social Care,1.15,"GROCERY STORES, SUPERMARKETS",2021-22Q4_PC373
Sandwell Metropolitan Borough Council,http://www.sandwell.gov.uk/info/200202/performance_and_spending/3233/government_procurement_cards,24-Jan-2022,Housing & Assets Total,HIGHFIELD HOUSE HO,Corporate Management,40,"LODGING-HOTELS,MOTELS,RESORTS-NOT CLASSIFIED",2021-22Q4_PC374
Sandwell Metropolitan Borough Council,http://www.sandwell.gov.uk/info/200202/performance_and_spending/3233/government_procurement_cards,24-Jan-2022,Housing & Assets Total,HIGHFIELD HOUSE HO,Corporate Management,50,"LODGING-HOTELS,MOTELS,RESORTS-NOT CLASSIFIED",2021-22Q4_PC375
Sandwell Metropolitan Borough Council,http://www.sandwell.gov.uk/info/200202/performance_and_spending/3233/government_procurement_cards,24-Jan-2022,Housing & Assets Total,HIGHFIELD HOUSE HO,Corporate Management,405,"LODGING-HOTELS,MOTELS,RESORTS-NOT CLASSIFIED",2021-22Q4_PC376
Sandwell Metropolitan Borough Council,http://www.sandwell.gov.uk/info/200202/performance_and_spending/3233/government_procurement_cards,24-Jan-2022,Housing & Assets Total,HIGHFIELD HOUSE HO,Corporate Management,900,"LODGING-HOTELS,MOTELS,RESORTS-NOT CLASSIFIED",2021-22Q4_PC377
Sandwell Metropolitan Borough Council,http://www.sandwell.gov.uk/info/200202/performance_and_spending/3233/government_procurement_cards,24-Jan-2022,Housing & Assets Total,HIGHFIELD HOUSE HO,Corporate Management,900,"LODGING-HOTELS,MOTELS,RESORTS-NOT CLASSIFIED",2021-22Q4_PC378
Sandwell Metropolitan Borough Council,http://www.sandwell.gov.uk/info/200202/performance_and_spending/3233/government_procurement_cards,24-Jan-2022,Housing & Assets Total,HIGHFIELD HOUSE HO,Corporate Management,950,"LODGING-HOTELS,MOTELS,RESORTS-NOT CLASSIFIED",2021-22Q4_PC379
Sandwell Metropolitan Borough Council,http://www.sandwell.gov.uk/info/200202/performance_and_spending/3233/government_procurement_cards,24-Jan-2022,Housing & Assets Total,HIGHFIELD HOUSE HO,Corporate Management,950,"LODGING-HOTELS,MOTELS,RESORTS-NOT CLASSIFIED",2021-22Q4_PC380
Sandwell Metropolitan Borough Council,http://www.sandwell.gov.uk/info/200202/performance_and_spending/3233/government_procurement_cards,24-Jan-2022,Housing & Assets Total,HIGHFIELD HOUSE HO,Corporate Management,950,"LODGING-HOTELS,MOTELS,RESORTS-NOT CLASSIFIED",2021-22Q4_PC381
Sandwell Metropolitan Borough Council,http://www.sandwell.gov.uk/info/200202/performance_and_spending/3233/government_procurement_cards,24-Jan-2022,Housing & Assets Total,HIGHFIELD HOUSE HO,Corporate Management,950,"LODGING-HOTELS,MOTELS,RESORTS-NOT CLASSIFIED",2021-22Q4_PC382
Sandwell Metropolitan Borough Council,http://www.sandwell.gov.uk/info/200202/performance_and_spending/3233/government_procurement_cards,24-Jan-2022,Housing & Assets Total,HIGHFIELD HOUSE HO,Corporate Management,950,"LODGING-HOTELS,MOTELS,RESORTS-NOT CLASSIFIED",2021-22Q4_PC383
Sandwell Metropolitan Borough Council,http://www.sandwell.gov.uk/info/200202/performance_and_spending/3233/government_procurement_cards,24-Jan-2022,Housing & Assets Total,HIGHFIELD HOUSE HO,Corporate Management,975,"LODGING-HOTELS,MOTELS,RESORTS-NOT CLASSIFIED",2021-22Q4_PC384
Sandwell Metropolitan Borough Council,http://www.sandwell.gov.uk/info/200202/performance_and_spending/3233/government_procurement_cards,24-Jan-2022,Housing & Assets Total,NATIONAL RESIDENTI,Corporate Management,170,"ORGANIZATIONS, MEMBERSHIP-NOT ELSEWHERE CLASSIFIED",2021-22Q4_PC385
Sandwell Metropolitan Borough Council,http://www.sandwell.gov.uk/info/200202/performance_and_spending/3233/government_procurement_cards,24-Jan-2022,Regeneration & Growth,Amazon.co.uk UC8UP0K35,Regeneration And The Economy,65.25,DIRECT MARKETING-OTHER DIRECT MARKETERS/NOT ELSEW.,2021-22Q4_PC386
Sandwell Metropolitan Borough Council,http://www.sandwell.gov.uk/info/200202/performance_and_spending/3233/government_procurement_cards,24-Jan-2022,Regeneration & Growth,OU CONTINUING ED,Regeneration And The Economy,250,"COLLEGES, UNIV, PRO SCHOOLS, JUNIOR COLLEGES",2021-22Q4_PC387
Sandwell Metropolitan Borough Council,http://www.sandwell.gov.uk/info/200202/performance_and_spending/3233/government_procurement_cards,24-Jan-2022,Childrens Services,AMZNMKTPLACE AMAZON.CO,Childrens Services,24.98,MISCELLANEOUS AND SPECIALTY RETAIL STORES,2021-22Q4_PC388
Sandwell Metropolitan Borough Council,http://www.sandwell.gov.uk/info/200202/performance_and_spending/3233/government_procurement_cards,24-Jan-2022,Childrens Services,TESCO STORES 5194,Childrens Services,7.55,"GROCERY STORES, SUPERMARKETS",2021-22Q4_PC389
Sandwell Metropolitan Borough Council,http://www.sandwell.gov.uk/info/200202/performance_and_spending/3233/government_procurement_cards,24-Jan-2022,Childrens Services,AMZNMKTPLACE AMAZON.CO,Childrens Services,99.39,MISCELLANEOUS AND SPECIALTY RETAIL STORES,2021-22Q4_PC390
Sandwell Metropolitan Borough Council,http://www.sandwell.gov.uk/info/200202/performance_and_spending/3233/government_procurement_cards,24-Jan-2022,Childrens Services,AMZNMktplace,Childrens Services,25.17,MISCELLANEOUS AND SPECIALTY RETAIL STORES,2021-22Q4_PC391
Sandwell Metropolitan Borough Council,http://www.sandwell.gov.uk/info/200202/performance_and_spending/3233/government_procurement_cards,24-Jan-2022,Childrens Services,AMZNMktplace,Childrens Services,99.98,MISCELLANEOUS AND SPECIALTY RETAIL STORES,2021-22Q4_PC392
Sandwell Metropolitan Borough Council,http://www.sandwell.gov.uk/info/200202/performance_and_spending/3233/government_procurement_cards,24-Jan-2022,Childrens Services,AMZNMktplace,Childrens Services,12.6,MISCELLANEOUS AND SPECIALTY RETAIL STORES,2021-22Q4_PC393
Sandwell Metropolitan Borough Council,http://www.sandwell.gov.uk/info/200202/performance_and_spending/3233/government_procurement_cards,24-Jan-2022,FINANCE (Inc SIU),Hotel on Booking.com,Assistant Chief Executive (Excl SIU),-258,"LODGING-HOTELS,MOTELS,RESORTS-NOT CLASSIFIED",2021-22Q4_PC394
Sandwell Metropolitan Borough Council,http://www.sandwell.gov.uk/info/200202/performance_and_spending/3233/government_procurement_cards,24-Jan-2022,Total Borough Economy,CANVA  I03307-15675660,Total Adult Social Care,10.99,PHOTOGRAPHIC STUDIOS,2021-22Q4_PC395
Sandwell Metropolitan Borough Council,http://www.sandwell.gov.uk/info/200202/performance_and_spending/3233/government_procurement_cards,24-Jan-2022,Total ASCHWB,A TO Z TYRES,Total Adult Social Care,250,AUTOMOTIVE SERVICE SHOPS,2021-22Q4_PC396
Sandwell Metropolitan Borough Council,http://www.sandwell.gov.uk/info/200202/performance_and_spending/3233/government_procurement_cards,24-Jan-2022,Total ASCHWB,AMZNMktplace,Total Adult Social Care,9.99,MISCELLANEOUS AND SPECIALTY RETAIL STORES,2021-22Q4_PC397
Sandwell Metropolitan Borough Council,http://www.sandwell.gov.uk/info/200202/performance_and_spending/3233/government_procurement_cards,24-Jan-2022,Total Borough Economy,HOUSE OF MARBLES,Total Adult Social Care,246,MISCELLANEOUS GENERAL MERCHANDISE,2021-22Q4_PC398
Sandwell Metropolitan Borough Council,http://www.sandwell.gov.uk/info/200202/performance_and_spending/3233/government_procurement_cards,24-Jan-2022,Total Borough Economy,AMZNMktplace,Total Adult Social Care,31.99,MISCELLANEOUS AND SPECIALTY RETAIL STORES,2021-22Q4_PC399
Sandwell Metropolitan Borough Council,http://www.sandwell.gov.uk/info/200202/performance_and_spending/3233/government_procurement_cards,24-Jan-2022,Director of Law & Governance,Amazon Prime 2B7DT6DZ5,Assistant Chief Executive (Excl SIU),7.99,DIRECT MARKETING-CONTINUITY/SUBSCRIPTION MERCHANTS,2021-22Q4_PC400
Sandwell Metropolitan Borough Council,http://www.sandwell.gov.uk/info/200202/performance_and_spending/3233/government_procurement_cards,24-Jan-2022,Total Borough Economy,SP   ROOTSPLANTS,Total Adult Social Care,58,MISCELLANEOUS AND SPECIALTY RETAIL STORES,2021-22Q4_PC401
Sandwell Metropolitan Borough Council,http://www.sandwell.gov.uk/info/200202/performance_and_spending/3233/government_procurement_cards,24-Jan-2022,Regeneration & Growth,SMS CONNECTIONS,Regeneration And The Economy,1837.68,"FUEL DEALERS-COAL, FUEL OIL, LIQ PETROLEUM, WOOD",2021-22Q4_PC402
Sandwell Metropolitan Borough Council,http://www.sandwell.gov.uk/info/200202/performance_and_spending/3233/government_procurement_cards,24-Jan-2022,Regeneration & Growth,Amazon.co.uk 4172D2EN5,Regeneration And The Economy,139,DIRECT MARKETING-OTHER DIRECT MARKETERS/NOT ELSEW.,2021-22Q4_PC403
Sandwell Metropolitan Borough Council,http://www.sandwell.gov.uk/info/200202/performance_and_spending/3233/government_procurement_cards,24-Jan-2022,Total ASCHWB,EBAY COMMERCE UK LTD,Total Adult Social Care,29.5,DEPARTMENT STORES,2021-22Q4_PC404
Sandwell Metropolitan Borough Council,http://www.sandwell.gov.uk/info/200202/performance_and_spending/3233/government_procurement_cards,24-Jan-2022,Total ASCHWB,SCREWFIX DIRECT,Total Adult Social Care,51.8,"BUILDING MATERIALS, LUMBER STORES",2021-22Q4_PC405
Sandwell Metropolitan Borough Council,http://www.sandwell.gov.uk/info/200202/performance_and_spending/3233/government_procurement_cards,24-Jan-2022,Total Borough Economy,WWW.OFFICETEAMCONNECT.,Total Adult Social Care,96.26,STATIONERY/OFFICE SUPPLIES/PRINTING & WRITING PAP.,2021-22Q4_PC406
Sandwell Metropolitan Borough Council,http://www.sandwell.gov.uk/info/200202/performance_and_spending/3233/government_procurement_cards,24-Jan-2022,Total ASCHWB,WWW.MARKALLENGROUP.COM,Total Adult Social Care,118.8,SCHOOLS & EDUCATIONAL SVC-NOT ELSEWHERE CLASSIFIED,2021-22Q4_PC407
Sandwell Metropolitan Borough Council,http://www.sandwell.gov.uk/info/200202/performance_and_spending/3233/government_procurement_cards,24-Jan-2022,Childrens Services,SCREWFIX DIR LTD,Childrens Services,16.98,"BUILDING MATERIALS, LUMBER STORES",2021-22Q4_PC408
Sandwell Metropolitan Borough Council,http://www.sandwell.gov.uk/info/200202/performance_and_spending/3233/government_procurement_cards,24-Jan-2022,Childrens Services,BEEBYS BUBBLES,Childrens Services,157.5,"CLEANING, GARMENT, AND LAUNDRY SERVICES",2021-22Q4_PC409
Sandwell Metropolitan Borough Council,http://www.sandwell.gov.uk/info/200202/performance_and_spending/3233/government_procurement_cards,24-Jan-2022,Total ASCHWB,WWW.OFFICETEAMCONNECT.,Total Adult Social Care,55.21,STATIONERY/OFFICE SUPPLIES/PRINTING & WRITING PAP.,2021-22Q4_PC410
Sandwell Metropolitan Borough Council,http://www.sandwell.gov.uk/info/200202/performance_and_spending/3233/government_procurement_cards,24-Jan-2022,FINANCE (Inc SIU),AMZNMKTPLACE AMAZON.CO,Total Adult Social Care,18.98,MISCELLANEOUS AND SPECIALTY RETAIL STORES,2021-22Q4_PC411
Sandwell Metropolitan Borough Council,http://www.sandwell.gov.uk/info/200202/performance_and_spending/3233/government_procurement_cards,24-Jan-2022,Director of Law & Governance,WM MORRISONS STORE,Assistant Chief Executive (Excl SIU),6.79,"GROCERY STORES, SUPERMARKETS",2021-22Q4_PC412
Sandwell Metropolitan Borough Council,http://www.sandwell.gov.uk/info/200202/performance_and_spending/3233/government_procurement_cards,24-Jan-2022,Childrens Services,SAINSBURYS S/MKTS,Childrens Services,22.65,"GROCERY STORES, SUPERMARKETS",2021-22Q4_PC413
Sandwell Metropolitan Borough Council,http://www.sandwell.gov.uk/info/200202/performance_and_spending/3233/government_procurement_cards,24-Jan-2022,Total Housing Revenue Account,AMZNMktplace,Total Housing Revenue Account,27.93,MISCELLANEOUS AND SPECIALTY RETAIL STORES,2021-22Q4_PC414
Sandwell Metropolitan Borough Council,http://www.sandwell.gov.uk/info/200202/performance_and_spending/3233/government_procurement_cards,24-Jan-2022,Regeneration & Growth,AMZNMktplace,Regeneration And The Economy,24.53,MISCELLANEOUS AND SPECIALTY RETAIL STORES,2021-22Q4_PC415
Sandwell Metropolitan Borough Council,http://www.sandwell.gov.uk/info/200202/performance_and_spending/3233/government_procurement_cards,25-Jan-2022,Total Housing Revenue Account,WWW.KANE.CO.UK,Total Housing Revenue Account,1275,HARDWARE EQUIPMENT AND SUPPLIES,2021-22Q4_PC416
Sandwell Metropolitan Borough Council,http://www.sandwell.gov.uk/info/200202/performance_and_spending/3233/government_procurement_cards,25-Jan-2022,Total Borough Economy,DVSA,Total Adult Social Care,205,GOVERNMENT SERVICES-NOT ELSEWHERE CLASSIFIED,2021-22Q4_PC417
Sandwell Metropolitan Borough Council,http://www.sandwell.gov.uk/info/200202/performance_and_spending/3233/government_procurement_cards,25-Jan-2022,Corporate Management,AMZNMktplace,Corporate Management,47.02,MISCELLANEOUS AND SPECIALTY RETAIL STORES,2021-22Q4_PC418
Sandwell Metropolitan Borough Council,http://www.sandwell.gov.uk/info/200202/performance_and_spending/3233/government_procurement_cards,25-Jan-2022,Corporate Management,FS  JotForm,Corporate Management,17.33,DIGITAL GOODS SOFTWARE APPLICATIONS,2021-22Q4_PC419
Sandwell Metropolitan Borough Council,http://www.sandwell.gov.uk/info/200202/performance_and_spending/3233/government_procurement_cards,25-Jan-2022,Housing & Assets Total,HIGHFIELD HOUSE HO,Corporate Management,1350,"LODGING-HOTELS,MOTELS,RESORTS-NOT CLASSIFIED",2021-22Q4_PC420
Sandwell Metropolitan Borough Council,http://www.sandwell.gov.uk/info/200202/performance_and_spending/3233/government_procurement_cards,25-Jan-2022,Childrens Services,AMZNMKTPLACE AMAZON.CO,Childrens Services,57.99,MISCELLANEOUS AND SPECIALTY RETAIL STORES,2021-22Q4_PC421
Sandwell Metropolitan Borough Council,http://www.sandwell.gov.uk/info/200202/performance_and_spending/3233/government_procurement_cards,25-Jan-2022,Childrens Services,ASDA STORES 4253,Childrens Services,6.93,"GROCERY STORES, SUPERMARKETS",2021-22Q4_PC422
Sandwell Metropolitan Borough Council,http://www.sandwell.gov.uk/info/200202/performance_and_spending/3233/government_procurement_cards,25-Jan-2022,Childrens Services,STORES DIRECT LIMITED,Childrens Services,229,"FIREPLACE, FIREPLACE SCREENS & ACCESSORIES STORES",2021-22Q4_PC423
Sandwell Metropolitan Borough Council,http://www.sandwell.gov.uk/info/200202/performance_and_spending/3233/government_procurement_cards,25-Jan-2022,Childrens Services,POST OFFICE COUNTER,Childrens Services,45.6,POSTAL SERVICES-GOVERNMENT ONLY,2021-22Q4_PC424
Sandwell Metropolitan Borough Council,http://www.sandwell.gov.uk/info/200202/performance_and_spending/3233/government_procurement_cards,25-Jan-2022,Total Borough Economy,WWW.BISHOPG.AC.UK,Total Adult Social Care,350,"COLLEGES, UNIV, PRO SCHOOLS, JUNIOR COLLEGES",2021-22Q4_PC425
Sandwell Metropolitan Borough Council,http://www.sandwell.gov.uk/info/200202/performance_and_spending/3233/government_procurement_cards,25-Jan-2022,Total Borough Economy,Amazon.co.uk PI0YV1PN5,Total Adult Social Care,14.99,DIRECT MARKETING-OTHER DIRECT MARKETERS/NOT ELSEW.,2021-22Q4_PC426
Sandwell Metropolitan Borough Council,http://www.sandwell.gov.uk/info/200202/performance_and_spending/3233/government_procurement_cards,25-Jan-2022,Total ASCHWB,JAX FIRST AID,Total Adult Social Care,82.3,COMPUTER SOFTWARE STORES,2021-22Q4_PC427
Sandwell Metropolitan Borough Council,http://www.sandwell.gov.uk/info/200202/performance_and_spending/3233/government_procurement_cards,25-Jan-2022,Total ASCHWB,AMZNMktplace,Total Adult Social Care,196.09,MISCELLANEOUS AND SPECIALTY RETAIL STORES,2021-22Q4_PC428
Sandwell Metropolitan Borough Council,http://www.sandwell.gov.uk/info/200202/performance_and_spending/3233/government_procurement_cards,25-Jan-2022,Childrens Services,AMZNMKTPLACE AMAZON.CO,Childrens Services,16.95,MISCELLANEOUS AND SPECIALTY RETAIL STORES,2021-22Q4_PC429
Sandwell Metropolitan Borough Council,http://www.sandwell.gov.uk/info/200202/performance_and_spending/3233/government_procurement_cards,25-Jan-2022,Total Borough Economy,POST OFFICE COUNTER,Total Adult Social Care,6.85,POSTAL SERVICES-GOVERNMENT ONLY,2021-22Q4_PC430
Sandwell Metropolitan Borough Council,http://www.sandwell.gov.uk/info/200202/performance_and_spending/3233/government_procurement_cards,25-Jan-2022,Total ASCHWB,KEYS PLEASE,Total Adult Social Care,19.73,BUSINESS SERVICES-NOT ELSEWHERE CLASSIFIED,2021-22Q4_PC431
Sandwell Metropolitan Borough Council,http://www.sandwell.gov.uk/info/200202/performance_and_spending/3233/government_procurement_cards,25-Jan-2022,Total ASCHWB,AMZNMktplace,Total Adult Social Care,105.97,MISCELLANEOUS AND SPECIALTY RETAIL STORES,2021-22Q4_PC432
Sandwell Metropolitan Borough Council,http://www.sandwell.gov.uk/info/200202/performance_and_spending/3233/government_procurement_cards,25-Jan-2022,Total ASCHWB,AMZNMktplace,Total Adult Social Care,914.97,MISCELLANEOUS AND SPECIALTY RETAIL STORES,2021-22Q4_PC433
Sandwell Metropolitan Borough Council,http://www.sandwell.gov.uk/info/200202/performance_and_spending/3233/government_procurement_cards,25-Jan-2022,Childrens Services,SPECIALIST CRAFTS LTD,Childrens Services,148.92,"ARTIST SUPPLY STORES, CRAFT SHOPS",2021-22Q4_PC434
Sandwell Metropolitan Borough Council,http://www.sandwell.gov.uk/info/200202/performance_and_spending/3233/government_procurement_cards,25-Jan-2022,Childrens Services,ASDA GROCERIES ONLINE,Childrens Services,162.78,"GROCERY STORES, SUPERMARKETS",2021-22Q4_PC435
Sandwell Metropolitan Borough Council,http://www.sandwell.gov.uk/info/200202/performance_and_spending/3233/government_procurement_cards,25-Jan-2022,Childrens Services,ASDA GROCERIES ONLINE,Childrens Services,-0.37,"GROCERY STORES, SUPERMARKETS",2021-22Q4_PC436
Sandwell Metropolitan Borough Council,http://www.sandwell.gov.uk/info/200202/performance_and_spending/3233/government_procurement_cards,25-Jan-2022,Total Borough Economy,PAYPAL  SGSA,Total Adult Social Care,95,GOVERNMENT SERVICES-NOT ELSEWHERE CLASSIFIED,2021-22Q4_PC437
Sandwell Metropolitan Borough Council,http://www.sandwell.gov.uk/info/200202/performance_and_spending/3233/government_procurement_cards,25-Jan-2022,Individual School Budgets With Inclusion,MIM MIMEO LTD,Individual School Budgets With Inclusion,249.78,STATIONERY/OFFICE SUPPLIES/PRINTING & WRITING PAP.,2021-22Q4_PC438
Sandwell Metropolitan Borough Council,http://www.sandwell.gov.uk/info/200202/performance_and_spending/3233/government_procurement_cards,25-Jan-2022,Individual School Budgets With Inclusion,MIM MIMEO LTD,Individual School Budgets With Inclusion,249.78,STATIONERY/OFFICE SUPPLIES/PRINTING & WRITING PAP.,2021-22Q4_PC439
Sandwell Metropolitan Borough Council,http://www.sandwell.gov.uk/info/200202/performance_and_spending/3233/government_procurement_cards,25-Jan-2022,Regeneration & Growth,AMZNMKTPLACE AMAZON.CO,Regeneration And The Economy,152.82,MISCELLANEOUS AND SPECIALTY RETAIL STORES,2021-22Q4_PC440
Sandwell Metropolitan Borough Council,http://www.sandwell.gov.uk/info/200202/performance_and_spending/3233/government_procurement_cards,26-Jan-2022,Total Housing Revenue Account,NORDAN UK LTD,Total Housing Revenue Account,71,"BUILDING MATERIALS, LUMBER STORES",2021-22Q4_PC441
Sandwell Metropolitan Borough Council,http://www.sandwell.gov.uk/info/200202/performance_and_spending/3233/government_procurement_cards,26-Jan-2022,FINANCE (Inc SIU),WWW.OFFICETEAMCONNECT.,Assistant Chief Executive (Excl SIU),32.1,STATIONERY/OFFICE SUPPLIES/PRINTING & WRITING PAP.,2021-22Q4_PC442
Sandwell Metropolitan Borough Council,http://www.sandwell.gov.uk/info/200202/performance_and_spending/3233/government_procurement_cards,26-Jan-2022,Total Borough Economy,WWW.FTA.CO.UK,Total Adult Social Care,163.2,RAILROADS - FREIGHT,2021-22Q4_PC443
Sandwell Metropolitan Borough Council,http://www.sandwell.gov.uk/info/200202/performance_and_spending/3233/government_procurement_cards,26-Jan-2022,Total ASCHWB,Amazon.co.uk US2GJ1WB5,Total Adult Social Care,14.86,DIRECT MARKETING-OTHER DIRECT MARKETERS/NOT ELSEW.,2021-22Q4_PC444
Sandwell Metropolitan Borough Council,http://www.sandwell.gov.uk/info/200202/performance_and_spending/3233/government_procurement_cards,26-Jan-2022,Regeneration & Growth,AMZNMktplace,Regeneration And The Economy,135,MISCELLANEOUS AND SPECIALTY RETAIL STORES,2021-22Q4_PC445
Sandwell Metropolitan Borough Council,http://www.sandwell.gov.uk/info/200202/performance_and_spending/3233/government_procurement_cards,26-Jan-2022,Childrens Services,ARGOS LTD,Childrens Services,88.95,DISCOUNT STORES,2021-22Q4_PC446
Sandwell Metropolitan Borough Council,http://www.sandwell.gov.uk/info/200202/performance_and_spending/3233/government_procurement_cards,26-Jan-2022,Childrens Services,VODAFONE LTD,Childrens Services,24.57,TELECOM INCL PREPAID/RECURRING PHONE SVCS,2021-22Q4_PC447
Sandwell Metropolitan Borough Council,http://www.sandwell.gov.uk/info/200202/performance_and_spending/3233/government_procurement_cards,26-Jan-2022,Childrens Services,AMZNMKTPLACE AMAZON.CO,Childrens Services,24.99,MISCELLANEOUS AND SPECIALTY RETAIL STORES,2021-22Q4_PC448
Sandwell Metropolitan Borough Council,http://www.sandwell.gov.uk/info/200202/performance_and_spending/3233/government_procurement_cards,26-Jan-2022,Childrens Services,CAMPAIGN FOR LEARNING,Childrens Services,43.2,PROFESSIONAL SERVICES-NOT ELSEWHERE CLASSIFIED,2021-22Q4_PC449
Sandwell Metropolitan Borough Council,http://www.sandwell.gov.uk/info/200202/performance_and_spending/3233/government_procurement_cards,26-Jan-2022,Childrens Services,CARTRIDGEPEOPLE.COM,Childrens Services,43.99,STATIONERY/OFFICE SUPPLIES/PRINTING & WRITING PAP.,2021-22Q4_PC450
Sandwell Metropolitan Borough Council,http://www.sandwell.gov.uk/info/200202/performance_and_spending/3233/government_procurement_cards,26-Jan-2022,Childrens Services,ROYAL MAIL ONLINE SHOP,Childrens Services,66,POSTAL SERVICES-GOVERNMENT ONLY,2021-22Q4_PC451
Sandwell Metropolitan Borough Council,http://www.sandwell.gov.uk/info/200202/performance_and_spending/3233/government_procurement_cards,26-Jan-2022,Childrens Services,AMZNMktplace,Childrens Services,35.14,MISCELLANEOUS AND SPECIALTY RETAIL STORES,2021-22Q4_PC452
Sandwell Metropolitan Borough Council,http://www.sandwell.gov.uk/info/200202/performance_and_spending/3233/government_procurement_cards,26-Jan-2022,Childrens Services,AMZNMktplace,Childrens Services,27,MISCELLANEOUS AND SPECIALTY RETAIL STORES,2021-22Q4_PC453
Sandwell Metropolitan Borough Council,http://www.sandwell.gov.uk/info/200202/performance_and_spending/3233/government_procurement_cards,26-Jan-2022,Childrens Services,AMZNMktplace,Childrens Services,11.78,MISCELLANEOUS AND SPECIALTY RETAIL STORES,2021-22Q4_PC454
Sandwell Metropolitan Borough Council,http://www.sandwell.gov.uk/info/200202/performance_and_spending/3233/government_procurement_cards,26-Jan-2022,Housing & Assets Total,AMZNMKTPLACE AMAZON.CO,Corporate Management,15.48,MISCELLANEOUS AND SPECIALTY RETAIL STORES,2021-22Q4_PC455
Sandwell Metropolitan Borough Council,http://www.sandwell.gov.uk/info/200202/performance_and_spending/3233/government_procurement_cards,26-Jan-2022,Housing & Assets Total,Amazon.co.uk 9Q94B80I5,Corporate Management,19.99,DIRECT MARKETING-OTHER DIRECT MARKETERS/NOT ELSEW.,2021-22Q4_PC456
Sandwell Metropolitan Borough Council,http://www.sandwell.gov.uk/info/200202/performance_and_spending/3233/government_procurement_cards,26-Jan-2022,Regeneration & Growth,GATEWAY MEDIA LIMITED,Regeneration And The Economy,1578,ADVERTISING SERVICES,2021-22Q4_PC457
Sandwell Metropolitan Borough Council,http://www.sandwell.gov.uk/info/200202/performance_and_spending/3233/government_procurement_cards,26-Jan-2022,Total Public Health,AMZNMktplace,Public Health,150,MISCELLANEOUS AND SPECIALTY RETAIL STORES,2021-22Q4_PC458
Sandwell Metropolitan Borough Council,http://www.sandwell.gov.uk/info/200202/performance_and_spending/3233/government_procurement_cards,26-Jan-2022,Total ASCHWB,Amazon.co.uk MQ3JM8DU5,Total Adult Social Care,79.49,DIRECT MARKETING-OTHER DIRECT MARKETERS/NOT ELSEW.,2021-22Q4_PC459
Sandwell Metropolitan Borough Council,http://www.sandwell.gov.uk/info/200202/performance_and_spending/3233/government_procurement_cards,26-Jan-2022,Total ASCHWB,WWW.OFFICETEAMCONNECT.,Total Adult Social Care,246.76,STATIONERY/OFFICE SUPPLIES/PRINTING & WRITING PAP.,2021-22Q4_PC460
Sandwell Metropolitan Borough Council,http://www.sandwell.gov.uk/info/200202/performance_and_spending/3233/government_procurement_cards,26-Jan-2022,Total ASCHWB,AMZNMktplace,Total Adult Social Care,465.35,MISCELLANEOUS AND SPECIALTY RETAIL STORES,2021-22Q4_PC461
Sandwell Metropolitan Borough Council,http://www.sandwell.gov.uk/info/200202/performance_and_spending/3233/government_procurement_cards,26-Jan-2022,Childrens Services,CANALSIDE HOLDINGS LIM,Childrens Services,7,"GROCERY STORES, SUPERMARKETS",2021-22Q4_PC462
Sandwell Metropolitan Borough Council,http://www.sandwell.gov.uk/info/200202/performance_and_spending/3233/government_procurement_cards,26-Jan-2022,Childrens Services,BEEBYS BUBBLES,Childrens Services,67.5,"CLEANING, GARMENT, AND LAUNDRY SERVICES",2021-22Q4_PC463
Sandwell Metropolitan Borough Council,http://www.sandwell.gov.uk/info/200202/performance_and_spending/3233/government_procurement_cards,26-Jan-2022,Total Housing Revenue Account,AMZNMKTPLACE AMAZON.CO,Total Housing Revenue Account,79.99,MISCELLANEOUS AND SPECIALTY RETAIL STORES,2021-22Q4_PC464
Sandwell Metropolitan Borough Council,http://www.sandwell.gov.uk/info/200202/performance_and_spending/3233/government_procurement_cards,26-Jan-2022,FINANCE (Inc SIU),SARAH S ROSE GARDEN,Total Adult Social Care,50,FLORISTS,2021-22Q4_PC465
Sandwell Metropolitan Borough Council,http://www.sandwell.gov.uk/info/200202/performance_and_spending/3233/government_procurement_cards,26-Jan-2022,FINANCE (Inc SIU),AMZNMKTPLACE AMAZON.CO,Total Adult Social Care,18.98,MISCELLANEOUS AND SPECIALTY RETAIL STORES,2021-22Q4_PC466
Sandwell Metropolitan Borough Council,http://www.sandwell.gov.uk/info/200202/performance_and_spending/3233/government_procurement_cards,26-Jan-2022,Housing & Assets Total,TRAVELODGE,Corporate Management,257.98,TRAVELODGE,2021-22Q4_PC467
Sandwell Metropolitan Borough Council,http://www.sandwell.gov.uk/info/200202/performance_and_spending/3233/government_procurement_cards,26-Jan-2022,Individual School Budgets With Inclusion,POSIES,Individual School Budgets With Inclusion,30,FLORISTS,2021-22Q4_PC468
Sandwell Metropolitan Borough Council,http://www.sandwell.gov.uk/info/200202/performance_and_spending/3233/government_procurement_cards,26-Jan-2022,Individual School Budgets With Inclusion,AMZNMktplace,Individual School Budgets With Inclusion,15.98,MISCELLANEOUS AND SPECIALTY RETAIL STORES,2021-22Q4_PC469
Sandwell Metropolitan Borough Council,http://www.sandwell.gov.uk/info/200202/performance_and_spending/3233/government_procurement_cards,27-Jan-2022,Regeneration & Growth,AMZNMktplace,Regeneration And The Economy,18.97,MISCELLANEOUS AND SPECIALTY RETAIL STORES,2021-22Q4_PC470
Sandwell Metropolitan Borough Council,http://www.sandwell.gov.uk/info/200202/performance_and_spending/3233/government_procurement_cards,27-Jan-2022,Total Borough Economy,Amazon Prime 8E0XK9N95,Total Adult Social Care,7.99,DIRECT MARKETING-CONTINUITY/SUBSCRIPTION MERCHANTS,2021-22Q4_PC471
Sandwell Metropolitan Borough Council,http://www.sandwell.gov.uk/info/200202/performance_and_spending/3233/government_procurement_cards,27-Jan-2022,Total ASCHWB,AMZNMktplace,Total Adult Social Care,51.96,MISCELLANEOUS AND SPECIALTY RETAIL STORES,2021-22Q4_PC472
Sandwell Metropolitan Borough Council,http://www.sandwell.gov.uk/info/200202/performance_and_spending/3233/government_procurement_cards,27-Jan-2022,Total ASCHWB,AMZNMKTPLACE AMAZON.CO,Total Adult Social Care,7.05,MISCELLANEOUS AND SPECIALTY RETAIL STORES,2021-22Q4_PC473
Sandwell Metropolitan Borough Council,http://www.sandwell.gov.uk/info/200202/performance_and_spending/3233/government_procurement_cards,27-Jan-2022,Total ASCHWB,Amazon.co.uk K42DN2M25,Total Adult Social Care,22.51,DIRECT MARKETING-OTHER DIRECT MARKETERS/NOT ELSEW.,2021-22Q4_PC474
Sandwell Metropolitan Borough Council,http://www.sandwell.gov.uk/info/200202/performance_and_spending/3233/government_procurement_cards,27-Jan-2022,Total ASCHWB,AMZNMktplace,Total Adult Social Care,67.92,MISCELLANEOUS AND SPECIALTY RETAIL STORES,2021-22Q4_PC475
Sandwell Metropolitan Borough Council,http://www.sandwell.gov.uk/info/200202/performance_and_spending/3233/government_procurement_cards,27-Jan-2022,Total ASCHWB,AMZNMktplace,Total Adult Social Care,25.93,MISCELLANEOUS AND SPECIALTY RETAIL STORES,2021-22Q4_PC476
Sandwell Metropolitan Borough Council,http://www.sandwell.gov.uk/info/200202/performance_and_spending/3233/government_procurement_cards,27-Jan-2022,Total ASCHWB,AMZNMktplace,Total Adult Social Care,25.93,MISCELLANEOUS AND SPECIALTY RETAIL STORES,2021-22Q4_PC477
Sandwell Metropolitan Borough Council,http://www.sandwell.gov.uk/info/200202/performance_and_spending/3233/government_procurement_cards,27-Jan-2022,Total ASCHWB,AMZNMktplace,Total Adult Social Care,25.93,MISCELLANEOUS AND SPECIALTY RETAIL STORES,2021-22Q4_PC478
Sandwell Metropolitan Borough Council,http://www.sandwell.gov.uk/info/200202/performance_and_spending/3233/government_procurement_cards,27-Jan-2022,Total ASCHWB,AMZNMktplace,Total Adult Social Care,51.96,MISCELLANEOUS AND SPECIALTY RETAIL STORES,2021-22Q4_PC479
Sandwell Metropolitan Borough Council,http://www.sandwell.gov.uk/info/200202/performance_and_spending/3233/government_procurement_cards,27-Jan-2022,Total ASCHWB,ASDA GEORGE COM LEEDS,Total Adult Social Care,48.5,"GROCERY STORES, SUPERMARKETS",2021-22Q4_PC480
Sandwell Metropolitan Borough Council,http://www.sandwell.gov.uk/info/200202/performance_and_spending/3233/government_procurement_cards,27-Jan-2022,Total ASCHWB,AMZNMktplace,Total Adult Social Care,25.93,MISCELLANEOUS AND SPECIALTY RETAIL STORES,2021-22Q4_PC481
Sandwell Metropolitan Borough Council,http://www.sandwell.gov.uk/info/200202/performance_and_spending/3233/government_procurement_cards,27-Jan-2022,Regeneration & Growth,TIMPSON LTD,Regeneration And The Economy,24,MISCELLANEOUS AND SPECIALTY RETAIL STORES,2021-22Q4_PC482
Sandwell Metropolitan Borough Council,http://www.sandwell.gov.uk/info/200202/performance_and_spending/3233/government_procurement_cards,27-Jan-2022,Childrens Services,ASDA STORE LTD,Childrens Services,10,TELECOM INCL PREPAID/RECURRING PHONE SVCS,2021-22Q4_PC483
Sandwell Metropolitan Borough Council,http://www.sandwell.gov.uk/info/200202/performance_and_spending/3233/government_procurement_cards,27-Jan-2022,Childrens Services,AMZNMKTPLACE AMAZON.CO,Childrens Services,12.75,MISCELLANEOUS AND SPECIALTY RETAIL STORES,2021-22Q4_PC484
Sandwell Metropolitan Borough Council,http://www.sandwell.gov.uk/info/200202/performance_and_spending/3233/government_procurement_cards,27-Jan-2022,Childrens Services,AMZNMktplace,Childrens Services,72.96,MISCELLANEOUS AND SPECIALTY RETAIL STORES,2021-22Q4_PC485
Sandwell Metropolitan Borough Council,http://www.sandwell.gov.uk/info/200202/performance_and_spending/3233/government_procurement_cards,27-Jan-2022,Childrens Services,Amazon.co.uk R07GU9155,Childrens Services,31.29,DIRECT MARKETING-OTHER DIRECT MARKETERS/NOT ELSEW.,2021-22Q4_PC486
Sandwell Metropolitan Borough Council,http://www.sandwell.gov.uk/info/200202/performance_and_spending/3233/government_procurement_cards,27-Jan-2022,Regeneration & Growth,Amazon.co.uk M04669EU5,Regeneration And The Economy,9.99,DIRECT MARKETING-OTHER DIRECT MARKETERS/NOT ELSEW.,2021-22Q4_PC487
Sandwell Metropolitan Borough Council,http://www.sandwell.gov.uk/info/200202/performance_and_spending/3233/government_procurement_cards,27-Jan-2022,Regeneration & Growth,AMZNMktplace,Regeneration And The Economy,9.98,MISCELLANEOUS AND SPECIALTY RETAIL STORES,2021-22Q4_PC488
Sandwell Metropolitan Borough Council,http://www.sandwell.gov.uk/info/200202/performance_and_spending/3233/government_procurement_cards,27-Jan-2022,Childrens Services,WWW.THEWORKS.CO.UK,Childrens Services,102,DISCOUNT STORES,2021-22Q4_PC489
Sandwell Metropolitan Borough Council,http://www.sandwell.gov.uk/info/200202/performance_and_spending/3233/government_procurement_cards,27-Jan-2022,Childrens Services,AMZNMKTPLACE AMAZON.CO,Childrens Services,21.58,MISCELLANEOUS AND SPECIALTY RETAIL STORES,2021-22Q4_PC490
Sandwell Metropolitan Borough Council,http://www.sandwell.gov.uk/info/200202/performance_and_spending/3233/government_procurement_cards,27-Jan-2022,Childrens Services,AMZNMktplace,Childrens Services,4.82,MISCELLANEOUS AND SPECIALTY RETAIL STORES,2021-22Q4_PC491
Sandwell Metropolitan Borough Council,http://www.sandwell.gov.uk/info/200202/performance_and_spending/3233/government_procurement_cards,27-Jan-2022,Childrens Services,AMZNMktplace,Childrens Services,60,MISCELLANEOUS AND SPECIALTY RETAIL STORES,2021-22Q4_PC492
Sandwell Metropolitan Borough Council,http://www.sandwell.gov.uk/info/200202/performance_and_spending/3233/government_procurement_cards,27-Jan-2022,Total Borough Economy,PAYPAL  DORSETCHARC,Total Adult Social Care,49.35,CHEMICALS/ALLIED PRODUCTS NOT ELSEWHERE CLASSIFIED,2021-22Q4_PC493
Sandwell Metropolitan Borough Council,http://www.sandwell.gov.uk/info/200202/performance_and_spending/3233/government_procurement_cards,27-Jan-2022,Total Borough Economy,AMZ Amazon.co.uk,Total Adult Social Care,-3.64,DIRECT MARKETING-OTHER DIRECT MARKETERS/NOT ELSEW.,2021-22Q4_PC494
Sandwell Metropolitan Borough Council,http://www.sandwell.gov.uk/info/200202/performance_and_spending/3233/government_procurement_cards,27-Jan-2022,Total Borough Economy,AMZNMktplace,Total Adult Social Care,8.99,MISCELLANEOUS AND SPECIALTY RETAIL STORES,2021-22Q4_PC495
Sandwell Metropolitan Borough Council,http://www.sandwell.gov.uk/info/200202/performance_and_spending/3233/government_procurement_cards,27-Jan-2022,Total Borough Economy,AMZNMKTPLACE AMAZON.CO,Total Adult Social Care,28.95,MISCELLANEOUS AND SPECIALTY RETAIL STORES,2021-22Q4_PC496
Sandwell Metropolitan Borough Council,http://www.sandwell.gov.uk/info/200202/performance_and_spending/3233/government_procurement_cards,27-Jan-2022,Childrens Services,WWW.OFFICETEAMCONNECT.,Childrens Services,-14.8,STATIONERY/OFFICE SUPPLIES/PRINTING & WRITING PAP.,2021-22Q4_PC497
Sandwell Metropolitan Borough Council,http://www.sandwell.gov.uk/info/200202/performance_and_spending/3233/government_procurement_cards,27-Jan-2022,Regeneration & Growth,CENTRE FOR ASSESSMENT,Regeneration And The Economy,1260,SCHOOLS & EDUCATIONAL SVC-NOT ELSEWHERE CLASSIFIED,2021-22Q4_PC498
Sandwell Metropolitan Borough Council,http://www.sandwell.gov.uk/info/200202/performance_and_spending/3233/government_procurement_cards,27-Jan-2022,Total ASCHWB,FRUUGO,Total Adult Social Care,102.99,MISCELLANEOUS AND SPECIALTY RETAIL STORES,2021-22Q4_PC499
Sandwell Metropolitan Borough Council,http://www.sandwell.gov.uk/info/200202/performance_and_spending/3233/government_procurement_cards,27-Jan-2022,Childrens Services,ELECTRICALDIRECT LIMIT,Childrens Services,63.49,HARDWARE STORES,2021-22Q4_PC500
Sandwell Metropolitan Borough Council,http://www.sandwell.gov.uk/info/200202/performance_and_spending/3233/government_procurement_cards,27-Jan-2022,Childrens Services,ASDA,Childrens Services,15.45,"GROCERY STORES, SUPERMARKETS",2021-22Q4_PC501
Sandwell Metropolitan Borough Council,http://www.sandwell.gov.uk/info/200202/performance_and_spending/3233/government_procurement_cards,27-Jan-2022,Childrens Services,HANDY DRY CLEANERS,Childrens Services,60,"CLEANING, GARMENT, AND LAUNDRY SERVICES",2021-22Q4_PC502
Sandwell Metropolitan Borough Council,http://www.sandwell.gov.uk/info/200202/performance_and_spending/3233/government_procurement_cards,27-Jan-2022,Total Borough Economy,Amazon.co.uk Y06SE03E5,Regeneration And The Economy,228.74,DIRECT MARKETING-OTHER DIRECT MARKETERS/NOT ELSEW.,2021-22Q4_PC503
Sandwell Metropolitan Borough Council,http://www.sandwell.gov.uk/info/200202/performance_and_spending/3233/government_procurement_cards,27-Jan-2022,Childrens Services,POUNDLAND 1509,Childrens Services,2,DISCOUNT STORES,2021-22Q4_PC504
Sandwell Metropolitan Borough Council,http://www.sandwell.gov.uk/info/200202/performance_and_spending/3233/government_procurement_cards,27-Jan-2022,Childrens Services,ALDI 9 772,Childrens Services,22.29,"GROCERY STORES, SUPERMARKETS",2021-22Q4_PC505
Sandwell Metropolitan Borough Council,http://www.sandwell.gov.uk/info/200202/performance_and_spending/3233/government_procurement_cards,27-Jan-2022,Total ASCHWB,ARGOS LTD,Total Adult Social Care,66,DISCOUNT STORES,2021-22Q4_PC506
Sandwell Metropolitan Borough Council,http://www.sandwell.gov.uk/info/200202/performance_and_spending/3233/government_procurement_cards,27-Jan-2022,Total ASCHWB,Amazon Prime 2G0SV0325,Total Adult Social Care,7.99,DIRECT MARKETING-CONTINUITY/SUBSCRIPTION MERCHANTS,2021-22Q4_PC507
Sandwell Metropolitan Borough Council,http://www.sandwell.gov.uk/info/200202/performance_and_spending/3233/government_procurement_cards,27-Jan-2022,Total Borough Economy,AMZNMktplace,Total Adult Social Care,33.99,MISCELLANEOUS AND SPECIALTY RETAIL STORES,2021-22Q4_PC508
Sandwell Metropolitan Borough Council,http://www.sandwell.gov.uk/info/200202/performance_and_spending/3233/government_procurement_cards,28-Jan-2022,Regeneration & Growth,SCREWFIX DIRECT,Regeneration And The Economy,24.21,"BUILDING MATERIALS, LUMBER STORES",2021-22Q4_PC509
Sandwell Metropolitan Borough Council,http://www.sandwell.gov.uk/info/200202/performance_and_spending/3233/government_procurement_cards,28-Jan-2022,Total Housing Revenue Account,WICKES PERRY BARR,Total Housing Revenue Account,30,"BUILDING MATERIALS, LUMBER STORES",2021-22Q4_PC510
Sandwell Metropolitan Borough Council,http://www.sandwell.gov.uk/info/200202/performance_and_spending/3233/government_procurement_cards,28-Jan-2022,Total Housing Revenue Account,CARVERS,Total Housing Revenue Account,294.24,"BUILDING MATERIALS, LUMBER STORES",2021-22Q4_PC511
Sandwell Metropolitan Borough Council,http://www.sandwell.gov.uk/info/200202/performance_and_spending/3233/government_procurement_cards,28-Jan-2022,Total Housing Revenue Account,CARVERS,Total Housing Revenue Account,285.41,"BUILDING MATERIALS, LUMBER STORES",2021-22Q4_PC512
Sandwell Metropolitan Borough Council,http://www.sandwell.gov.uk/info/200202/performance_and_spending/3233/government_procurement_cards,28-Jan-2022,Housing & Assets Total,HIGHFIELD HOUSE HO,Corporate Management,1000,"LODGING-HOTELS,MOTELS,RESORTS-NOT CLASSIFIED",2021-22Q4_PC513
Sandwell Metropolitan Borough Council,http://www.sandwell.gov.uk/info/200202/performance_and_spending/3233/government_procurement_cards,28-Jan-2022,Housing & Assets Total,HIGHFIELD HOUSE HO,Corporate Management,1000,"LODGING-HOTELS,MOTELS,RESORTS-NOT CLASSIFIED",2021-22Q4_PC514
Sandwell Metropolitan Borough Council,http://www.sandwell.gov.uk/info/200202/performance_and_spending/3233/government_procurement_cards,28-Jan-2022,Total ASCHWB,ARGOS LTD,Total Adult Social Care,792,DISCOUNT STORES,2021-22Q4_PC515
Sandwell Metropolitan Borough Council,http://www.sandwell.gov.uk/info/200202/performance_and_spending/3233/government_procurement_cards,28-Jan-2022,Total ASCHWB,ARGOS LTD,Total Adult Social Care,946.95,DISCOUNT STORES,2021-22Q4_PC516
Sandwell Metropolitan Borough Council,http://www.sandwell.gov.uk/info/200202/performance_and_spending/3233/government_procurement_cards,28-Jan-2022,Total ASCHWB,AMZNMktplace,Total Adult Social Care,671.96,MISCELLANEOUS AND SPECIALTY RETAIL STORES,2021-22Q4_PC517
Sandwell Metropolitan Borough Council,http://www.sandwell.gov.uk/info/200202/performance_and_spending/3233/government_procurement_cards,28-Jan-2022,Regeneration & Growth,AMZNMKTPLACE AMAZON.CO,Regeneration And The Economy,13.99,MISCELLANEOUS AND SPECIALTY RETAIL STORES,2021-22Q4_PC518
Sandwell Metropolitan Borough Council,http://www.sandwell.gov.uk/info/200202/performance_and_spending/3233/government_procurement_cards,28-Jan-2022,Childrens Services,MENAI CLEANING SER,Childrens Services,756,"CLEANING AND MAINTENANCE, JANITORIAL SERVICES",2021-22Q4_PC519
Sandwell Metropolitan Borough Council,http://www.sandwell.gov.uk/info/200202/performance_and_spending/3233/government_procurement_cards,28-Jan-2022,Total Public Health,FACEBK 7A2YZB3RN2,Public Health,33.15,ADVERTISING SERVICES,2021-22Q4_PC520
Sandwell Metropolitan Borough Council,http://www.sandwell.gov.uk/info/200202/performance_and_spending/3233/government_procurement_cards,28-Jan-2022,Regeneration & Growth,thetrainline.com,Regeneration And The Economy,48.45,PASSENGER RAILWAYS,2021-22Q4_PC521
Sandwell Metropolitan Borough Council,http://www.sandwell.gov.uk/info/200202/performance_and_spending/3233/government_procurement_cards,28-Jan-2022,Childrens Services,AMZNMKTPLACE AMAZON.CO,Childrens Services,37.96,MISCELLANEOUS AND SPECIALTY RETAIL STORES,2021-22Q4_PC522
Sandwell Metropolitan Borough Council,http://www.sandwell.gov.uk/info/200202/performance_and_spending/3233/government_procurement_cards,28-Jan-2022,Childrens Services,AMZNMKTPLACE AMAZON.CO,Childrens Services,9.75,MISCELLANEOUS AND SPECIALTY RETAIL STORES,2021-22Q4_PC523
Sandwell Metropolitan Borough Council,http://www.sandwell.gov.uk/info/200202/performance_and_spending/3233/government_procurement_cards,28-Jan-2022,Childrens Services,TIMPSON LTD,Childrens Services,37,MISCELLANEOUS AND SPECIALTY RETAIL STORES,2021-22Q4_PC524
Sandwell Metropolitan Borough Council,http://www.sandwell.gov.uk/info/200202/performance_and_spending/3233/government_procurement_cards,28-Jan-2022,Total Borough Economy,AMZNMktplace,Total Adult Social Care,36.87,MISCELLANEOUS AND SPECIALTY RETAIL STORES,2021-22Q4_PC525
Sandwell Metropolitan Borough Council,http://www.sandwell.gov.uk/info/200202/performance_and_spending/3233/government_procurement_cards,28-Jan-2022,Childrens Services,ASDA GROCERIES ONLINE,Childrens Services,74.85,"GROCERY STORES, SUPERMARKETS",2021-22Q4_PC526
Sandwell Metropolitan Borough Council,http://www.sandwell.gov.uk/info/200202/performance_and_spending/3233/government_procurement_cards,28-Jan-2022,Childrens Services,ASDA GROCERIES ONLINE,Childrens Services,-10,"GROCERY STORES, SUPERMARKETS",2021-22Q4_PC527
Sandwell Metropolitan Borough Council,http://www.sandwell.gov.uk/info/200202/performance_and_spending/3233/government_procurement_cards,28-Jan-2022,Total ASCHWB,WWW.OFFICETEAMCONNECT.,Total Adult Social Care,52.92,STATIONERY/OFFICE SUPPLIES/PRINTING & WRITING PAP.,2021-22Q4_PC528
Sandwell Metropolitan Borough Council,http://www.sandwell.gov.uk/info/200202/performance_and_spending/3233/government_procurement_cards,28-Jan-2022,Total ASCHWB,WWW.OFFICETEAMCONNECT.,Total Adult Social Care,11.62,STATIONERY/OFFICE SUPPLIES/PRINTING & WRITING PAP.,2021-22Q4_PC529
Sandwell Metropolitan Borough Council,http://www.sandwell.gov.uk/info/200202/performance_and_spending/3233/government_procurement_cards,28-Jan-2022,Total Borough Economy,AMZNMktplace,Total Adult Social Care,12.97,MISCELLANEOUS AND SPECIALTY RETAIL STORES,2021-22Q4_PC530
Sandwell Metropolitan Borough Council,http://www.sandwell.gov.uk/info/200202/performance_and_spending/3233/government_procurement_cards,28-Jan-2022,Childrens Services,SAINSBURYS S/MKTS,Childrens Services,26.5,"GROCERY STORES, SUPERMARKETS",2021-22Q4_PC531
Sandwell Metropolitan Borough Council,http://www.sandwell.gov.uk/info/200202/performance_and_spending/3233/government_procurement_cards,28-Jan-2022,Childrens Services,SMYTHS TOYS OLDBURY,Childrens Services,7.98,"GAME, TOY, AND HOBBY SHOPS",2021-22Q4_PC532
Sandwell Metropolitan Borough Council,http://www.sandwell.gov.uk/info/200202/performance_and_spending/3233/government_procurement_cards,28-Jan-2022,Childrens Services,ASDA GEORGE COM LEEDS,Childrens Services,187,"GROCERY STORES, SUPERMARKETS",2021-22Q4_PC533
Sandwell Metropolitan Borough Council,http://www.sandwell.gov.uk/info/200202/performance_and_spending/3233/government_procurement_cards,28-Jan-2022,Total Borough Economy,AMZNMktplace,Total Adult Social Care,109.9,MISCELLANEOUS AND SPECIALTY RETAIL STORES,2021-22Q4_PC534
Sandwell Metropolitan Borough Council,http://www.sandwell.gov.uk/info/200202/performance_and_spending/3233/government_procurement_cards,28-Jan-2022,Total Borough Economy,AMZNMKTPLACE AMAZON.CO,Total Adult Social Care,211.1,MISCELLANEOUS AND SPECIALTY RETAIL STORES,2021-22Q4_PC535
Sandwell Metropolitan Borough Council,http://www.sandwell.gov.uk/info/200202/performance_and_spending/3233/government_procurement_cards,28-Jan-2022,Total Borough Economy,AGRIWEBB UK LTD,Total Adult Social Care,225,COMPUTER SOFTWARE STORES,2021-22Q4_PC536
Sandwell Metropolitan Borough Council,http://www.sandwell.gov.uk/info/200202/performance_and_spending/3233/government_procurement_cards,28-Jan-2022,Total Borough Economy,PROFESSIONAL PLAN,Total Adult Social Care,120.54,COMPUTER SOFTWARE STORES,2021-22Q4_PC537
Sandwell Metropolitan Borough Council,http://www.sandwell.gov.uk/info/200202/performance_and_spending/3233/government_procurement_cards,31-Jan-2022,Total Housing Revenue Account,DOVISTA UK LIMITED,Total Housing Revenue Account,107.65,"CONTRACTORS,SPECIAL TRADE-NOT ELSEWHERE CLASSIFIED",2021-22Q4_PC538
Sandwell Metropolitan Borough Council,http://www.sandwell.gov.uk/info/200202/performance_and_spending/3233/government_procurement_cards,31-Jan-2022,Total Housing Revenue Account,WWW.PARTMASTER.CO.UK,Total Housing Revenue Account,31.48,ELECTRICAL PARTS AND EQUIPMENT,2021-22Q4_PC539
Sandwell Metropolitan Borough Council,http://www.sandwell.gov.uk/info/200202/performance_and_spending/3233/government_procurement_cards,31-Jan-2022,Housing Revenue Account Capital,TEST METER GROUP LTD.,Total Housing Revenue Account,3630,"COMMERCIAL EQUIPMENT, NOT ELSEWHERE CLASSIFIED",2021-22Q4_PC540
Sandwell Metropolitan Borough Council,http://www.sandwell.gov.uk/info/200202/performance_and_spending/3233/government_procurement_cards,31-Jan-2022,Total Borough Economy,AMZNMktplace,Total Adult Social Care,17.99,MISCELLANEOUS AND SPECIALTY RETAIL STORES,2021-22Q4_PC541
Sandwell Metropolitan Borough Council,http://www.sandwell.gov.uk/info/200202/performance_and_spending/3233/government_procurement_cards,31-Jan-2022,FINANCE (Inc SIU),AMZNMKTPLACE AMAZON.CO,Assistant Chief Executive (Excl SIU),15.49,MISCELLANEOUS AND SPECIALTY RETAIL STORES,2021-22Q4_PC542
Sandwell Metropolitan Borough Council,http://www.sandwell.gov.uk/info/200202/performance_and_spending/3233/government_procurement_cards,31-Jan-2022,Regeneration & Growth,AMZNMKTPLACE AMAZON.CO,Regeneration And The Economy,14.97,MISCELLANEOUS AND SPECIALTY RETAIL STORES,2021-22Q4_PC543
Sandwell Metropolitan Borough Council,http://www.sandwell.gov.uk/info/200202/performance_and_spending/3233/government_procurement_cards,31-Jan-2022,Director of Law & Governance,AMZNMktplace,Assistant Chief Executive (Excl SIU),51.99,MISCELLANEOUS AND SPECIALTY RETAIL STORES,2021-22Q4_PC544
Sandwell Metropolitan Borough Council,http://www.sandwell.gov.uk/info/200202/performance_and_spending/3233/government_procurement_cards,31-Jan-2022,Total Borough Economy,GLOBAL FOODS (BHAM) LT,Total Adult Social Care,3.46,"PACKAGE STORES, BEER, WINE, LIQUOR",2021-22Q4_PC545
Sandwell Metropolitan Borough Council,http://www.sandwell.gov.uk/info/200202/performance_and_spending/3233/government_procurement_cards,31-Jan-2022,Regeneration & Growth,WWW.BICS.ORG.UK,Regeneration And The Economy,108,SCHOOLS & EDUCATIONAL SVC-NOT ELSEWHERE CLASSIFIED,2021-22Q4_PC546
Sandwell Metropolitan Borough Council,http://www.sandwell.gov.uk/info/200202/performance_and_spending/3233/government_procurement_cards,31-Jan-2022,Childrens Services,WWW.CLEANSTORE.CO.UK,Childrens Services,293.95,"CLEANING AND MAINTENANCE, JANITORIAL SERVICES",2021-22Q4_PC547
Sandwell Metropolitan Borough Council,http://www.sandwell.gov.uk/info/200202/performance_and_spending/3233/government_procurement_cards,31-Jan-2022,Childrens Services,AMZNMKTPLACE AMAZON.CO,Childrens Services,21.94,MISCELLANEOUS AND SPECIALTY RETAIL STORES,2021-22Q4_PC548
Sandwell Metropolitan Borough Council,http://www.sandwell.gov.uk/info/200202/performance_and_spending/3233/government_procurement_cards,31-Jan-2022,Childrens Services,ASDA SUPERSTORE,Childrens Services,168,"GROCERY STORES, SUPERMARKETS",2021-22Q4_PC549
Sandwell Metropolitan Borough Council,http://www.sandwell.gov.uk/info/200202/performance_and_spending/3233/government_procurement_cards,31-Jan-2022,Total Borough Economy,B & Q 1276,Total Adult Social Care,6.78,HOME SUPPLY WAREHOUSE STORES,2021-22Q4_PC550
Sandwell Metropolitan Borough Council,http://www.sandwell.gov.uk/info/200202/performance_and_spending/3233/government_procurement_cards,31-Jan-2022,Total ASCHWB,EBAY COMMERCE UK LTD,Total Adult Social Care,30.98,DEPARTMENT STORES,2021-22Q4_PC551
Sandwell Metropolitan Borough Council,http://www.sandwell.gov.uk/info/200202/performance_and_spending/3233/government_procurement_cards,31-Jan-2022,Housing & Assets Total,ASDA STORES,Corporate Management,114.66,"GROCERY STORES, SUPERMARKETS",2021-22Q4_PC552
Sandwell Metropolitan Borough Council,http://www.sandwell.gov.uk/info/200202/performance_and_spending/3233/government_procurement_cards,31-Jan-2022,Total Borough Economy,MACHINE MART WEB,Total Adult Social Care,35.98,"EQUIPMENT RENTAL&LEASING SVS, FURNTURE/TOOL RENTAL",2021-22Q4_PC553
Sandwell Metropolitan Borough Council,http://www.sandwell.gov.uk/info/200202/performance_and_spending/3233/government_procurement_cards,31-Jan-2022,Total Borough Economy,MARKS&SPENCER PLC,Total Adult Social Care,60,"GROCERY STORES, SUPERMARKETS",2021-22Q4_PC554
Sandwell Metropolitan Borough Council,http://www.sandwell.gov.uk/info/200202/performance_and_spending/3233/government_procurement_cards,31-Jan-2022,Regeneration & Growth,EASTWOOD PARK LIMITED,Regeneration And The Economy,570,SCHOOLS & EDUCATIONAL SVC-NOT ELSEWHERE CLASSIFIED,2021-22Q4_PC555
Sandwell Metropolitan Borough Council,http://www.sandwell.gov.uk/info/200202/performance_and_spending/3233/government_procurement_cards,31-Jan-2022,Regeneration & Growth,SMS CONNECTIONS,Regeneration And The Economy,9379.64,"FUEL DEALERS-COAL, FUEL OIL, LIQ PETROLEUM, WOOD",2021-22Q4_PC556
Sandwell Metropolitan Borough Council,http://www.sandwell.gov.uk/info/200202/performance_and_spending/3233/government_procurement_cards,31-Jan-2022,Total Public Health,AMZNMKTPLACE AMAZON.CO,Public Health,27.99,MISCELLANEOUS AND SPECIALTY RETAIL STORES,2021-22Q4_PC557
Sandwell Metropolitan Borough Council,http://www.sandwell.gov.uk/info/200202/performance_and_spending/3233/government_procurement_cards,31-Jan-2022,FINANCE (Inc SIU),WWW.OFFICETEAMCONNECT.,Total Adult Social Care,4.41,STATIONERY/OFFICE SUPPLIES/PRINTING & WRITING PAP.,2021-22Q4_PC558
Sandwell Metropolitan Borough Council,http://www.sandwell.gov.uk/info/200202/performance_and_spending/3233/government_procurement_cards,31-Jan-2022,Total Borough Economy,AMZNMktplace,Regeneration And The Economy,49.79,MISCELLANEOUS AND SPECIALTY RETAIL STORES,2021-22Q4_PC559
Sandwell Metropolitan Borough Council,http://www.sandwell.gov.uk/info/200202/performance_and_spending/3233/government_procurement_cards,31-Jan-2022,Total ASCHWB,AMZNMktplace,Total Adult Social Care,54.99,MISCELLANEOUS AND SPECIALTY RETAIL STORES,2021-22Q4_PC560
Sandwell Metropolitan Borough Council,http://www.sandwell.gov.uk/info/200202/performance_and_spending/3233/government_procurement_cards,31-Jan-2022,Childrens Services,SHOE ZONE LTD,Childrens Services,38.97,SHOE STORES,2021-22Q4_PC561
Sandwell Metropolitan Borough Council,http://www.sandwell.gov.uk/info/200202/performance_and_spending/3233/government_procurement_cards,31-Jan-2022,Childrens Services,CC UNIFORMS LTD,Childrens Services,148.5,MEN'S/WOMEN'S/CHILDREN'S UNIFORMS/COMMERCIAL CLOTH,2021-22Q4_PC562
Sandwell Metropolitan Borough Council,http://www.sandwell.gov.uk/info/200202/performance_and_spending/3233/government_procurement_cards,31-Jan-2022,Childrens Services,NEW SQUARE SHOPPING CE,Childrens Services,1.6,AUTOMOBILE PARKING LOTS AND GARAGES,2021-22Q4_PC563
Sandwell Metropolitan Borough Council,http://www.sandwell.gov.uk/info/200202/performance_and_spending/3233/government_procurement_cards,31-Jan-2022,Director of Law & Governance,WWW.OFFICETEAMCONNECT.,Assistant Chief Executive (Excl SIU),44.23,STATIONERY/OFFICE SUPPLIES/PRINTING & WRITING PAP.,2021-22Q4_PC564
Sandwell Metropolitan Borough Council,http://www.sandwell.gov.uk/info/200202/performance_and_spending/3233/government_procurement_cards,01-Feb-2022,Total Borough Economy,GEMINI DATA LOGGERS (U,Total Adult Social Care,71.94,HOUSEHOLD APPLIANCE STORES,2021-22Q4_PC565
Sandwell Metropolitan Borough Council,http://www.sandwell.gov.uk/info/200202/performance_and_spending/3233/government_procurement_cards,01-Feb-2022,Housing & Assets Total,ROYAL MAIL GROUP LTD,Corporate Management,7.75,POSTAL SERVICES-GOVERNMENT ONLY,2021-22Q4_PC566
Sandwell Metropolitan Borough Council,http://www.sandwell.gov.uk/info/200202/performance_and_spending/3233/government_procurement_cards,01-Feb-2022,Total ASCHWB,AMZNMktplace,Total Adult Social Care,172.78,MISCELLANEOUS AND SPECIALTY RETAIL STORES,2021-22Q4_PC567
Sandwell Metropolitan Borough Council,http://www.sandwell.gov.uk/info/200202/performance_and_spending/3233/government_procurement_cards,01-Feb-2022,Total Business Strategy & Change,TSOHOST,Assistant Chief Executive (Excl SIU),30.96,DIRECT MARKETING-CONTINUITY/SUBSCRIPTION MERCHANTS,2021-22Q4_PC568
Sandwell Metropolitan Borough Council,http://www.sandwell.gov.uk/info/200202/performance_and_spending/3233/government_procurement_cards,01-Feb-2022,Childrens Services,AMZNMktplace,Childrens Services,24.99,MISCELLANEOUS AND SPECIALTY RETAIL STORES,2021-22Q4_PC569
Sandwell Metropolitan Borough Council,http://www.sandwell.gov.uk/info/200202/performance_and_spending/3233/government_procurement_cards,01-Feb-2022,Childrens Services,AMZNMktplace,Childrens Services,11,MISCELLANEOUS AND SPECIALTY RETAIL STORES,2021-22Q4_PC570
Sandwell Metropolitan Borough Council,http://www.sandwell.gov.uk/info/200202/performance_and_spending/3233/government_procurement_cards,01-Feb-2022,Childrens Services,AMZNMktplace,Childrens Services,4.95,MISCELLANEOUS AND SPECIALTY RETAIL STORES,2021-22Q4_PC571
Sandwell Metropolitan Borough Council,http://www.sandwell.gov.uk/info/200202/performance_and_spending/3233/government_procurement_cards,01-Feb-2022,Childrens Services,AMZNMktplace,Childrens Services,6.79,MISCELLANEOUS AND SPECIALTY RETAIL STORES,2021-22Q4_PC572
Sandwell Metropolitan Borough Council,http://www.sandwell.gov.uk/info/200202/performance_and_spending/3233/government_procurement_cards,01-Feb-2022,Childrens Services,AMZNMktplace,Childrens Services,6.49,MISCELLANEOUS AND SPECIALTY RETAIL STORES,2021-22Q4_PC573
Sandwell Metropolitan Borough Council,http://www.sandwell.gov.uk/info/200202/performance_and_spending/3233/government_procurement_cards,01-Feb-2022,Childrens Services,AMZNMktplace,Childrens Services,8.99,MISCELLANEOUS AND SPECIALTY RETAIL STORES,2021-22Q4_PC574
Sandwell Metropolitan Borough Council,http://www.sandwell.gov.uk/info/200202/performance_and_spending/3233/government_procurement_cards,01-Feb-2022,Childrens Services,SP SERVICES,Childrens Services,76.8,DENTAL/LAB/MED/OPHTHALMIC HOSP EQUIP & SUPPLIES,2021-22Q4_PC575
Sandwell Metropolitan Borough Council,http://www.sandwell.gov.uk/info/200202/performance_and_spending/3233/government_procurement_cards,01-Feb-2022,Childrens Services,AMZNMKTPLACE AMAZON.CO,Childrens Services,17.98,MISCELLANEOUS AND SPECIALTY RETAIL STORES,2021-22Q4_PC576
Sandwell Metropolitan Borough Council,http://www.sandwell.gov.uk/info/200202/performance_and_spending/3233/government_procurement_cards,01-Feb-2022,Childrens Services,TESCO STORES 2770,Childrens Services,28.18,"GROCERY STORES, SUPERMARKETS",2021-22Q4_PC577
Sandwell Metropolitan Borough Council,http://www.sandwell.gov.uk/info/200202/performance_and_spending/3233/government_procurement_cards,01-Feb-2022,Total Borough Economy,Amazon.co.uk QH03J6Z35,Total Adult Social Care,30.76,DIRECT MARKETING-OTHER DIRECT MARKETERS/NOT ELSEW.,2021-22Q4_PC578
Sandwell Metropolitan Borough Council,http://www.sandwell.gov.uk/info/200202/performance_and_spending/3233/government_procurement_cards,01-Feb-2022,Total Borough Economy,AMZNMktplace,Total Adult Social Care,47.74,MISCELLANEOUS AND SPECIALTY RETAIL STORES,2021-22Q4_PC579
Sandwell Metropolitan Borough Council,http://www.sandwell.gov.uk/info/200202/performance_and_spending/3233/government_procurement_cards,01-Feb-2022,Total Borough Economy,thetrainline.com,Total Adult Social Care,6.3,PASSENGER RAILWAYS,2021-22Q4_PC580
Sandwell Metropolitan Borough Council,http://www.sandwell.gov.uk/info/200202/performance_and_spending/3233/government_procurement_cards,01-Feb-2022,Childrens Services,HARMONY MED,Childrens Services,43.14,DENTAL/LAB/MED/OPHTHALMIC HOSP EQUIP & SUPPLIES,2021-22Q4_PC581
Sandwell Metropolitan Borough Council,http://www.sandwell.gov.uk/info/200202/performance_and_spending/3233/government_procurement_cards,01-Feb-2022,Regeneration & Growth,CHRIS BRAIN ASSOCIATES,Regeneration And The Economy,990,"CONSULTING, MANAGEMENT, AND PUBLIC RELATIONS SVCS",2021-22Q4_PC582
Sandwell Metropolitan Borough Council,http://www.sandwell.gov.uk/info/200202/performance_and_spending/3233/government_procurement_cards,01-Feb-2022,Regeneration & Growth,Amazon.co.uk H88PK49Y5,Regeneration And The Economy,149.99,DIRECT MARKETING-OTHER DIRECT MARKETERS/NOT ELSEW.,2021-22Q4_PC583
Sandwell Metropolitan Borough Council,http://www.sandwell.gov.uk/info/200202/performance_and_spending/3233/government_procurement_cards,01-Feb-2022,Total ASCHWB,AMZNMktplace,Total Adult Social Care,56.2,MISCELLANEOUS AND SPECIALTY RETAIL STORES,2021-22Q4_PC584
Sandwell Metropolitan Borough Council,http://www.sandwell.gov.uk/info/200202/performance_and_spending/3233/government_procurement_cards,01-Feb-2022,Total Housing Revenue Account,POST OFFICE COUNTER,Total Housing Revenue Account,39.95,POSTAL SERVICES-GOVERNMENT ONLY,2021-22Q4_PC585
Sandwell Metropolitan Borough Council,http://www.sandwell.gov.uk/info/200202/performance_and_spending/3233/government_procurement_cards,01-Feb-2022,Total Housing Revenue Account,POST OFFICE COUNTER,Total Housing Revenue Account,5.1,POSTAL SERVICES-GOVERNMENT ONLY,2021-22Q4_PC586
Sandwell Metropolitan Borough Council,http://www.sandwell.gov.uk/info/200202/performance_and_spending/3233/government_procurement_cards,01-Feb-2022,Total Housing Revenue Account,POST OFFICE COUNTER,Total Housing Revenue Account,39.95,POSTAL SERVICES-GOVERNMENT ONLY,2021-22Q4_PC587
Sandwell Metropolitan Borough Council,http://www.sandwell.gov.uk/info/200202/performance_and_spending/3233/government_procurement_cards,01-Feb-2022,Total Borough Economy,IAN SMITH GROUP LTD,Total Adult Social Care,226.04,STATIONERY/OFFICE SUPPLIES/PRINTING & WRITING PAP.,2021-22Q4_PC588
Sandwell Metropolitan Borough Council,http://www.sandwell.gov.uk/info/200202/performance_and_spending/3233/government_procurement_cards,01-Feb-2022,Total Borough Economy,IAN SMITH GROUP LTD,Total Adult Social Care,220.44,STATIONERY/OFFICE SUPPLIES/PRINTING & WRITING PAP.,2021-22Q4_PC589
Sandwell Metropolitan Borough Council,http://www.sandwell.gov.uk/info/200202/performance_and_spending/3233/government_procurement_cards,02-Feb-2022,Total Housing Revenue Account,ASCP GROUP LIMITED,Total Housing Revenue Account,1116,BUSINESS SERVICES-NOT ELSEWHERE CLASSIFIED,2021-22Q4_PC590
Sandwell Metropolitan Borough Council,http://www.sandwell.gov.uk/info/200202/performance_and_spending/3233/government_procurement_cards,02-Feb-2022,Total Business Strategy & Change,Google Cloud EMEA Limi,Assistant Chief Executive (Excl SIU),219.72,BUSINESS SERVICES-NOT ELSEWHERE CLASSIFIED,2021-22Q4_PC591
Sandwell Metropolitan Borough Council,http://www.sandwell.gov.uk/info/200202/performance_and_spending/3233/government_procurement_cards,02-Feb-2022,Corporate Management,AMZNMktplace,Corporate Management,33.02,MISCELLANEOUS AND SPECIALTY RETAIL STORES,2021-22Q4_PC592
Sandwell Metropolitan Borough Council,http://www.sandwell.gov.uk/info/200202/performance_and_spending/3233/government_procurement_cards,02-Feb-2022,Childrens Services,POST OFFICE COUNTER,Childrens Services,3.2,POSTAL SERVICES-GOVERNMENT ONLY,2021-22Q4_PC593
Sandwell Metropolitan Borough Council,http://www.sandwell.gov.uk/info/200202/performance_and_spending/3233/government_procurement_cards,02-Feb-2022,Childrens Services,POST OFFICE COUNTER,Childrens Services,7.18,POSTAL SERVICES-GOVERNMENT ONLY,2021-22Q4_PC594
Sandwell Metropolitan Borough Council,http://www.sandwell.gov.uk/info/200202/performance_and_spending/3233/government_procurement_cards,02-Feb-2022,Total ASCHWB,PAY.ACCOBRANDS.COM,Total Adult Social Care,139.13,COMPUTER SOFTWARE STORES,2021-22Q4_PC595
Sandwell Metropolitan Borough Council,http://www.sandwell.gov.uk/info/200202/performance_and_spending/3233/government_procurement_cards,02-Feb-2022,Housing & Assets Total,AMZNMktplace,Corporate Management,23.98,MISCELLANEOUS AND SPECIALTY RETAIL STORES,2021-22Q4_PC596
Sandwell Metropolitan Borough Council,http://www.sandwell.gov.uk/info/200202/performance_and_spending/3233/government_procurement_cards,02-Feb-2022,Housing & Assets Total,AMZNMktplace,Corporate Management,36.96,MISCELLANEOUS AND SPECIALTY RETAIL STORES,2021-22Q4_PC597
Sandwell Metropolitan Borough Council,http://www.sandwell.gov.uk/info/200202/performance_and_spending/3233/government_procurement_cards,02-Feb-2022,Housing & Assets Total,AMZNMktplace,Corporate Management,23.98,MISCELLANEOUS AND SPECIALTY RETAIL STORES,2021-22Q4_PC598
Sandwell Metropolitan Borough Council,http://www.sandwell.gov.uk/info/200202/performance_and_spending/3233/government_procurement_cards,02-Feb-2022,Housing & Assets Total,AMZNMktplace,Corporate Management,79.88,MISCELLANEOUS AND SPECIALTY RETAIL STORES,2021-22Q4_PC599
Sandwell Metropolitan Borough Council,http://www.sandwell.gov.uk/info/200202/performance_and_spending/3233/government_procurement_cards,02-Feb-2022,Total Borough Economy,PAYPAL  IKEALIMITED,Total Adult Social Care,150,"EQUIP, FURNITURE, HOME FURNSHNGS STRS (EXCPT APPL)",2021-22Q4_PC600
Sandwell Metropolitan Borough Council,http://www.sandwell.gov.uk/info/200202/performance_and_spending/3233/government_procurement_cards,02-Feb-2022,Total Borough Economy,thetrainline.com,Total Adult Social Care,6.3,PASSENGER RAILWAYS,2021-22Q4_PC601
Sandwell Metropolitan Borough Council,http://www.sandwell.gov.uk/info/200202/performance_and_spending/3233/government_procurement_cards,02-Feb-2022,Total ASCHWB,AMZNMktplace,Total Adult Social Care,12.98,MISCELLANEOUS AND SPECIALTY RETAIL STORES,2021-22Q4_PC602
Sandwell Metropolitan Borough Council,http://www.sandwell.gov.uk/info/200202/performance_and_spending/3233/government_procurement_cards,02-Feb-2022,Total Borough Economy,AMZNMKTPLACE AMAZON.CO,Total Adult Social Care,27.99,MISCELLANEOUS AND SPECIALTY RETAIL STORES,2021-22Q4_PC603
Sandwell Metropolitan Borough Council,http://www.sandwell.gov.uk/info/200202/performance_and_spending/3233/government_procurement_cards,02-Feb-2022,FINANCE (Inc SIU),AMZNMKTPLACE AMAZON.CO,Assistant Chief Executive (Excl SIU),21.98,MISCELLANEOUS AND SPECIALTY RETAIL STORES,2021-22Q4_PC604
Sandwell Metropolitan Borough Council,http://www.sandwell.gov.uk/info/200202/performance_and_spending/3233/government_procurement_cards,02-Feb-2022,Total Business Strategy & Change,AMZNMKTPLACE AMAZON.CO,Assistant Chief Executive (Excl SIU),33.71,MISCELLANEOUS AND SPECIALTY RETAIL STORES,2021-22Q4_PC605
Sandwell Metropolitan Borough Council,http://www.sandwell.gov.uk/info/200202/performance_and_spending/3233/government_procurement_cards,02-Feb-2022,Housing & Assets Total,WF  WAYFAIR3505175204,Corporate Management,299.89,"EQUIP, FURNITURE, HOME FURNSHNGS STRS (EXCPT APPL)",2021-22Q4_PC606
Sandwell Metropolitan Borough Council,http://www.sandwell.gov.uk/info/200202/performance_and_spending/3233/government_procurement_cards,02-Feb-2022,Total Housing Revenue Account,AMZNMktplace,Total Housing Revenue Account,6.95,MISCELLANEOUS AND SPECIALTY RETAIL STORES,2021-22Q4_PC607
Sandwell Metropolitan Borough Council,http://www.sandwell.gov.uk/info/200202/performance_and_spending/3233/government_procurement_cards,02-Feb-2022,Total Housing Revenue Account,AMZNMktplace,Total Housing Revenue Account,8.98,MISCELLANEOUS AND SPECIALTY RETAIL STORES,2021-22Q4_PC608
Sandwell Metropolitan Borough Council,http://www.sandwell.gov.uk/info/200202/performance_and_spending/3233/government_procurement_cards,02-Feb-2022,Total Borough Economy,THE WORKPLACE DEPOT,Total Adult Social Care,323.88,INDUSTRIAL SUPPLIES NOT ELSEWHERE CLASSIFIED,2021-22Q4_PC609
Sandwell Metropolitan Borough Council,http://www.sandwell.gov.uk/info/200202/performance_and_spending/3233/government_procurement_cards,02-Feb-2022,Total Borough Economy,AMZNMktplace,Total Adult Social Care,305.4,MISCELLANEOUS AND SPECIALTY RETAIL STORES,2021-22Q4_PC610
Sandwell Metropolitan Borough Council,http://www.sandwell.gov.uk/info/200202/performance_and_spending/3233/government_procurement_cards,04-Feb-2022,FINANCE (Inc SIU),WWW.OFFICETEAMCONNECT.,Assistant Chief Executive (Excl SIU),17.66,STATIONERY/OFFICE SUPPLIES/PRINTING & WRITING PAP.,2021-22Q4_PC611
Sandwell Metropolitan Borough Council,http://www.sandwell.gov.uk/info/200202/performance_and_spending/3233/government_procurement_cards,04-Feb-2022,Total Business Strategy & Change,TSOHOST,Assistant Chief Executive (Excl SIU),49.99,DIRECT MARKETING-CONTINUITY/SUBSCRIPTION MERCHANTS,2021-22Q4_PC612
Sandwell Metropolitan Borough Council,http://www.sandwell.gov.uk/info/200202/performance_and_spending/3233/government_procurement_cards,04-Feb-2022,Regeneration & Growth,AMZNMktplace,Regeneration And The Economy,24.7,MISCELLANEOUS AND SPECIALTY RETAIL STORES,2021-22Q4_PC613
Sandwell Metropolitan Borough Council,http://www.sandwell.gov.uk/info/200202/performance_and_spending/3233/government_procurement_cards,04-Feb-2022,Childrens Services,WWW.OFFICETEAMCONNECT.,Childrens Services,40.02,STATIONERY/OFFICE SUPPLIES/PRINTING & WRITING PAP.,2021-22Q4_PC614
Sandwell Metropolitan Borough Council,http://www.sandwell.gov.uk/info/200202/performance_and_spending/3233/government_procurement_cards,04-Feb-2022,Childrens Services,Internetstores,Childrens Services,14.15,BICYCLE SHOPS-SALES AND SERVICE,2021-22Q4_PC615
Sandwell Metropolitan Borough Council,http://www.sandwell.gov.uk/info/200202/performance_and_spending/3233/government_procurement_cards,04-Feb-2022,FINANCE (Inc SIU),SCREWFIX DIRECT,Assistant Chief Executive (Excl SIU),113.66,"BUILDING MATERIALS, LUMBER STORES",2021-22Q4_PC616
Sandwell Metropolitan Borough Council,http://www.sandwell.gov.uk/info/200202/performance_and_spending/3233/government_procurement_cards,04-Feb-2022,Childrens Services,AMZNMktplace,Childrens Services,9.57,MISCELLANEOUS AND SPECIALTY RETAIL STORES,2021-22Q4_PC617
Sandwell Metropolitan Borough Council,http://www.sandwell.gov.uk/info/200202/performance_and_spending/3233/government_procurement_cards,04-Feb-2022,Childrens Services,AMZNMktplace,Childrens Services,12.47,MISCELLANEOUS AND SPECIALTY RETAIL STORES,2021-22Q4_PC618
Sandwell Metropolitan Borough Council,http://www.sandwell.gov.uk/info/200202/performance_and_spending/3233/government_procurement_cards,04-Feb-2022,Total Borough Economy,PODBEAN.COM,Total Adult Social Care,24.8,COMPUTER NETWORK/INFORMATION SERVICES,2021-22Q4_PC619
Sandwell Metropolitan Borough Council,http://www.sandwell.gov.uk/info/200202/performance_and_spending/3233/government_procurement_cards,04-Feb-2022,Total Borough Economy,PIXARTPRINTING,Total Adult Social Care,55.88,MISCELLANEOUS PUBLISHING AND PRINTING,2021-22Q4_PC620
Sandwell Metropolitan Borough Council,http://www.sandwell.gov.uk/info/200202/performance_and_spending/3233/government_procurement_cards,04-Feb-2022,Total ASCHWB,BRYSDALES LTD,Total Adult Social Care,91,MISCELLANEOUS AND SPECIALTY RETAIL STORES,2021-22Q4_PC621
Sandwell Metropolitan Borough Council,http://www.sandwell.gov.uk/info/200202/performance_and_spending/3233/government_procurement_cards,04-Feb-2022,Total ASCHWB,Amazon.co.uk 8Z2G96BU5,Total Adult Social Care,109.99,DIRECT MARKETING-OTHER DIRECT MARKETERS/NOT ELSEW.,2021-22Q4_PC622
Sandwell Metropolitan Borough Council,http://www.sandwell.gov.uk/info/200202/performance_and_spending/3233/government_procurement_cards,04-Feb-2022,Childrens Services,ELECTRICALDIRECT LIMIT,Childrens Services,-52.91,HARDWARE STORES,2021-22Q4_PC623
Sandwell Metropolitan Borough Council,http://www.sandwell.gov.uk/info/200202/performance_and_spending/3233/government_procurement_cards,04-Feb-2022,Director of Law & Governance,WWW.OFFICETEAMCONNECT.,Assistant Chief Executive (Excl SIU),60.19,STATIONERY/OFFICE SUPPLIES/PRINTING & WRITING PAP.,2021-22Q4_PC624
Sandwell Metropolitan Borough Council,http://www.sandwell.gov.uk/info/200202/performance_and_spending/3233/government_procurement_cards,04-Feb-2022,Total Borough Economy,PAYPAL  FLAG SHOP,Total Adult Social Care,65,MISCELLANEOUS AND SPECIALTY RETAIL STORES,2021-22Q4_PC625
Sandwell Metropolitan Borough Council,http://www.sandwell.gov.uk/info/200202/performance_and_spending/3233/government_procurement_cards,04-Feb-2022,Total Borough Economy,AMZNMktplace,Total Adult Social Care,63.73,MISCELLANEOUS AND SPECIALTY RETAIL STORES,2021-22Q4_PC626
Sandwell Metropolitan Borough Council,http://www.sandwell.gov.uk/info/200202/performance_and_spending/3233/government_procurement_cards,04-Feb-2022,Total Business Strategy & Change,AMZNMktplace,Assistant Chief Executive (Excl SIU),17.9,MISCELLANEOUS AND SPECIALTY RETAIL STORES,2021-22Q4_PC627
Sandwell Metropolitan Borough Council,http://www.sandwell.gov.uk/info/200202/performance_and_spending/3233/government_procurement_cards,04-Feb-2022,Individual School Budgets With Inclusion,Amazon.co.uk IS0WH7PC5,Individual School Budgets With Inclusion,31.8,DIRECT MARKETING-OTHER DIRECT MARKETERS/NOT ELSEW.,2021-22Q4_PC628
Sandwell Metropolitan Borough Council,http://www.sandwell.gov.uk/info/200202/performance_and_spending/3233/government_procurement_cards,04-Feb-2022,Childrens Services,ASDA GEORGE COM LEEDS,Childrens Services,56,"GROCERY STORES, SUPERMARKETS",2021-22Q4_PC629
Sandwell Metropolitan Borough Council,http://www.sandwell.gov.uk/info/200202/performance_and_spending/3233/government_procurement_cards,04-Feb-2022,Total Borough Economy,AMZNMktplace,Total Adult Social Care,45.72,MISCELLANEOUS AND SPECIALTY RETAIL STORES,2021-22Q4_PC630
Sandwell Metropolitan Borough Council,http://www.sandwell.gov.uk/info/200202/performance_and_spending/3233/government_procurement_cards,07-Feb-2022,Total Housing Revenue Account,WWW.OFFICETEAMCONNECT.,Total Housing Revenue Account,40.71,STATIONERY/OFFICE SUPPLIES/PRINTING & WRITING PAP.,2021-22Q4_PC631
Sandwell Metropolitan Borough Council,http://www.sandwell.gov.uk/info/200202/performance_and_spending/3233/government_procurement_cards,07-Feb-2022,Housing & Assets Total,ROYAL MAIL GROUP LTD,Corporate Management,7.75,POSTAL SERVICES-GOVERNMENT ONLY,2021-22Q4_PC632
Sandwell Metropolitan Borough Council,http://www.sandwell.gov.uk/info/200202/performance_and_spending/3233/government_procurement_cards,07-Feb-2022,Housing & Assets Total,PREMIER INN,Corporate Management,41.5,PREMIER INN,2021-22Q4_PC633
Sandwell Metropolitan Borough Council,http://www.sandwell.gov.uk/info/200202/performance_and_spending/3233/government_procurement_cards,07-Feb-2022,FINANCE (Inc SIU),SMARTY CO UK,Assistant Chief Executive (Excl SIU),10,TELECOM INCL PREPAID/RECURRING PHONE SVCS,2021-22Q4_PC634
Sandwell Metropolitan Borough Council,http://www.sandwell.gov.uk/info/200202/performance_and_spending/3233/government_procurement_cards,07-Feb-2022,Childrens Services,AMZNMktplace,Childrens Services,11.46,MISCELLANEOUS AND SPECIALTY RETAIL STORES,2021-22Q4_PC635
Sandwell Metropolitan Borough Council,http://www.sandwell.gov.uk/info/200202/performance_and_spending/3233/government_procurement_cards,07-Feb-2022,Regeneration & Growth,WWW.OFFICETEAMCONNECT.,Regeneration And The Economy,149.23,STATIONERY/OFFICE SUPPLIES/PRINTING & WRITING PAP.,2021-22Q4_PC636
Sandwell Metropolitan Borough Council,http://www.sandwell.gov.uk/info/200202/performance_and_spending/3233/government_procurement_cards,07-Feb-2022,FINANCE (Inc SIU),AMZNMktplace,Assistant Chief Executive (Excl SIU),6.14,MISCELLANEOUS AND SPECIALTY RETAIL STORES,2021-22Q4_PC637
Sandwell Metropolitan Borough Council,http://www.sandwell.gov.uk/info/200202/performance_and_spending/3233/government_procurement_cards,07-Feb-2022,Total Borough Economy,SAINSBURYS S/MKTS,Total Adult Social Care,7.14,"GROCERY STORES, SUPERMARKETS",2021-22Q4_PC638
Sandwell Metropolitan Borough Council,http://www.sandwell.gov.uk/info/200202/performance_and_spending/3233/government_procurement_cards,07-Feb-2022,Childrens Services,HOBBYCRAFT,Childrens Services,22.17,"ARTIST SUPPLY STORES, CRAFT SHOPS",2021-22Q4_PC639
Sandwell Metropolitan Borough Council,http://www.sandwell.gov.uk/info/200202/performance_and_spending/3233/government_procurement_cards,07-Feb-2022,Director of Law & Governance,AMZNMktplace,Assistant Chief Executive (Excl SIU),8.99,MISCELLANEOUS AND SPECIALTY RETAIL STORES,2021-22Q4_PC640
Sandwell Metropolitan Borough Council,http://www.sandwell.gov.uk/info/200202/performance_and_spending/3233/government_procurement_cards,07-Feb-2022,Childrens Services,GREETINGS HOUSE LTD,Childrens Services,91.6,"GIFT, CARD, NOVELTY AND SOUVENIR SHOPS",2021-22Q4_PC641
Sandwell Metropolitan Borough Council,http://www.sandwell.gov.uk/info/200202/performance_and_spending/3233/government_procurement_cards,07-Feb-2022,Childrens Services,AMZNMKTPLACE AMAZON.CO,Childrens Services,-12.47,MISCELLANEOUS AND SPECIALTY RETAIL STORES,2021-22Q4_PC642
Sandwell Metropolitan Borough Council,http://www.sandwell.gov.uk/info/200202/performance_and_spending/3233/government_procurement_cards,07-Feb-2022,Housing & Assets Total,Amazon Prime 528K875J5,Corporate Management,7.99,DIRECT MARKETING-CONTINUITY/SUBSCRIPTION MERCHANTS,2021-22Q4_PC643
Sandwell Metropolitan Borough Council,http://www.sandwell.gov.uk/info/200202/performance_and_spending/3233/government_procurement_cards,07-Feb-2022,Housing & Assets Total,Amazon.co.uk J668R35F5,Corporate Management,12.49,DIRECT MARKETING-OTHER DIRECT MARKETERS/NOT ELSEW.,2021-22Q4_PC644
Sandwell Metropolitan Borough Council,http://www.sandwell.gov.uk/info/200202/performance_and_spending/3233/government_procurement_cards,07-Feb-2022,Total ASCHWB,ONEDIRECT,Total Adult Social Care,119.99,DIRECT MARKETING-COMBINATION CATALOG/RETAIL MERCH.,2021-22Q4_PC645
Sandwell Metropolitan Borough Council,http://www.sandwell.gov.uk/info/200202/performance_and_spending/3233/government_procurement_cards,07-Feb-2022,Total ASCHWB,ONEDIRECT,Total Adult Social Care,115,DIRECT MARKETING-COMBINATION CATALOG/RETAIL MERCH.,2021-22Q4_PC646
Sandwell Metropolitan Borough Council,http://www.sandwell.gov.uk/info/200202/performance_and_spending/3233/government_procurement_cards,07-Feb-2022,Director of Law & Governance,Amazon.co.uk BW1O16M25,Assistant Chief Executive (Excl SIU),225.84,DIRECT MARKETING-OTHER DIRECT MARKETERS/NOT ELSEW.,2021-22Q4_PC647
Sandwell Metropolitan Borough Council,http://www.sandwell.gov.uk/info/200202/performance_and_spending/3233/government_procurement_cards,07-Feb-2022,Total ASCHWB,AMZNMktplace,Total Adult Social Care,6.64,MISCELLANEOUS AND SPECIALTY RETAIL STORES,2021-22Q4_PC648
Sandwell Metropolitan Borough Council,http://www.sandwell.gov.uk/info/200202/performance_and_spending/3233/government_procurement_cards,07-Feb-2022,Total Business Strategy & Change,Amazon.co.uk YP6O72635,Neighbourhoods,16.48,DIRECT MARKETING-OTHER DIRECT MARKETERS/NOT ELSEW.,2021-22Q4_PC649
Sandwell Metropolitan Borough Council,http://www.sandwell.gov.uk/info/200202/performance_and_spending/3233/government_procurement_cards,07-Feb-2022,Total Public Health,SAINSBURYS PETROL,Public Health,8,SERVICE STATIONS WITH OR WITHOUT ANCILLARY SERVICE,2021-22Q4_PC650
Sandwell Metropolitan Borough Council,http://www.sandwell.gov.uk/info/200202/performance_and_spending/3233/government_procurement_cards,07-Feb-2022,Total Public Health,Domino s Pizza,Public Health,131.31,"EATING PLACES, RESTAURANTS",2021-22Q4_PC651
Sandwell Metropolitan Borough Council,http://www.sandwell.gov.uk/info/200202/performance_and_spending/3233/government_procurement_cards,07-Feb-2022,FINANCE (Inc SIU),WWW.OFFICETEAMCONNECT.,Total Adult Social Care,5.96,STATIONERY/OFFICE SUPPLIES/PRINTING & WRITING PAP.,2021-22Q4_PC652
Sandwell Metropolitan Borough Council,http://www.sandwell.gov.uk/info/200202/performance_and_spending/3233/government_procurement_cards,07-Feb-2022,Total Borough Economy,SECURITY INDUSTRY AUTH,Total Adult Social Care,158.33,GOVERNMENT SERVICES-NOT ELSEWHERE CLASSIFIED,2021-22Q4_PC653
Sandwell Metropolitan Borough Council,http://www.sandwell.gov.uk/info/200202/performance_and_spending/3233/government_procurement_cards,07-Feb-2022,Total Business Strategy & Change,CWNP,Assistant Chief Executive (Excl SIU),646.46,"COLLEGES, UNIV, PRO SCHOOLS, JUNIOR COLLEGES",2021-22Q4_PC654
Sandwell Metropolitan Borough Council,http://www.sandwell.gov.uk/info/200202/performance_and_spending/3233/government_procurement_cards,07-Feb-2022,Individual School Budgets With Inclusion,AMZNMKTPLACE AMAZON.CO,Individual School Budgets With Inclusion,16.2,MISCELLANEOUS AND SPECIALTY RETAIL STORES,2021-22Q4_PC655
Sandwell Metropolitan Borough Council,http://www.sandwell.gov.uk/info/200202/performance_and_spending/3233/government_procurement_cards,07-Feb-2022,Individual School Budgets With Inclusion,GAR HOTEL RES,Individual School Budgets With Inclusion,209.68,TRAVEL AGENCIES AND TOUR OPERATORS,2021-22Q4_PC656
Sandwell Metropolitan Borough Council,http://www.sandwell.gov.uk/info/200202/performance_and_spending/3233/government_procurement_cards,07-Feb-2022,Total ASCHWB,AMZNMKTPLACE AMAZON.CO,Total Adult Social Care,459.9,MISCELLANEOUS AND SPECIALTY RETAIL STORES,2021-22Q4_PC657
Sandwell Metropolitan Borough Council,http://www.sandwell.gov.uk/info/200202/performance_and_spending/3233/government_procurement_cards,07-Feb-2022,Total ASCHWB,AMZNMktplace,Total Adult Social Care,459.9,MISCELLANEOUS AND SPECIALTY RETAIL STORES,2021-22Q4_PC658
Sandwell Metropolitan Borough Council,http://www.sandwell.gov.uk/info/200202/performance_and_spending/3233/government_procurement_cards,07-Feb-2022,Total Borough Economy,WWW.FLAGSANDFLAGPOLES.,Total Adult Social Care,137.5,MISCELLANEOUS PUBLISHING AND PRINTING,2021-22Q4_PC659
Sandwell Metropolitan Borough Council,http://www.sandwell.gov.uk/info/200202/performance_and_spending/3233/government_procurement_cards,07-Feb-2022,Total Borough Economy,AMZNMktplace,Total Adult Social Care,291.58,MISCELLANEOUS AND SPECIALTY RETAIL STORES,2021-22Q4_PC660
Sandwell Metropolitan Borough Council,http://www.sandwell.gov.uk/info/200202/performance_and_spending/3233/government_procurement_cards,07-Feb-2022,Total Borough Economy,AMZNMKTPLACE AMAZON.CO,Total Adult Social Care,19.98,MISCELLANEOUS AND SPECIALTY RETAIL STORES,2021-22Q4_PC661
Sandwell Metropolitan Borough Council,http://www.sandwell.gov.uk/info/200202/performance_and_spending/3233/government_procurement_cards,07-Feb-2022,Director of Law & Governance,WWW.OFFICETEAMCONNECT.,Assistant Chief Executive (Excl SIU),90.78,STATIONERY/OFFICE SUPPLIES/PRINTING & WRITING PAP.,2021-22Q4_PC662
Sandwell Metropolitan Borough Council,http://www.sandwell.gov.uk/info/200202/performance_and_spending/3233/government_procurement_cards,08-Feb-2022,Total ASCHWB,AMZ KP TECHNOLOGY,Total Adult Social Care,-82.28,MISCELLANEOUS AND SPECIALTY RETAIL STORES,2021-22Q4_PC663
Sandwell Metropolitan Borough Council,http://www.sandwell.gov.uk/info/200202/performance_and_spending/3233/government_procurement_cards,08-Feb-2022,Total ASCHWB,AMZ KP TECHNOLOGY,Total Adult Social Care,-90.5,MISCELLANEOUS AND SPECIALTY RETAIL STORES,2021-22Q4_PC664
Sandwell Metropolitan Borough Council,http://www.sandwell.gov.uk/info/200202/performance_and_spending/3233/government_procurement_cards,08-Feb-2022,Total ASCHWB,WWW.ADASS.ORG.UK,Total Adult Social Care,535.33,"ORGANIZATIONS, MEMBERSHIP-NOT ELSEWHERE CLASSIFIED",2021-22Q4_PC665
Sandwell Metropolitan Borough Council,http://www.sandwell.gov.uk/info/200202/performance_and_spending/3233/government_procurement_cards,08-Feb-2022,Childrens Services,AMZNMKTPLACE AMAZON.CO,Childrens Services,15.82,MISCELLANEOUS AND SPECIALTY RETAIL STORES,2021-22Q4_PC666
Sandwell Metropolitan Borough Council,http://www.sandwell.gov.uk/info/200202/performance_and_spending/3233/government_procurement_cards,08-Feb-2022,Regeneration & Growth,T J MORRIS LTD,Regeneration And The Economy,20.15,HARDWARE STORES,2021-22Q4_PC667
Sandwell Metropolitan Borough Council,http://www.sandwell.gov.uk/info/200202/performance_and_spending/3233/government_procurement_cards,08-Feb-2022,Regeneration & Growth,AMZNMktplace,Regeneration And The Economy,21.95,MISCELLANEOUS AND SPECIALTY RETAIL STORES,2021-22Q4_PC668
Sandwell Metropolitan Borough Council,http://www.sandwell.gov.uk/info/200202/performance_and_spending/3233/government_procurement_cards,08-Feb-2022,Housing & Assets Total,WWW.VICARAGELODGE.COM,Corporate Management,375,"LODGING-HOTELS,MOTELS,RESORTS-NOT CLASSIFIED",2021-22Q4_PC669
Sandwell Metropolitan Borough Council,http://www.sandwell.gov.uk/info/200202/performance_and_spending/3233/government_procurement_cards,08-Feb-2022,Housing & Assets Total,WWW.VICARAGELODGE.COM,Corporate Management,375,"LODGING-HOTELS,MOTELS,RESORTS-NOT CLASSIFIED",2021-22Q4_PC670
Sandwell Metropolitan Borough Council,http://www.sandwell.gov.uk/info/200202/performance_and_spending/3233/government_procurement_cards,08-Feb-2022,Housing & Assets Total,WWW.VICARAGELODGE.COM,Corporate Management,375,"LODGING-HOTELS,MOTELS,RESORTS-NOT CLASSIFIED",2021-22Q4_PC671
Sandwell Metropolitan Borough Council,http://www.sandwell.gov.uk/info/200202/performance_and_spending/3233/government_procurement_cards,08-Feb-2022,Housing & Assets Total,WWW.VICARAGELODGE.COM,Corporate Management,125,"LODGING-HOTELS,MOTELS,RESORTS-NOT CLASSIFIED",2021-22Q4_PC672
Sandwell Metropolitan Borough Council,http://www.sandwell.gov.uk/info/200202/performance_and_spending/3233/government_procurement_cards,08-Feb-2022,Housing & Assets Total,WWW.VICARAGELODGE.COM,Corporate Management,125,"LODGING-HOTELS,MOTELS,RESORTS-NOT CLASSIFIED",2021-22Q4_PC673
Sandwell Metropolitan Borough Council,http://www.sandwell.gov.uk/info/200202/performance_and_spending/3233/government_procurement_cards,08-Feb-2022,Housing & Assets Total,WWW.VICARAGELODGE.COM,Corporate Management,375,"LODGING-HOTELS,MOTELS,RESORTS-NOT CLASSIFIED",2021-22Q4_PC674
Sandwell Metropolitan Borough Council,http://www.sandwell.gov.uk/info/200202/performance_and_spending/3233/government_procurement_cards,08-Feb-2022,Childrens Services,POST OFFICE COUNTER,Childrens Services,15.84,POSTAL SERVICES-GOVERNMENT ONLY,2021-22Q4_PC675
Sandwell Metropolitan Borough Council,http://www.sandwell.gov.uk/info/200202/performance_and_spending/3233/government_procurement_cards,08-Feb-2022,Childrens Services,THE INSTITUTE FOR OUTD,Childrens Services,185,"ORGANIZATIONS, CHARITABLE AND SOCIAL SERVICES",2021-22Q4_PC676
Sandwell Metropolitan Borough Council,http://www.sandwell.gov.uk/info/200202/performance_and_spending/3233/government_procurement_cards,08-Feb-2022,Childrens Services,POST OFFICE COUNTER,Childrens Services,6.4,POSTAL SERVICES-GOVERNMENT ONLY,2021-22Q4_PC677
Sandwell Metropolitan Borough Council,http://www.sandwell.gov.uk/info/200202/performance_and_spending/3233/government_procurement_cards,08-Feb-2022,Total Borough Economy,AMZNMKTPLACE AMAZON.CO,Total Adult Social Care,49.96,MISCELLANEOUS AND SPECIALTY RETAIL STORES,2021-22Q4_PC678
Sandwell Metropolitan Borough Council,http://www.sandwell.gov.uk/info/200202/performance_and_spending/3233/government_procurement_cards,08-Feb-2022,Total Borough Economy,TIMPSON LTD,Total Adult Social Care,13,MISCELLANEOUS AND SPECIALTY RETAIL STORES,2021-22Q4_PC679
Sandwell Metropolitan Borough Council,http://www.sandwell.gov.uk/info/200202/performance_and_spending/3233/government_procurement_cards,08-Feb-2022,Regeneration & Growth,WWW.OFFICETEAMCONNECT.,Regeneration And The Economy,62.05,STATIONERY/OFFICE SUPPLIES/PRINTING & WRITING PAP.,2021-22Q4_PC680
Sandwell Metropolitan Borough Council,http://www.sandwell.gov.uk/info/200202/performance_and_spending/3233/government_procurement_cards,08-Feb-2022,Childrens Services,CANALSIDE HOLDINGS LIM,Childrens Services,7,"GROCERY STORES, SUPERMARKETS",2021-22Q4_PC681
Sandwell Metropolitan Borough Council,http://www.sandwell.gov.uk/info/200202/performance_and_spending/3233/government_procurement_cards,08-Feb-2022,Childrens Services,ASDA GROCERIES ONLINE,Childrens Services,154.3,"GROCERY STORES, SUPERMARKETS",2021-22Q4_PC682
Sandwell Metropolitan Borough Council,http://www.sandwell.gov.uk/info/200202/performance_and_spending/3233/government_procurement_cards,08-Feb-2022,Childrens Services,ASDA GROCERIES ONLINE,Childrens Services,-0.07,"GROCERY STORES, SUPERMARKETS",2021-22Q4_PC683
Sandwell Metropolitan Borough Council,http://www.sandwell.gov.uk/info/200202/performance_and_spending/3233/government_procurement_cards,08-Feb-2022,Total Borough Economy,WWW.SIGN-HOLDERS.CO.UK,Total Adult Social Care,63.5,MISCELLANEOUS AND SPECIALTY RETAIL STORES,2021-22Q4_PC684
Sandwell Metropolitan Borough Council,http://www.sandwell.gov.uk/info/200202/performance_and_spending/3233/government_procurement_cards,08-Feb-2022,Total Borough Economy,WWW.SIGN-HOLDERS.CO.UK,Total Adult Social Care,217.8,MISCELLANEOUS AND SPECIALTY RETAIL STORES,2021-22Q4_PC685
Sandwell Metropolitan Borough Council,http://www.sandwell.gov.uk/info/200202/performance_and_spending/3233/government_procurement_cards,08-Feb-2022,Total Borough Economy,SP   DYPROAUDIO.CO.UK,Total Adult Social Care,66.66,COMPUTER SOFTWARE STORES,2021-22Q4_PC686
Sandwell Metropolitan Borough Council,http://www.sandwell.gov.uk/info/200202/performance_and_spending/3233/government_procurement_cards,08-Feb-2022,Total Borough Economy,Amazon.co.uk 0I07703G5,Total Adult Social Care,2.96,DIRECT MARKETING-OTHER DIRECT MARKETERS/NOT ELSEW.,2021-22Q4_PC687
Sandwell Metropolitan Borough Council,http://www.sandwell.gov.uk/info/200202/performance_and_spending/3233/government_procurement_cards,08-Feb-2022,Total Housing Revenue Account,AMZNMKTPLACE AMAZON.CO,Total Housing Revenue Account,-10.97,MISCELLANEOUS AND SPECIALTY RETAIL STORES,2021-22Q4_PC688
Sandwell Metropolitan Borough Council,http://www.sandwell.gov.uk/info/200202/performance_and_spending/3233/government_procurement_cards,08-Feb-2022,Total Borough Economy,Klarna Sensory Educati,Total Adult Social Care,109.08,"GAME, TOY, AND HOBBY SHOPS",2021-22Q4_PC689
Sandwell Metropolitan Borough Council,http://www.sandwell.gov.uk/info/200202/performance_and_spending/3233/government_procurement_cards,08-Feb-2022,Regeneration & Growth,EB  SGSA CONFERENCE 20,Regeneration And The Economy,220,BUSINESS SERVICES-NOT ELSEWHERE CLASSIFIED,2021-22Q4_PC690
Sandwell Metropolitan Borough Council,http://www.sandwell.gov.uk/info/200202/performance_and_spending/3233/government_procurement_cards,08-Feb-2022,Regeneration & Growth,WWW.LABC.UK.COM,Regeneration And The Economy,75,BUSINESS SERVICES-NOT ELSEWHERE CLASSIFIED,2021-22Q4_PC691
Sandwell Metropolitan Borough Council,http://www.sandwell.gov.uk/info/200202/performance_and_spending/3233/government_procurement_cards,08-Feb-2022,Regeneration & Growth,WWW.LABC.UK.COM,Regeneration And The Economy,75,BUSINESS SERVICES-NOT ELSEWHERE CLASSIFIED,2021-22Q4_PC692
Sandwell Metropolitan Borough Council,http://www.sandwell.gov.uk/info/200202/performance_and_spending/3233/government_procurement_cards,09-Feb-2022,Total Borough Economy,WWW.OFFICETEAMCONNECT.,Total Adult Social Care,137.47,STATIONERY/OFFICE SUPPLIES/PRINTING & WRITING PAP.,2021-22Q4_PC693
Sandwell Metropolitan Borough Council,http://www.sandwell.gov.uk/info/200202/performance_and_spending/3233/government_procurement_cards,09-Feb-2022,FINANCE (Inc SIU),Amazon Prime 1G1GI9HW5,Assistant Chief Executive (Excl SIU),6.66,DIRECT MARKETING-CONTINUITY/SUBSCRIPTION MERCHANTS,2021-22Q4_PC694
Sandwell Metropolitan Borough Council,http://www.sandwell.gov.uk/info/200202/performance_and_spending/3233/government_procurement_cards,09-Feb-2022,Total ASCHWB,WWW.ADASS.ORG.UK,Total Adult Social Care,535.33,"ORGANIZATIONS, MEMBERSHIP-NOT ELSEWHERE CLASSIFIED",2021-22Q4_PC695
Sandwell Metropolitan Borough Council,http://www.sandwell.gov.uk/info/200202/performance_and_spending/3233/government_procurement_cards,09-Feb-2022,Total ASCHWB,Amazon.co.uk EW1LG8515,Total Adult Social Care,211.66,DIRECT MARKETING-OTHER DIRECT MARKETERS/NOT ELSEW.,2021-22Q4_PC696
Sandwell Metropolitan Borough Council,http://www.sandwell.gov.uk/info/200202/performance_and_spending/3233/government_procurement_cards,09-Feb-2022,Childrens Services,LYCO GROUP LTD,Childrens Services,15.37,ELECTRICAL PARTS AND EQUIPMENT,2021-22Q4_PC697
Sandwell Metropolitan Borough Council,http://www.sandwell.gov.uk/info/200202/performance_and_spending/3233/government_procurement_cards,09-Feb-2022,Total Borough Economy,GOMPELS HEALTHCARE,Total Adult Social Care,64.41,WHOLESALE CLUBS,2021-22Q4_PC698
Sandwell Metropolitan Borough Council,http://www.sandwell.gov.uk/info/200202/performance_and_spending/3233/government_procurement_cards,09-Feb-2022,Childrens Services,WWW.THEWORKS.CO.UK,Childrens Services,25.83,DISCOUNT STORES,2021-22Q4_PC699
Sandwell Metropolitan Borough Council,http://www.sandwell.gov.uk/info/200202/performance_and_spending/3233/government_procurement_cards,09-Feb-2022,Childrens Services,TESCO STORES 6197,Childrens Services,2.48,"GROCERY STORES, SUPERMARKETS",2021-22Q4_PC700
Sandwell Metropolitan Borough Council,http://www.sandwell.gov.uk/info/200202/performance_and_spending/3233/government_procurement_cards,09-Feb-2022,Total Borough Economy,SCREWFIX DIRECT,Total Adult Social Care,15.93,"BUILDING MATERIALS, LUMBER STORES",2021-22Q4_PC701
Sandwell Metropolitan Borough Council,http://www.sandwell.gov.uk/info/200202/performance_and_spending/3233/government_procurement_cards,09-Feb-2022,Total Borough Economy,DIGITAL ID,Total Adult Social Care,105.98,"COMPUTERS, COMPUTER PERIPHERAL EQUIPMENT, SOFTWARE",2021-22Q4_PC702
Sandwell Metropolitan Borough Council,http://www.sandwell.gov.uk/info/200202/performance_and_spending/3233/government_procurement_cards,09-Feb-2022,Total Borough Economy,WWW.LEXISNEXIS.CO.UK,Total Adult Social Care,330.91,MISCELLANEOUS PUBLISHING AND PRINTING,2021-22Q4_PC703
Sandwell Metropolitan Borough Council,http://www.sandwell.gov.uk/info/200202/performance_and_spending/3233/government_procurement_cards,09-Feb-2022,Total ASCHWB,LOCKS AND FITTINGS LTD,Total Adult Social Care,54,HARDWARE STORES,2021-22Q4_PC704
Sandwell Metropolitan Borough Council,http://www.sandwell.gov.uk/info/200202/performance_and_spending/3233/government_procurement_cards,09-Feb-2022,Childrens Services,ASDA,Childrens Services,2.6,"GROCERY STORES, SUPERMARKETS",2021-22Q4_PC705
Sandwell Metropolitan Borough Council,http://www.sandwell.gov.uk/info/200202/performance_and_spending/3233/government_procurement_cards,09-Feb-2022,Childrens Services,BEEBYS BUBBLES,Childrens Services,68.75,"CLEANING, GARMENT, AND LAUNDRY SERVICES",2021-22Q4_PC706
Sandwell Metropolitan Borough Council,http://www.sandwell.gov.uk/info/200202/performance_and_spending/3233/government_procurement_cards,09-Feb-2022,Total Business Strategy & Change,EB  ONLINE TRAINING DE,Assistant Chief Executive (Excl SIU),108,BUSINESS SERVICES-NOT ELSEWHERE CLASSIFIED,2021-22Q4_PC707
Sandwell Metropolitan Borough Council,http://www.sandwell.gov.uk/info/200202/performance_and_spending/3233/government_procurement_cards,09-Feb-2022,Total Housing Revenue Account,Amazon.co.uk EG7942BC5,Total Housing Revenue Account,150,DIRECT MARKETING-OTHER DIRECT MARKETERS/NOT ELSEW.,2021-22Q4_PC708
Sandwell Metropolitan Borough Council,http://www.sandwell.gov.uk/info/200202/performance_and_spending/3233/government_procurement_cards,09-Feb-2022,Total Housing Revenue Account,Amazon.co.uk RV8S716J5,Total Housing Revenue Account,13.98,DIRECT MARKETING-OTHER DIRECT MARKETERS/NOT ELSEW.,2021-22Q4_PC709
Sandwell Metropolitan Borough Council,http://www.sandwell.gov.uk/info/200202/performance_and_spending/3233/government_procurement_cards,09-Feb-2022,Total Housing Revenue Account,AMZNMktplace,Total Housing Revenue Account,15.98,MISCELLANEOUS AND SPECIALTY RETAIL STORES,2021-22Q4_PC710
Sandwell Metropolitan Borough Council,http://www.sandwell.gov.uk/info/200202/performance_and_spending/3233/government_procurement_cards,09-Feb-2022,Individual School Budgets With Inclusion,WWW.OFFICETEAMCONNECT.,Individual School Budgets With Inclusion,166.96,STATIONERY/OFFICE SUPPLIES/PRINTING & WRITING PAP.,2021-22Q4_PC711
Sandwell Metropolitan Borough Council,http://www.sandwell.gov.uk/info/200202/performance_and_spending/3233/government_procurement_cards,09-Feb-2022,Childrens Services,WWW.OFFICETEAMCONNECT.,Childrens Services,66.3,STATIONERY/OFFICE SUPPLIES/PRINTING & WRITING PAP.,2021-22Q4_PC712
Sandwell Metropolitan Borough Council,http://www.sandwell.gov.uk/info/200202/performance_and_spending/3233/government_procurement_cards,09-Feb-2022,Individual School Budgets With Inclusion,thetrainline.com,Individual School Budgets With Inclusion,60.32,PASSENGER RAILWAYS,2021-22Q4_PC713
Sandwell Metropolitan Borough Council,http://www.sandwell.gov.uk/info/200202/performance_and_spending/3233/government_procurement_cards,09-Feb-2022,Total Borough Economy,AMZNMktplace,Total Adult Social Care,116.65,MISCELLANEOUS AND SPECIALTY RETAIL STORES,2021-22Q4_PC714
Sandwell Metropolitan Borough Council,http://www.sandwell.gov.uk/info/200202/performance_and_spending/3233/government_procurement_cards,09-Feb-2022,Total Borough Economy,AMZNMKTPLACE AMAZON.CO,Total Adult Social Care,33.3,MISCELLANEOUS AND SPECIALTY RETAIL STORES,2021-22Q4_PC715
Sandwell Metropolitan Borough Council,http://www.sandwell.gov.uk/info/200202/performance_and_spending/3233/government_procurement_cards,09-Feb-2022,Total Borough Economy,WWW.OFFICETEAMCONNECT.,Total Adult Social Care,52.75,STATIONERY/OFFICE SUPPLIES/PRINTING & WRITING PAP.,2021-22Q4_PC716
Sandwell Metropolitan Borough Council,http://www.sandwell.gov.uk/info/200202/performance_and_spending/3233/government_procurement_cards,10-Feb-2022,Total Housing Revenue Account,SCREWFIX DIRECT,Total Housing Revenue Account,49.99,"BUILDING MATERIALS, LUMBER STORES",2021-22Q4_PC717
Sandwell Metropolitan Borough Council,http://www.sandwell.gov.uk/info/200202/performance_and_spending/3233/government_procurement_cards,10-Feb-2022,Total Borough Economy,Amazon.co.uk 2L7OC5JW4,Total Adult Social Care,15.98,DIRECT MARKETING-OTHER DIRECT MARKETERS/NOT ELSEW.,2021-22Q4_PC718
Sandwell Metropolitan Borough Council,http://www.sandwell.gov.uk/info/200202/performance_and_spending/3233/government_procurement_cards,10-Feb-2022,Total Borough Economy,Amazon.co.uk 2L9AR8JK4,Total Adult Social Care,23.29,DIRECT MARKETING-OTHER DIRECT MARKETERS/NOT ELSEW.,2021-22Q4_PC719
Sandwell Metropolitan Borough Council,http://www.sandwell.gov.uk/info/200202/performance_and_spending/3233/government_procurement_cards,10-Feb-2022,Total Borough Economy,AMZNMktplace,Total Adult Social Care,13.98,MISCELLANEOUS AND SPECIALTY RETAIL STORES,2021-22Q4_PC720
Sandwell Metropolitan Borough Council,http://www.sandwell.gov.uk/info/200202/performance_and_spending/3233/government_procurement_cards,10-Feb-2022,Childrens Services,AMZNMKTPLACE AMAZON.CO,Childrens Services,6.66,MISCELLANEOUS AND SPECIALTY RETAIL STORES,2021-22Q4_PC721
Sandwell Metropolitan Borough Council,http://www.sandwell.gov.uk/info/200202/performance_and_spending/3233/government_procurement_cards,10-Feb-2022,Director of Law & Governance,SCREWFIX DIR LTD,Assistant Chief Executive (Excl SIU),19.98,"BUILDING MATERIALS, LUMBER STORES",2021-22Q4_PC722
Sandwell Metropolitan Borough Council,http://www.sandwell.gov.uk/info/200202/performance_and_spending/3233/government_procurement_cards,10-Feb-2022,Total Borough Economy,GLOBAL PLUS,Total Adult Social Care,16.2,"PACKAGE STORES, BEER, WINE, LIQUOR",2021-22Q4_PC723
Sandwell Metropolitan Borough Council,http://www.sandwell.gov.uk/info/200202/performance_and_spending/3233/government_procurement_cards,10-Feb-2022,Childrens Services,PAYPAL  TORLEATRAIN,Childrens Services,250,"SCHOOLS, TRADE AND VOCATIONAL",2021-22Q4_PC724
Sandwell Metropolitan Borough Council,http://www.sandwell.gov.uk/info/200202/performance_and_spending/3233/government_procurement_cards,10-Feb-2022,Regeneration & Growth,AMZNMktplace,Regeneration And The Economy,22.17,MISCELLANEOUS AND SPECIALTY RETAIL STORES,2021-22Q4_PC725
Sandwell Metropolitan Borough Council,http://www.sandwell.gov.uk/info/200202/performance_and_spending/3233/government_procurement_cards,10-Feb-2022,Regeneration & Growth,Amazon.co.uk 2L9PP8N64,Regeneration And The Economy,104.15,DIRECT MARKETING-OTHER DIRECT MARKETERS/NOT ELSEW.,2021-22Q4_PC726
Sandwell Metropolitan Borough Council,http://www.sandwell.gov.uk/info/200202/performance_and_spending/3233/government_procurement_cards,10-Feb-2022,Childrens Services,AMZNMktplace,Childrens Services,12.5,MISCELLANEOUS AND SPECIALTY RETAIL STORES,2021-22Q4_PC727
